Workbook

Sheet 記入要綱
B3: 第２編 人口
B5: １．住民基本台帳人口
J6: データ提供
C7: １）人口の推移（年次別） | J7: 市民課
C8: ２）地域の人口 | J8: 市民課
C9: ３）年齢別人口（５歳階級） | J9: 市民課
C10: ４）人口動態（届出数） | J10: 市民課
C11: ５）外国人住民の人口 | J11: 市民課
C12: ６）社会動態（道内） | J12: 北海道統計
C13: ７）社会動態（道外） | J13: 北海道統計
C14: ８）町内別年齢人口（５歳階級） | J14: 市民課
C15: ９）全道各市の人口 | J15: 北海道統計
B17: ２．国勢調査人口
C19: １）人口の推移（年次別） | J19: 国勢調査（西暦末尾０、５年調査）
C20: ２）地域の人口 | J20: 国勢調査（西暦末尾０、５年調査）
C21: ３）年齢別人口（５歳階級） | J21: 国勢調査（西暦末尾０、５年調査）
C22: ４）人口集中地区人口等 | J22: 国勢調査（西暦末尾０、５年調査）
C23: ５）昼間人口・夜間人口等（概要） | J23: 国勢調査（西暦末尾０、５年調査）
C24: ６）産業別就業人口 | J24: 国勢調査（西暦末尾０、５年調査）
C25: ７）昼間人口・夜間人口等（詳細） | J25: 国勢調査（西暦末尾０、５年調査）
C26: ８）恵庭市に常住する就業・通学市町 | J26: 国勢調査（西暦末尾０、５年調査）
C27: 村別１５歳以上就業者および通学 | J27: 国勢調査（西暦末尾０、５年調査）
C28: 者数 | J28: 国勢調査（西暦末尾０、５年調査）
C29: ９）恵庭市に就業・通学する常住 | J29: 国勢調査（西暦末尾０、５年調査）
C30: 市町村別１５歳以上就業者および | J30: 国勢調査（西暦末尾０、５年調査）
C31: 通学者数 | J31: 国勢調査（西暦末尾０、５年調査）

Sheet 第2編表紙
A2: 第２編 人 口
B16: 人口及び世帯年齢構成ピラミッド
K18: 年少人口
K22: 生産年齢人口
K34: 老齢人口

Sheet 人口の推移
A1: １．住民基本台帳人口
A3: １) 人口の推移（年次別）
D4: （各年9月末現在）
A5: 年 次 | B5: 世 帯 数 | C5: 人 口 | F5: 人口密度 | G5: 備 考
C6: 総数 | D6: 男 | E6: 女 | F6: (1k㎡当たり)
A7: 明治30年 | B7: 143 | C7: 572 | D7: 294 | E7: 278 | F7: 1.9 | G7: 戸町役場開設
A8: 44 | B8: 940 | C8: 5584 | D8: 2812 | E8: 2772 | F8: 18.9
A9: 昭和20年 | B9: 1925 | C9: 11235 | D9: 5443 | E9: 5792 | F9: 38.2
A10: 26 | B10: 2378 | C10: 13496 | D10: 6811 | E10: 6685 | F10: 45.9 | G10: 町制施行
A11: 27 | B11: 2767 | C11: =SUM(D11:E11) -> 14233 | D11: 7057 | E11: 7176 | F11: =C11/294.87 -> 48.26872859
A12: 28 | B12: 3221 | C12: =SUM(D12:E12) -> 16109 | D12: 7959 | E12: 8150 | F12: =C12/294.87 -> 54.63085427
A13: 29 | B13: 3619 | C13: 18175 | D13: 9010 | E13: 9165 | F13: 61.63733171
A14: 30 | B14: 4098 | C14: 19576 | D14: 9691 | E14: 9885 | F14: 66.38857802
A15: 31 | B15: 4535 | C15: 20972 | D15: 10424 | E15: 10548 | F15: 71.1228677
A16: 32 | B16: 4928 | C16: 22107 | D16: 11024 | E16: 11083 | F16: 74.97202157
A17: 33 | B17: 10016 | C17: 27966 | D17: 16431 | E17: 11535 | F17: 94.84179469
A18: 34 | B18: 10689 | C18: 28323 | D18: 16840 | E18: 11483 | F18: 96.05249771
A19: 35 | B19: 11175 | C19: 29614 | D19: 17564 | E19: 12050 | F19: 100.4306983
A20: 36 | B20: 10614 | C20: 28798 | D20: 16930 | E20: 11868 | F20: 97.66337708
A21: 37 | B21: 10082 | C21: 28346 | D21: 16439 | E21: 11907 | F21: 96.13049819
A22: 38 | B22: 9837 | C22: 29190 | D22: 16560 | E22: 12630 | F22: 98.99277648
A23: 39 | B23: 10265 | C23: 30327 | D23: 17058 | E23: 13269 | F23: 102.848713
A24: 40 | B24: 10051 | C24: 31085 | D24: 17111 | E24: 13974 | F24: 105.5
A25: 41 | B25: 10065 | C25: =SUM(D25:E25) -> 31621 | D25: 17190 | E25: 14431 | F25: =C25/294.87 -> 107.2370875
A26: 42 | B26: 10100 | C26: =SUM(D26:E26) -> 32369 | D26: 17383 | E26: 14986 | F26: =C26/294.87 -> 109.7737986
A27: 43 | B27: 17563 | C27: =SUM(D27:E27) -> 32965 | D27: 17563 | E27: 15402 | F27: =C27/294.87 -> 111.7950283
A28: 44 | B28: 10428 | C28: =SUM(D28:E28) -> 33566 | D28: 17793 | E28: 15773 | F28: =C28/294.87 -> 113.8332146
A29: 45 | B29: 10756 | C29: 34619 | D29: 18200 | E29: 16419 | F29: 117.5
A30: 46 | B30: 11237 | C30: 35668 | D30: 18775 | E30: 16893 | F30: 121 | G30: 市制施行
A31: 47 | B31: 11592 | C31: =SUM(D31:E31) -> 36645 | D31: 19191 | E31: 17454 | F31: =C31/294.87 -> 124.2751043
A32: 48 | B32: 11941 | C32: =SUM(D32:E32) -> 37798 | D32: 19753 | E32: 18045 | F32: =C32/294.87 -> 128.185302
A33: 49 | B33: 12366 | C33: =SUM(D33:E33) -> 38876 | D33: 20310 | E33: 18566 | F33: =C33/294.87 -> 131.8411503
A34: 50 | B34: 12829 | C34: 39805 | D34: 20822 | E34: 18983 | F34: 135.1
A35: 51 | B35: 13146 | C35: =SUM(D35:E35) -> 40664 | D35: 21179 | E35: 19485 | F35: =C35/294.87 -> 137.9048394
A36: 52 | B36: 13447 | C36: =SUM(D36:E36) -> 41694 | D36: 21649 | E36: 20045 | F36: =C36/294.87 -> 141.3979042
A37: 53 | B37: 13679 | C37: =SUM(D37:E37) -> 42169 | D37: 21834 | E37: 20335 | F37: =C37/294.87 -> 143.0087835
A38: 54 | B38: 14048 | C38: =SUM(D38:E38) -> 42922 | D38: 22215 | E38: 20707 | F38: =C38/294.87 -> 145.5624512
A39: 55 | B39: 14343 | C39: 43465 | D39: 22481 | E39: 20984 | F39: 157.5
A40: 56 | B40: 14722 | C40: =SUM(D40:E40) -> 44256 | D40: 22860 | E40: 21396 | F40: =C40/294.87 -> 150.0864788
A41: 57 | B41: 15150 | C41: =SUM(D41:E41) -> 45510 | D41: 23433 | E41: 22077 | F41: =C41/294.87 -> 154.3392003
A42: 58 | B42: 15677 | C42: =SUM(D42:E42) -> 46748 | D42: 23955 | E42: 22793 | F42: =C42/294.87 -> 158.5376607
A43: 59 | B43: 16714 | C43: =SUM(D43:E43) -> 47817 | D43: 24439 | E43: 23378 | F43: =C43/294.87 -> 162.1629871
A44: 60 | B44: 16578 | C44: 48724 | D44: 24786 | E44: 23938 | F44: 165.3
A45: 61 | B45: 17144 | C45: =SUM(D45:E45) -> 49574 | D45: 25199 | E45: 24375 | F45: =C45/294.87 -> 168.1215451
A46: 62 | B46: 17757 | C46: =SUM(D46:E46) -> 50785 | D46: 25750 | E46: 25035 | F46: =C46/294.87 -> 172.2284397
A47: 63 | B47: 18423 | C47: =SUM(D47:E47) -> 52213 | D47: 26413 | E47: 25800 | F47: =C47/294.87 -> 177.0712517
A48: 平成元年 | B48: 19248 | C48: 53962 | D48: 27335 | E48: 26627 | F48: 183
A49: 2 | B49: 20145 | C49: 55813 | D49: 28262 | E49: 27551 | F49: 189.3
A50: 3 | B50: 21016 | C50: =SUM(D50:E50) -> 57443 | D50: 29016 | E50: 28427 | F50: =C50/294.87 -> 194.8078814
A51: 4 | B51: 21799 | C51: =SUM(D51:E51) -> 58978 | D51: 29775 | E51: 29203 | F51: =C51/294.87 -> 200.0135653
A52: 5 | B52: 22777 | C52: =SUM(D52:E52) -> 60484 | D52: 30750 | E52: 29734 | F52: =C52/294.87 -> 205.1209007
A53: 6 | B53: 23094 | C53: =SUM(D53:E53) -> 61356 | D53: 30988 | E53: 30368 | F53: =C53/294.87 -> 208.0781361
A54: 7 | B54: 23723 | C54: 62372 | D54: 31531 | E54: 30841 | F54: 211.5
A55: 8 | B55: 24356 | C55: 63275 | D55: 31952 | E55: 31323 | F55: 214.6
A56: 9 | B56: 24899 | C56: 64011 | D56: 32284 | E56: 31727 | F56: 217.1
A57: 10 | B57: 25356 | C57: 64485 | D57: 32462 | E57: 32023 | F57: 218.7
A58: 11 | B58: 25719 | C58: 64897 | D58: 32590 | E58: 32307 | F58: 220.1
A59: 12 | B59: 26092 | C59: 65310 | D59: 32697 | E59: 32613 | F59: 221.5
A60: 13 | B60: 26388 | C60: 65590 | D60: 32785 | E60: 32805 | F60: 222.4
A61: 14 | B61: 26893 | C61: 66172 | D61: 33055 | E61: 33117 | F61: 224.4
A62: 15 | B62: 27378 | C62: 66718 | D62: 33278 | E62: 33440 | F62: 226.3
A63: 16 | B63: 27461 | C63: 67191 | D63: 33391 | E63: 33800 | F63: 227.9
A64: 17 | B64: 28205 | C64: 67598 | D64: 33584 | E64: 34014 | F64: =C64/294.87 -> 229.2467867
A65: 18 | B65: 28725 | C65: 67942 | D65: 33688 | E65: 34254 | F65: 230.4134025
A66: 19 | B66: 29188 | C66: 68417 | D66: 33763 | E66: 34654 | F66: 232.0242819
A67: 20 | B67: 29731 | C67: 68685 | D67: 33867 | E67: 34818 | F67: 232.933157
A68: 21 | B68: 29958 | C68: 68608 | D68: 33773 | E68: 35835 | F68: 232.7
A69: 22 | B69: 30316 | C69: 68809 | D69: 33870 | E69: 34939 | F69: 233.4
A70: 23 | B70: 30575 | C70: 68938 | D70: 33833 | E70: 35105 | F70: 233.8
A71: 24 | B71: 30909 | C71: 69126 | D71: 33806 | E71: 35320 | F71: =69126/294.87 -> 234.4287313
A72: 25 | B72: 31053 | C72: =D72+E72 -> 68876 | D72: 33648 | E72: 35228 | F72: =68876/294.87 -> 233.5809001
A73: 26 | B73: 31338 | C73: 68950 | D73: 33610 | E73: 35340 | F73: 233.8318581
A74: 〈資料〉生活環境部市民課 | G74: （単位：人）
A75: 注) 調査月日…明治は不明、昭和20年は11月1日
A76: 住民基本台帳法が改正され、平成24年7月より外国人住民が適用対象となった。

Sheet 地域人口
A1: ２）地域の人口 | AA1: (各年9月末日)
A2: 地 区 | B2: 25年 | F2: 26年 | J2: 地 区 | K2: 25年 | O2: 26年 | S2: 地 区 | T2: 25年 | X2: 26年
B3: 人 口 | E3: 世 帯 | F3: 人 口 | I3: 世 帯 | K3: 人 口 | N3: 世 帯 | O3: 人 口 | R3: 世 帯 | T3: 人 口 | W3: 世 帯 | X3: 人 口 | AA3: 世 帯
B4: 計 | C4: 男 | D4: 女 | F4: 計 | G4: 男 | H4: 女 | K4: 計 | L4: 男 | M4: 女 | O4: 計 | P4: 男 | Q4: 女 | T4: 計 | U4: 男 | V4: 女 | X4: 計 | Y4: 男 | Z4: 女
A5: 漁太 | B5: =C5+D5 -> 157 | C5: 77 | D5: 80 | E5: 65 | F5: 157 | G5: 75 | H5: 82 | I5: 69 | J5: 桜町3丁目 | K5: =L5+M5 -> 367 | L5: 187 | M5: 180 | N5: 145 | O5: 342 | P5: 170 | Q5: 172 | R5: 134 | S5: 美咲野4丁目 | T5: =U5+V5 -> 313 | U5: 157 | V5: 156 | W5: 103 | X5: 306 | Y5: 154 | Z5: 152 | AA5: 103
A6: 林田 | B6: 39 | C6: 18 | D6: 21 | E6: 18 | F6: 40 | G6: 18 | H6: 22 | I6: 23 | J6: 桜町4丁目 | K6: 2 | L6: 1 | M6: 1 | N6: 1 | O6: 1 | P6: 1 | R6: 1 | S6: 美咲野5丁目 | T6: 252 | U6: 121 | V6: 131 | W6: 97 | X6: 247 | Y6: 119 | Z6: 128 | AA6: 98
A7: 春日 | B7: 141 | C7: 73 | D7: 68 | E7: 63 | F7: 141 | G7: 75 | H7: 66 | I7: 59 | J7: 京町 | K7: 134 | L7: 67 | M7: 67 | N7: 71 | O7: 156 | P7: 79 | Q7: 77 | R7: 82 | S7: 美咲野6丁目 | T7: 387 | U7: 185 | V7: 202 | W7: 139 | X7: 391 | Y7: 186 | Z7: 205 | AA7: 139
A8: 中央 | B8: 205 | C8: 108 | D8: 97 | E8: 79 | F8: 220 | G8: 113 | H8: 107 | I8: 82 | J8: 漁町 | K8: 1034 | L8: 524 | M8: 510 | N8: 559 | O8: 1042 | P8: 536 | Q8: 506 | R8: 564 | S8: 恵み野東1丁目 | T8: 305 | U8: 140 | V8: 165 | W8: 123 | X8: 312 | Y8: 144 | Z8: 168 | AA8: 125
A9: 上山口 | B9: 206 | C9: 97 | D9: 109 | E9: 83 | F9: 203 | G9: 97 | H9: 106 | I9: 82 | J9: 福住町1丁目 | K9: 747 | L9: 369 | M9: 378 | N9: 363 | O9: 744 | P9: 363 | Q9: 381 | R9: 358 | S9: 恵み野東2丁目 | T9: 567 | U9: 277 | V9: 290 | W9: 222 | X9: 558 | Y9: 267 | Z9: 291 | AA9: 222
A10: 戸磯 | B10: 148 | C10: 68 | D10: 80 | E10: 71 | F10: 151 | G10: 68 | H10: 83 | I10: 75 | J10: 福住町2丁目 | K10: 376 | L10: 168 | M10: 208 | N10: 185 | O10: 374 | P10: 172 | Q10: 202 | R10: 188 | S10: 恵み野東3丁目 | T10: 395 | U10: 190 | V10: 205 | W10: 166 | X10: 393 | Y10: 195 | Z10: 198 | AA10: 164
A11: 恵南 | B11: 745 | C11: 459 | D11: 286 | E11: 416 | F11: 763 | G11: 476 | H11: 287 | I11: 443 | J11: 福住町3丁目 | K11: 541 | L11: 258 | M11: 283 | N11: 262 | O11: 578 | P11: 269 | Q11: 309 | R11: 281 | S11: 恵み野東4丁目 | T11: 386 | U11: 182 | V11: 204 | W11: 145 | X11: 541 | Y11: 263 | Z11: 278 | AA11: 202
A12: 和光町1丁目 | B12: 461 | C12: 221 | D12: 240 | E12: 216 | F12: 454 | G12: 220 | H12: 234 | I12: 220 | J12: 新町 | K12: 72 | L12: 35 | M12: 37 | N12: 27 | O12: 72 | P12: 33 | Q12: 39 | R12: 29 | S12: 恵み野東5丁目 | T12: 588 | U12: 297 | V12: 291 | W12: 254 | X12: 569 | Y12: 283 | Z12: 286 | AA12: 250
A13: 和光町2丁目 | B13: 581 | C13: 298 | D13: 283 | E13: 238 | F13: 583 | G13: 294 | H13: 289 | I13: 240 | J13: 本町 | K13: 489 | L13: 241 | M13: 248 | N13: 241 | O13: 498 | P13: 244 | Q13: 254 | R13: 247 | S13: 恵み野東6丁目 | T13: 460 | U13: 229 | V13: 231 | W13: 182 | X13: 455 | Y13: 225 | Z13: 230 | AA13: 180
A14: 和光町3丁目 | B14: 495 | C14: 233 | D14: 262 | E14: 222 | F14: 501 | G14: 244 | H14: 257 | I14: 227 | J14: 有明町1丁目 | K14: 445 | L14: 224 | M14: 221 | N14: 250 | O14: 437 | P14: 221 | Q14: 216 | R14: 248 | S14: 恵み野東7丁目 | T14: 567 | U14: 282 | V14: 285 | W14: 205 | X14: 572 | Y14: 282 | Z14: 290 | AA14: 210
A15: 和光町4丁目 | B15: 446 | C15: 217 | D15: 229 | E15: 203 | F15: 457 | G15: 227 | H15: 230 | I15: 205 | J15: 有明町2丁目 | K15: 520 | L15: 254 | M15: 266 | N15: 233 | O15: 511 | P15: 251 | Q15: 260 | R15: 237 | S15: 恵み野西1丁目 | T15: 725 | U15: 328 | V15: 397 | W15: 319 | X15: 721 | Y15: 325 | Z15: 396 | AA15: 321
A16: 和光町5丁目 | B16: 863 | C16: 460 | D16: 403 | E16: 425 | F16: 879 | G16: 473 | H16: 406 | I16: 436 | J16: 有明町3丁目 | K16: 295 | L16: 135 | M16: 160 | N16: 140 | O16: 290 | P16: 132 | Q16: 158 | R16: 138 | S16: 恵み野西2丁目 | T16: 245 | U16: 111 | V16: 134 | W16: 112 | X16: 232 | Y16: 102 | Z16: 130 | AA16: 107
A17: 駒場町1丁目 | B17: 676 | C17: 336 | D17: 340 | E17: 324 | F17: 660 | G17: 323 | H17: 337 | I17: 325 | J17: 有明町4丁目 | K17: 302 | L17: 144 | M17: 158 | N17: 145 | O17: 312 | P17: 150 | Q17: 162 | R17: 142 | S17: 恵み野西3丁目 | T17: 340 | U17: 164 | V17: 176 | W17: 157 | X17: 349 | Y17: 172 | Z17: 177 | AA17: 161
A18: 駒場町2丁目 | B18: 391 | C18: 190 | D18: 201 | E18: 158 | F18: 383 | G18: 183 | H18: 200 | I18: 157 | J18: 有明町5丁目 | K18: 298 | L18: 143 | M18: 155 | N18: 132 | O18: 292 | P18: 139 | Q18: 153 | R18: 128 | S18: 恵み野西4丁目 | T18: 470 | U18: 221 | V18: 249 | W18: 203 | X18: 472 | Y18: 223 | Z18: 249 | AA18: 207
A19: 駒場町3丁目 | B19: 259 | C19: 127 | D19: 132 | E19: 112 | F19: 306 | G19: 146 | H19: 160 | I19: 133 | J19: 有明町6丁目 | K19: 388 | L19: 196 | M19: 192 | N19: 193 | O19: 402 | P19: 202 | Q19: 200 | R19: 204 | S19: 恵み野西5丁目 | T19: 309 | U19: 134 | V19: 175 | W19: 157 | X19: 299 | Y19: 126 | Z19: 173 | AA19: 152
A20: 駒場町4丁目 | B20: 365 | C20: 178 | D20: 187 | E20: 169 | F20: 375 | G20: 183 | H20: 192 | I20: 178 | J20: 大町1丁目 | K20: 213 | L20: 105 | M20: 108 | N20: 103 | O20: 201 | P20: 102 | Q20: 99 | R20: 98 | S20: 恵み野西6丁目 | T20: 873 | U20: 405 | V20: 468 | W20: 375 | X20: 880 | Y20: 411 | Z20: 469 | AA20: 380
A21: 駒場町5丁目 | B21: 213 | C21: 110 | D21: 103 | E21: 99 | F21: 210 | G21: 107 | H21: 103 | I21: 100 | J21: 大町2丁目 | K21: 166 | L21: 90 | M21: 76 | N21: 92 | O21: 171 | P21: 91 | Q21: 80 | R21: 93 | S21: 恵み野南1丁目 | T21: 330 | U21: 146 | V21: 184 | W21: 136 | X21: 295 | Y21: 130 | Z21: 165 | AA21: 135
A22: 駒場町6丁目 | B22: 285 | C22: 141 | D22: 144 | E22: 128 | F22: 265 | G22: 130 | H22: 135 | I22: 124 | J22: 大町3丁目 | K22: 258 | L22: 126 | M22: 132 | N22: 117 | O22: 251 | P22: 124 | Q22: 127 | R22: 115 | S22: 恵み野南2丁目 | T22: 554 | U22: 256 | V22: 298 | W22: 236 | X22: 546 | Y22: 252 | Z22: 294 | AA22: 237
A23: 白樺町1丁目 | B23: 408 | C23: 205 | D23: 203 | E23: 178 | F23: 388 | G23: 194 | H23: 194 | I23: 168 | J23: 大町4丁目 | K23: 211 | L23: 104 | M23: 107 | N23: 104 | O23: 198 | P23: 98 | Q23: 100 | R23: 101 | S23: 恵み野南3丁目 | T23: 646 | U23: 302 | V23: 344 | W23: 278 | X23: 628 | Y23: 293 | Z23: 335 | AA23: 271
A24: 白樺町2丁目 | B24: 318 | C24: 169 | D24: 149 | E24: 154 | F24: 329 | G24: 174 | H24: 155 | I24: 164 | J24: 文京町1丁目 | K24: 580 | L24: 278 | M24: 302 | N24: 234 | O24: 589 | P24: 284 | Q24: 305 | R24: 244 | S24: 恵み野南4丁目 | T24: 750 | U24: 351 | V24: 399 | W24: 324 | X24: 744 | Y24: 348 | Z24: 396 | AA24: 323
A25: 白樺町3丁目 | B25: 691 | C25: 333 | D25: 358 | E25: 256 | F25: 685 | G25: 335 | H25: 350 | I25: 258 | J25: 文京町2丁目 | K25: 471 | L25: 220 | M25: 251 | N25: 187 | O25: 490 | P25: 228 | Q25: 262 | R25: 194 | S25: 恵み野北1丁目 | T25: 502 | U25: 232 | V25: 270 | W25: 209 | X25: 494 | Y25: 237 | Z25: 257 | AA25: 213
A26: 白樺町4丁目 | B26: 31 | C26: 21 | D26: 10 | E26: 16 | F26: 31 | G26: 21 | H26: 10 | I26: 16 | J26: 文京町3丁目 | K26: 146 | L26: 72 | M26: 74 | N26: 71 | O26: 147 | P26: 73 | Q26: 74 | R26: 73 | S26: 恵み野北2丁目 | T26: 518 | U26: 234 | V26: 284 | W26: 218 | X26: 506 | Y26: 229 | Z26: 277 | AA26: 218
A27: 黄金北1丁目 | B27: 566 | C27: 285 | D27: 281 | E27: 263 | F27: 593 | G27: 295 | H27: 298 | I27: 276 | J27: 文京町4丁目 | K27: 654 | L27: 327 | M27: 327 | N27: 272 | O27: 662 | P27: 332 | Q27: 330 | R27: 278 | S27: 恵み野北3丁目 | T27: 283 | U27: 127 | V27: 156 | W27: 141 | X27: 295 | Y27: 128 | Z27: 167 | AA27: 146
A28: 黄金北2丁目 | B28: 552 | C28: 262 | D28: 290 | E28: 253 | F28: 554 | G28: 260 | H28: 294 | I28: 253 | J28: 牧場 | K28: 298 | L28: 146 | M28: 152 | N28: 175 | O28: 298 | P28: 143 | Q28: 155 | R28: 175 | S28: 恵み野北4丁目 | T28: 314 | U28: 153 | V28: 161 | W28: 139 | X28: 327 | Y28: 160 | Z28: 167 | AA28: 141
A29: 黄金北3丁目 | B29: 795 | C29: 379 | D29: 416 | E29: 368 | F29: 817 | G29: 394 | H29: 423 | I29: 376 | J29: 盤尻 | K29: 16 | L29: 9 | M29: 7 | N29: 11 | O29: 16 | P29: 10 | Q29: 6 | R29: 11 | S29: 恵み野北5丁目 | T29: 338 | U29: 164 | V29: 174 | W29: 144 | X29: 332 | Y29: 158 | Z29: 174 | AA29: 144
A30: 黄金北4丁目 | B30: 737 | C30: 356 | D30: 381 | E30: 319 | F30: 712 | G30: 334 | H30: 378 | I30: 310 | J30: 桜森 | K30: 0 | O30: 0 | S30: 恵み野北6丁目 | T30: 663 | U30: 321 | V30: 342 | W30: 251 | X30: 662 | Y30: 321 | Z30: 341 | AA30: 259
A31: 黄金中央１丁目 | B31: 447 | C31: 205 | D31: 242 | E31: 223 | F31: 466 | G31: 220 | H31: 246 | I31: 232 | J31: 中島町1丁目 | K31: 653 | L31: 329 | M31: 324 | N31: 283 | O31: 623 | P31: 309 | Q31: 314 | R31: 273 | S31: 恵み野北7丁目 | T31: 892 | U31: 421 | V31: 471 | W31: 296 | X31: 877 | Y31: 414 | Z31: 463 | AA31: 294
A32: 黄金中央２丁目 | B32: 312 | C32: 136 | D32: 176 | E32: 162 | F32: 311 | G32: 134 | H32: 177 | I32: 168 | J32: 中島町2丁目 | K32: 499 | L32: 230 | M32: 269 | N32: 222 | O32: 490 | P32: 232 | Q32: 258 | R32: 222 | S32: 島松寿町1丁目 | T32: 633 | U32: 313 | V32: 320 | W32: 339 | X32: 630 | Y32: 306 | Z32: 324 | AA32: 341
A33: 黄金中央３丁目 | B33: 592 | C33: 299 | D33: 293 | E33: 286 | F33: 585 | G33: 296 | H33: 289 | I33: 288 | J33: 中島町3丁目 | K33: 211 | L33: 107 | M33: 104 | N33: 79 | O33: 212 | P33: 103 | Q33: 109 | R33: 80 | S33: 島松寿町2丁目 | T33: 1036 | U33: 469 | V33: 567 | W33: 500 | X33: 1024 | Y33: 468 | Z33: 556 | AA33: 495
A34: 黄金中央４丁目 | B34: 403 | C34: 187 | D34: 216 | E34: 205 | F34: 385 | G34: 180 | H34: 205 | I34: 195 | J34: 中島町4丁目 | K34: 1018 | L34: 497 | M34: 521 | N34: 453 | O34: 1012 | P34: 496 | Q34: 516 | R34: 463 | S34: 島松仲町1丁目 | T34: 278 | U34: 140 | V34: 138 | W34: 146 | X34: 275 | Y34: 136 | Z34: 139 | AA34: 143
A35: 黄金中央５丁目 | B35: 0 | F35: 0 | J35: 中島町5丁目 | K35: 469 | L35: 238 | M35: 231 | N35: 238 | O35: 459 | P35: 230 | Q35: 229 | R35: 239 | S35: 島松仲町2丁目 | T35: 229 | U35: 109 | V35: 120 | W35: 120 | X35: 222 | Y35: 104 | Z35: 118 | AA35: 118
A36: 黄金南１丁目 | B36: 895 | C36: 439 | D36: 456 | E36: 342 | F36: 915 | G36: 446 | H36: 469 | I36: 345 | J36: 中島町6丁目 | K36: 699 | L36: 330 | M36: 369 | N36: 359 | O36: 698 | P36: 332 | Q36: 366 | R36: 357 | S36: 島松仲町3丁目 | T36: 171 | U36: 82 | V36: 89 | W36: 84 | X36: 169 | Y36: 78 | Z36: 91 | AA36: 81
A37: 黄金南２丁目 | B37: 679 | C37: 330 | D37: 349 | E37: 270 | F37: 675 | G37: 321 | H37: 354 | I37: 269 | J37: 恵央町 | K37: 642 | L37: 276 | M37: 366 | N37: 350 | O37: 710 | P37: 298 | Q37: 412 | R37: 381 | S37: 島松東町1丁目 | T37: 283 | U37: 136 | V37: 147 | W37: 120 | X37: 286 | Y37: 137 | Z37: 149 | AA37: 120
A38: 黄金南３丁目 | B38: 777 | C38: 381 | D38: 396 | E38: 265 | F38: 820 | G38: 397 | H38: 423 | I38: 282 | J38: 幸町1丁目 | K38: 225 | L38: 111 | M38: 114 | N38: 100 | O38: 237 | P38: 114 | Q38: 123 | R38: 103 | S38: 島松東町2丁目 | T38: 359 | U38: 168 | V38: 191 | W38: 163 | X38: 356 | Y38: 162 | Z38: 194 | AA38: 168
A39: 黄金南４丁目 | B39: 863 | C39: 451 | D39: 412 | E39: 287 | F39: 886 | G39: 461 | H39: 425 | I39: 301 | J39: 幸町2丁目 | K39: 400 | L39: 187 | M39: 213 | N39: 176 | O39: 385 | P39: 177 | Q39: 208 | R39: 178 | S39: 島松東町3丁目 | T39: 408 | U39: 209 | V39: 199 | W39: 182 | X39: 365 | Y39: 186 | Z39: 179 | AA39: 165
A40: 黄金南５丁目 | B40: 212 | C40: 104 | D40: 108 | E40: 73 | F40: 227 | G40: 113 | H40: 114 | I40: 76 | J40: 幸町3丁目 | K40: 426 | L40: 202 | M40: 224 | N40: 187 | O40: 429 | P40: 205 | Q40: 224 | R40: 188 | S40: 島松東町4丁目 | T40: 218 | U40: 108 | V40: 110 | W40: 90 | X40: 215 | Y40: 108 | Z40: 107 | AA40: 92
A41: 黄金南６丁目 | B41: 310 | C41: 159 | D41: 151 | E41: 102 | F41: 312 | G41: 159 | H41: 153 | I41: 103 | J41: 幸町4丁目 | K41: 5 | L41: 2 | M41: 3 | N41: 2 | O41: 5 | P41: 2 | Q41: 3 | R41: 2 | S41: 島松本町1丁目 | T41: 527 | U41: 251 | V41: 276 | W41: 218 | X41: 510 | Y41: 241 | Z41: 269 | AA41: 214
A42: 黄金南７丁目 | B42: 795 | C42: 389 | D42: 406 | E42: 274 | F42: 816 | G42: 401 | H42: 415 | I42: 285 | J42: 柏陽町1丁目 | K42: 761 | L42: 365 | M42: 396 | N42: 370 | O42: 750 | P42: 355 | Q42: 395 | R42: 366 | S42: 島松本町2丁目 | T42: 604 | U42: 299 | V42: 305 | W42: 264 | X42: 606 | Y42: 294 | Z42: 312 | AA42: 268
A43: 相生町 | B43: 1802 | C43: 876 | D43: 926 | E43: 956 | F43: 1815 | G43: 886 | H43: 929 | I43: 959 | J43: 柏陽町3丁目 | K43: 1616 | L43: 795 | M43: 821 | N43: 675 | O43: 1617 | P43: 804 | Q43: 813 | R43: 670 | S43: 島松本町3丁目 | T43: 778 | U43: 367 | V43: 411 | W43: 333 | X43: 749 | Y43: 356 | Z43: 393 | AA43: 331
A44: 緑町1丁目 | B44: 160 | C44: 83 | D44: 77 | E44: 97 | F44: 164 | G44: 82 | H44: 82 | I44: 100 | J44: 柏陽町4丁目 | K44: 623 | L44: 291 | M44: 332 | N44: 345 | O44: 606 | P44: 278 | Q44: 328 | R44: 337 | S44: 島松本町4丁目 | T44: 539 | U44: 268 | V44: 271 | W44: 228 | X44: 520 | Y44: 254 | Z44: 266 | AA44: 222
A45: 緑町2丁目 | B45: 719 | C45: 323 | D45: 396 | E45: 343 | F45: 715 | G45: 313 | H45: 402 | I45: 339 | J45: 柏木町 | K45: 2683 | L45: 1392 | M45: 1291 | N45: 1333 | O45: 2625 | P45: 1372 | Q45: 1253 | R45: 1327 | S45: 島松旭町1丁目 | T45: 311 | U45: 147 | V45: 164 | W45: 124 | X45: 307 | Y45: 146 | Z45: 161 | AA45: 124
A46: 住吉町1丁目 | B46: 253 | C46: 126 | D46: 127 | E46: 118 | F46: 252 | G46: 126 | H46: 126 | I46: 120 | J46: 北柏木町1丁目 | K46: 773 | L46: 378 | M46: 395 | N46: 314 | O46: 796 | P46: 386 | Q46: 410 | R46: 334 | S46: 島松旭町2丁目 | T46: 337 | U46: 158 | V46: 179 | W46: 143 | X46: 318 | Y46: 153 | Z46: 165 | AA46: 132
A47: 住吉町2丁目 | B47: 520 | C47: 245 | D47: 275 | E47: 274 | F47: 528 | G47: 245 | H47: 283 | I47: 280 | J47: 北柏木町2丁目 | K47: 572 | L47: 286 | M47: 286 | N47: 256 | O47: 573 | P47: 283 | Q47: 290 | R47: 259 | S47: 島松旭町3丁目 | T47: 344 | U47: 167 | V47: 177 | W47: 106 | X47: 329 | Y47: 162 | Z47: 167 | AA47: 104
A48: 住吉町3丁目 | B48: 545 | C48: 273 | D48: 272 | E48: 255 | F48: 563 | G48: 277 | H48: 286 | I48: 256 | J48: 北柏木町3丁目 | K48: 26 | L48: 14 | M48: 12 | N48: 12 | O48: 27 | P48: 15 | Q48: 12 | R48: 13 | S48: 島松旭町4丁目 | T48: 418 | U48: 194 | V48: 224 | W48: 176 | X48: 412 | Y48: 188 | Z48: 224 | AA48: 170
A49: 住吉町4丁目 | B49: 397 | C49: 185 | D49: 212 | E49: 174 | F49: 402 | G49: 176 | H49: 226 | I49: 177 | J49: 北柏木町4丁目 | K49: 3 | L49: 2 | M49: 1 | N49: 2 | O49: 8 | P49: 4 | Q49: 4 | R49: 3 | S49: 西島松 | T49: 694 | U49: 423 | V49: 271 | W49: 476 | X49: 701 | Y49: 431 | Z49: 270 | AA49: 481
A50: 末広町 | B50: 649 | C50: 315 | D50: 334 | E50: 312 | F50: 601 | G50: 285 | H50: 316 | I50: 294 | J50: 北柏木町5丁目 | K50: 3 | L50: 2 | M50: 1 | N50: 2 | O50: 3 | P50: 2 | Q50: 1 | R50: 2 | S50: 南島松 | T50: 255 | U50: 113 | V50: 142 | W50: 136 | X50: 247 | Y50: 104 | Z50: 143 | AA50: 133
A51: 栄恵町 | B51: 193 | C51: 101 | D51: 92 | E51: 120 | F51: 184 | G51: 97 | H51: 87 | I51: 116 | J51: 島松沢 | K51: 15 | L51: 10 | M51: 5 | N51: 10 | O51: 13 | P51: 8 | Q51: 5 | R51: 8 | S51: 中島松 | T51: 169 | U51: 79 | V51: 90 | W51: 60 | X51: 165 | Y51: 78 | Z51: 87 | AA51: 61
A52: 泉 町 | B52: 602 | C52: 315 | D52: 287 | E52: 335 | F52: 599 | G52: 315 | H52: 284 | I52: 340 | J52: 美咲野1丁目 | K52: 601 | L52: 288 | M52: 313 | N52: 198 | O52: 601 | P52: 286 | Q52: 315 | R52: 199 | S52: 下島松 | T52: 313 | U52: 155 | V52: 158 | W52: 160 | X52: 308 | Y52: 155 | Z52: 153 | AA52: 156
A53: 桜町1丁目 | B53: 333 | C53: 183 | D53: 150 | E53: 156 | F53: 272 | G53: 152 | H53: 120 | I53: 137 | J53: 美咲野2丁目 | K53: 388 | L53: 189 | M53: 199 | N53: 125 | O53: 386 | P53: 189 | Q53: 197 | R53: 127 | S53: 穂栄 | T53: 102 | U53: 49 | V53: 53 | W53: 52 | X53: 103 | Y53: 51 | Z53: 52 | AA53: 52
A54: 桜町2丁目 | B54: 832 | C54: 382 | D54: 450 | E54: 391 | F54: 798 | G54: 365 | H54: 433 | I54: 380 | J54: 美咲野3丁目 | K54: 383 | L54: 199 | M54: 184 | N54: 132 | O54: 391 | P54: 206 | Q54: 185 | R54: 136 | S54: 北島 | T54: 95 | U54: 52 | V54: 43 | W54: 40 | X54: 94 | Y54: 50 | Z54: 44 | AA54: 41
A55: 〈資料〉生活環境部市民課 | S55: 恵み野里美1丁目 | T55: 9 | U55: 4 | V55: 5 | W55: 4 | X55: 5 | Y55: 2 | Z55: 3 | AA55: 3
A56: 住民基本台帳法が改正され、平成24年7月より外国人住民が適用対象となった。 | S56: 恵み野里美2丁目 | T56: 13 | U56: 7 | V56: 6 | W56: 6 | X56: 153 | Y56: 74 | Z56: 79 | AA56: 50
S57: 合計 | T57: =SUM(T5:T56)+SUM(K5:K54)+SUM(B5:B54) -> 68876 | U57: 33648 | V57: 35228 | W57: 31053 | X57: 68950 | Y57: 33610 | Z57: 35340 | AA57: 31338

Sheet 年齢別人口
A1: ３）年齢別人口(5歳階級)
Q2: （各年9月末日）
A3: 年 齢 | B3: 22年 | E3: 23年 | H3: 24年 | K3: 25年 | N3: 26年 | Q3: 年 齢
B4: 男 | C4: 女 | D4: 計 | E4: 男 | F4: 女 | G4: 計 | H4: 男 | I4: 女 | J4: 計 | K4: 男 | L4: 女 | M4: 計 | N4: 男 | O4: 女 | P4: 計
A5: 総数 | B5: =B8+B15+B29 -> 33870 | C5: 34939 | D5: 68809 | E5: 33833 | F5: 35105 | G5: 68938 | H5: 33806 | I5: 35320 | J5: =SUM(H5:I5) -> 69126 | K5: 33648 | L5: 35228 | M5: 68876 | N5: 33610 | O5: 35340 | P5: =SUM(N5:O5) -> 68950 | Q5: 総数
D6: ="("&ROUND(D5/(D$15+D$8+D$29)*100,1)&"%)" -> (100%) | G6: ="("&ROUND(G5/(G$15+G$8+G$29)*100,1)&"%)" -> (100%) | J6: (100%) | M6: (100%) | P6: (100%)
A7: 年少人口 | Q7: 年少人口
A8: 0歳～14歳 | B8: =B10+B11+B12 -> 4989 | C8: =C10+C11+C12 -> 4832 | D8: =D10+D11+D12 -> 9821 | E8: 4939 | F8: 4802 | G8: =G10+G11+G12 -> 9741 | H8: =SUM(H10:H12) -> 4846 | I8: 4685 | J8: 9531 | K8: 4759 | L8: 4549 | M8: 9308 | N8: =SUM(N10:N12) -> 4713 | O8: =SUM(O10:O12) -> 4590 | P8: =SUM(P10:P12) -> 9303 | Q8: 0歳～14歳
D9: ="("&ROUND(D8/(D$15+D$8+D$29)*100,1)&"%)" -> (14.3%) | G9: ="("&ROUND(G8/(G$15+G$8+G$29)*100,1)&"%)" -> (14.1%) | I9: (13.8%) | J9: ="("&ROUND(J8/(J$15+J$8+J$29)*100,1)&"%)" -> (13.8%) | M9: ="("&ROUND(M8/(M$15+M$8+M$29)*100,1)&"%)" -> (13.5%) | P9: ="("&ROUND(P8/(P$15+P$8+P$29)*100,1)&"%)" -> (13.5%)
A10: 0歳～4歳 | B10: 1511 | C10: 1492 | D10: =SUM(B10:C10) -> 3003 | E10: 1496 | F10: 1469 | G10: =SUM(E10:F10) -> 2965 | H10: 1466 | I10: 1383 | J10: =SUM(H10:I10) -> 2849 | K10: 1392 | L10: 1323 | M10: =K10+L10 -> 2715 | N10: 1374 | O10: 1350 | P10: =SUM(N10:O10) -> 2724 | Q10: 0歳～4歳
A11: 5～9 | B11: 1682 | C11: 1617 | D11: =SUM(B11:C11) -> 3299 | E11: 1628 | F11: 1582 | G11: =SUM(E11:F11) -> 3210 | H11: 1592 | I11: 1594 | J11: 3186 | K11: 1612 | L11: 1549 | M11: =K11+L11 -> 3161 | N11: 1615 | O11: 1540 | P11: =SUM(N11:O11) -> 3155 | Q11: 5～9
A12: 10～14 | B12: 1796 | C12: 1723 | D12: =SUM(B12:C12) -> 3519 | E12: 1815 | F12: 1751 | G12: =SUM(E12:F12) -> 3566 | H12: 1788 | I12: 1708 | J12: =SUM(H12:I12) -> 3496 | K12: 1755 | L12: 1677 | M12: =K12+L12 -> 3432 | N12: 1724 | O12: 1700 | P12: =SUM(N12:O12) -> 3424 | Q12: 10～14
A14: 生産年齢人口 | Q14: 生産年齢人口
A15: 15歳～64歳 | B15: =SUM(B17:B26) -> 22577 | C15: =SUM(C17:C26) -> 22289 | D15: =SUM(D17:D26) -> 44866 | E15: 22405 | F15: 22245 | G15: =SUM(G17:G26) -> 44650 | H15: =SUM(H17:H26) -> 22245 | I15: =SUM(I17:I26) -> 22251 | J15: =SUM(H15:I15) -> 44496 | K15: =SUM(K17:K26) -> 21883 | L15: =SUM(L17:L26) -> 21879 | M15: =SUM(M17:M26) -> 43762 | N15: =SUM(N17:N26) -> 21538 | O15: 21504 | P15: 43042 | Q15: 15歳～64歳
D16: ="("&ROUND(D15/(D$15+D$8+D$29)*100,1)&"%)" -> (65.2%) | G16: ="("&ROUND(G15/(G$15+G$8+G$29)*100,1)&"%)" -> (64.8%) | J16: ="("&ROUND(J15/(J$15+J$8+J$29)*100,1)&"%)" -> (64.4%) | M16: ="("&ROUND(M15/(M$15+M$8+M$29)*100,1)&"%)" -> (63.5%) | P16: ="("&ROUND(P15/(P$15+P$8+P$29)*100,1)&"%)" -> (62.4%)
A17: 15歳～19歳 | B17: 2007 | C17: 1817 | D17: =SUM(B17:C17) -> 3824 | E17: 1928 | F17: 1801 | G17: =SUM(E17:F17) -> 3729 | H17: 1924 | I17: 1856 | J17: =SUM(H17:I17) -> 3780 | K17: 1886 | L17: 1889 | M17: =SUM(K17:L17) -> 3775 | N17: 1905 | O17: 1834 | P17: =SUM(N17:O17) -> 3739 | Q17: 15歳～19歳
A18: 20～24 | B18: 1964 | C18: 1802 | D18: 3766 | E18: 1957 | F18: 1768 | G18: 3725 | H18: 1955 | I18: 1812 | J18: 3767 | K18: 1900 | L18: 1771 | M18: 3671 | N18: 1857 | O18: 1737 | P18: =SUM(N18:O18) -> 3594 | Q18: 20～24
A19: 25～29 | B19: 1947 | C19: 1897 | D19: 3844 | E19: 1888 | F19: 1869 | G19: 3757 | H19: 1808 | I19: 1804 | J19: 3612 | K19: 1723 | L19: 1724 | M19: 3447 | N19: 1693 | O19: 1675 | P19: 3368 | Q19: 25～29
A20: 30～34 | B20: 2368 | C20: 2265 | D20: 4633 | E20: 2254 | F20: 2175 | G20: 4429 | H20: 2091 | I20: 2089 | J20: 4180 | K20: 2040 | L20: 1968 | M20: 4008 | N20: 1913 | O20: 1943 | P20: 3856 | Q20: 30～34
A21: 35～39 | B21: 2591 | C21: 2558 | D21: 5149 | E21: 2596 | F21: 2576 | G21: 5172 | H21: 2640 | I21: 2600 | J21: 5240 | K21: 2548 | L21: 2469 | M21: 5017 | N21: 2465 | O21: 2358 | P21: 4823 | Q21: 35～39
A22: 40～44 | B22: 2361 | C22: 2308 | D22: 4669 | E22: 2480 | F22: 2402 | G22: 4882 | H22: 2501 | I22: 2423 | J22: 4924 | K22: 2542 | L22: 2532 | M22: 5074 | N22: 2591 | O22: 2567 | P22: 5158 | Q22: 40～44
A23: 45～49 | B23: 2204 | C23: 2224 | D23: 4428 | E23: 2122 | F23: 2208 | G23: 4330 | H23: 2176 | I23: 2258 | J23: 4434 | K23: 2239 | L23: 2296 | M23: 4535 | N23: 2324 | O23: 2357 | P23: 4681 | Q23: 45～49
A24: 50～54 | B24: 2089 | C24: 2108 | D24: 4197 | E24: 2095 | F24: 2081 | G24: 4176 | H24: 2120 | I24: 2113 | J24: 4233 | K24: 2115 | L24: 2169 | M24: 4284 | N24: 2134 | O24: 2204 | P24: 4338 | Q24: 50～54
A25: 55～59 | B25: 2440 | C25: 2571 | D25: 5011 | E25: 2348 | F25: 2490 | G25: 4838 | H25: 2225 | I25: 2372 | J25: 4597 | K25: 2142 | L25: 2209 | M25: 4351 | N25: 2105 | O25: 2126 | P25: 4231 | Q25: 55～59
A26: 60～64 | B26: 2606 | C26: 2739 | D26: 5345 | E26: 2737 | F26: 2875 | G26: 5612 | H26: 2805 | I26: 2924 | J26: 5729 | K26: 2748 | L26: 2852 | M26: 5600 | N26: 2551 | O26: 2703 | P26: 5254 | Q26: 60～64
A28: 老年人口 | Q28: 老年人口
A29: 65歳以上 | B29: =SUM(B31:B37) -> 6304 | C29: 7818 | D29: 14122 | E29: 6489 | F29: 8058 | G29: 14547 | H29: =SUM(H31:H37) -> 6715 | I29: =SUM(I31:I37) -> 8384 | J29: =SUM(H29:I29) -> 15099 | K29: =SUM(K30:K37) -> 7006 | L29: =SUM(L30:L37) -> 8800 | M29: =SUM(M31:M37) -> 15806 | N29: =SUM(N31:N37) -> 7359 | O29: =SUM(O30:O37) -> 9246 | P29: =SUM(P31:P37) -> 16605 | Q29: 65歳以上
D30: ="("&ROUND(D29/(D$15+D$8+D$29)*100,1)&"%)" -> (20.5%) | G30: ="("&ROUND(G29/(G$15+G$8+G$29)*100,1)&"%)" -> (21.1%) | J30: ="("&ROUND(J29/(J$15+J$8+J$29)*100,1)&"%)" -> (21.8%) | M30: ="("&"23.0%"&")" -> (23.0%) | P30: ="("&ROUND(P29/(P$15+P$8+P$29)*100,1)&"%)" -> (24.1%)
A31: 65歳～69歳 | B31: 1873 | C31: 2195 | D31: =SUM(B31:C31) -> 4068 | E31: 1880 | F31: 2133 | G31: =SUM(E31:F31) -> 4013 | H31: 1930 | I31: 2155 | J31: =SUM(H31:I31) -> 4085 | K31: 2114 | L31: 2338 | M31: =SUM(K31:L31) -> 4452 | N31: 2332 | O31: 2530 | P31: =SUM(N31:O31) -> 4862 | Q31: 65歳～69歳
A32: 70～74 | B32: 1650 | C32: 1950 | D32: 3600 | E32: 1658 | F32: 1995 | G32: 3653 | H32: 1676 | I32: 2075 | J32: 3751 | K32: 1676 | L32: 2086 | M32: 3762 | N32: 1721 | O32: 2136 | P32: 3857 | Q32: 70～74
A33: 75～79 | B33: 1405 | C33: 1557 | D33: 2962 | E33: 1444 | F33: 1667 | G33: 3111 | H33: 1484 | I33: 1758 | J33: 3242 | K33: 1494 | L33: 1815 | M33: 3309 | N33: 1493 | O33: 1870 | P33: =SUM(N33:O33) -> 3363 | Q33: 75～79
A34: 80～84 | B34: 921 | C34: 1092 | D34: 2013 | E34: 992 | F34: 1159 | G34: 2151 | H34: 1026 | I34: 1191 | J34: 2217 | K34: 1065 | L34: 1272 | M34: 2337 | N34: 1066 | O34: 1338 | P34: 2404 | Q34: 80～84
A35: 85～89 | B35: 321 | C35: 649 | D35: 970 | E35: 364 | F35: 698 | G35: 1062 | H35: 428 | I35: 755 | J35: 1183 | K35: 499 | L35: 783 | M35: 1282 | N35: 576 | O35: 840 | P35: 1416 | Q35: 85～89
A36: 90～94 | B36: 107 | C36: 286 | D36: 393 | E36: 116 | F36: 306 | G36: 422 | H36: 131 | I36: 344 | J36: 475 | K36: 122 | L36: 387 | M36: 509 | N36: 133 | O36: 406 | P36: 539 | Q36: 90～94
A37: 95歳以上 | B37: 27 | C37: 89 | D37: 116 | E37: 35 | F37: 100 | G37: 135 | H37: 40 | I37: 106 | J37: 146 | K37: 36 | L37: 119 | M37: 155 | N37: 38 | O37: 126 | P37: 164 | Q37: 95歳以上
A38: 〈資料〉生活環境部市民課、住民基本台帳

Sheet 人口動態、外国人登録人口
A1: ４）人口動態(届出数)
K2: (各年･月中)
A3: 年 月 | B3: 増 減 | C3: 自 然 動 態 | F3: 社 会 動 態 | I3: 職権による | L3: 婚 姻 | M3: 離 婚
B4: 人 口 | C4: 出 生 | D4: 死 亡 | E4: 増 減 | F4: 転 入 | G4: 転 出 | H4: 増 減 | I4: 増 加 | J4: 減 少 | K4: 増 減
A5: 16年 | B5: 235 | C5: 613 | D5: 404 | E5: 209 | F5: 3609 | G5: 3620 | H5: △ 11 | I5: 51 | J5: 14 | K5: 37 | L5: 726 | M5: 247
A6: 17年 | B6: 415 | C6: 578 | D6: 438 | E6: 140 | F6: 3604 | G6: 3471 | H6: 291 | I6: 30 | J6: 46 | K6: △ 16 | L6: 673 | M6: 183
A7: 18年 | B7: 396 | C7: 568 | D7: 434 | E7: 134 | F7: 3718 | G7: 3463 | H7: 247 | I7: 29 | J7: 14 | K7: 15 | L7: 777 | M7: 226
A8: 19年 | B8: 473 | C8: 618 | D8: 490 | E8: 128 | F8: 3575 | G8: 3257 | H8: 318 | I8: 35 | J8: 8 | K8: 27 | L8: 740 | M8: 225
A9: 20年 | B9: 167 | C9: 576 | D9: 496 | E9: 80 | F9: 3481 | G9: 3417 | H9: 64 | I9: 32 | J9: 9 | K9: 23 | L9: 813 | M9: 230
A10: 21年 | B10: △ 31 | C10: 552 | D10: 501 | E10: 51 | F10: 3178 | G10: 3278 | H10: △ 100 | I10: 28 | J10: 10 | K10: 18 | L10: 773 | M10: 227
A11: 22年 | B11: 143 | C11: 551 | D11: 499 | E11: 52 | F11: 3046 | G11: 2976 | H11: 70 | I11: 23 | J11: 2 | K11: 21 | L11: 843 | M11: 245
A12: 23年 | B12: 64 | C12: 523 | D12: 500 | E12: 23 | F12: 3012 | G12: 2996 | H12: 16 | I12: 29 | J12: 4 | K12: 25 | L12: 744 | M12: 213
A13: 24年 | B13: 242 | C13: 508 | D13: 590 | E13: -82 | F13: 2945 | G13: 2871 | H13: 74 | I13: 264 | J13: 14 | K13: 250 | L13: 775 | M13: 224
A14: 25年 | B14: -294 | C14: 510 | D14: 583 | E14: -73 | F14: 2956 | G14: 3159 | H14: -203 | I14: 17 | J14: 35 | K14: -18 | L14: 744 | M14: 203
A15: 26年 | B15: =SUM(B16:B27) -> 63 | C15: =SUM(C16:C27) -> 498 | D15: 607 | E15: -109 | F15: 3194 | G15: 3014 | H15: 180 | I15: 19 | J15: 27 | K15: -8 | L15: 698 | M15: 205
A16: 1月 | B16: -16 | C16: 48 | D16: 69 | E16: -21 | F16: 131 | G16: 128 | H16: 3 | I16: 2 | J16: 0 | K16: 2 | L16: 44 | M16: 16
A17: 2月 | B17: 0 | C17: 56 | D17: 42 | E17: 14 | F17: 129 | G17: 144 | H17: -15 | I17: 1 | J17: 0 | K17: 1 | L17: 59 | M17: 12
A18: 3月 | B18: -126 | C18: 30 | D18: 52 | E18: -22 | F18: 742 | G18: 847 | H18: -105 | I18: 1 | J18: 0 | K18: 1 | L18: 77 | M18: 15
A19: 4月 | B19: 98 | C19: 39 | D19: 47 | E19: -8 | F19: 529 | G19: 419 | H19: 110 | I19: 3 | J19: 7 | K19: -4 | L19: 56 | M19: 20
A20: 5月 | B20: -40 | C20: 39 | D20: 40 | E20: -1 | F20: 164 | G20: 203 | H20: -39 | I20: 3 | J20: 3 | K20: 0 | L20: 53 | M20: 20
A21: 6月 | B21: -29 | C21: 35 | D21: 47 | E21: -12 | F21: 149 | G21: 159 | H21: -10 | I21: 0 | J21: 7 | K21: -7 | L21: 49 | M21: 17
A22: 7月 | B22: 102 | C22: 50 | D22: 53 | E22: -3 | F22: 274 | G22: 165 | H22: 109 | I22: 1 | J22: 5 | K22: -4 | L22: 67 | M22: 24
A23: 8月 | B23: 61 | C23: 49 | D23: 47 | E23: 2 | F23: 262 | G23: 203 | H23: 59 | I23: 1 | J23: 1 | K23: 0 | L23: 60 | M23: 19
A24: 9月 | B24: 7 | C24: 44 | D24: 50 | E24: -6 | F24: 226 | G24: 215 | H24: 11 | I24: 2 | J24: 0 | K24: 2 | L24: 50 | M24: 10
A25: 10月 | B25: -18 | C25: 37 | D25: 66 | E25: -29 | F25: 217 | G25: 206 | H25: 11 | I25: 2 | J25: 2 | K25: 0 | L25: 53 | M25: 21
A26: 11月 | B26: -3 | C26: 29 | D26: 47 | E26: -18 | F26: 188 | G26: 174 | H26: 14 | I26: 2 | J26: 1 | K26: 1 | L26: 67 | M26: 19
A27: 12月 | B27: 27 | C27: 42 | D27: 47 | E27: -5 | F27: 183 | G27: 151 | H27: 32 | I27: 1 | J27: 1 | K27: 0 | L27: 63 | M27: 12
A28: 〈資料〉生活環境部市民課
A29: 注) 婚姻､離婚の件数は､恵庭市で受理した分と他市町村で受理して恵庭に送付された分との合 算である。
A33: ５）外国人住民の人口
I34: (各年度３月)
A35: 区 分 | C35: 平成21年度 | F35: 平成22年度 | I35: 平成23年度
C36: 計 | D36: 男 | E36: 女 | F36: 計 | G36: 男 | H36: 女 | I36: 計 | J36: 男 | K36: 女
A37: 韓国、朝鮮 | C37: 69 | D37: 29 | E37: 40 | F37: 67 | G37: 32 | H37: 35 | I37: =SUM(J37:K37) -> 55 | J37: 27 | K37: 28
A38: 中国 | C38: 108 | D38: 42 | E38: 66 | F38: 106 | G38: 37 | H38: 69 | I38: =SUM(J38:K38) -> 139 | J38: 43 | K38: 96
A39: フィリピン | C39: 11 | D39: 1 | E39: 10 | F39: 15 | G39: 3 | H39: 12 | I39: 13 | J39: 3 | K39: 10
A40: アメリカ | C40: 11 | D40: 10 | E40: 1 | F40: 10 | G40: 9 | H40: 1 | I40: 9 | J40: 8 | K40: 1
A41: ロシア | C41: =D41+E41 -> 8 | D41: 4 | E41: 4 | F41: 7 | G41: 3 | H41: 4 | I41: 4 | J41: 3 | K41: 1
A42: その他 | C42: 26 | D42: 12 | E42: 14 | F42: 26 | G42: 11 | H42: 15 | I42: 29 | J42: 12 | K42: 17
A43: 合計 | C43: =SUM(C37:C42) -> 233 | D43: 98 | E43: 135 | F43: 231 | G43: 95 | H43: 136 | I43: 249 | J43: 96 | K43: 153
A45: 区 分 | C45: 平成24年度 | F45: 平成25年度 | I45: 平成26年度
C46: 計 | D46: 男 | E46: 女 | F46: 計 | G46: 男 | H46: 女 | I46: 計 | J46: 男 | K46: 女
A47: 韓国、朝鮮 | C47: 52 | D47: 27 | E47: 25 | F47: 47 | G47: 24 | H47: 23 | I47: 47 | J47: 24 | K47: 23
A48: 中国 | C48: 120 | D48: 41 | E48: 79 | F48: 135 | G48: 48 | H48: 87 | I48: 101 | J48: 41 | K48: 60
A49: フィリピン | C49: 11 | D49: 2 | E49: 9 | F49: 13 | G49: 2 | H49: 11 | I49: 14 | J49: 3 | K49: 11
A50: アメリカ | C50: 5 | D50: 4 | E50: 1 | F50: 4 | G50: 3 | H50: 1 | I50: 6 | J50: 6 | K50: 0
A51: ロシア | C51: 3 | D51: 2 | E51: 1 | F51: 1 | G51: 0 | H51: 1 | I51: 1 | J51: 0 | K51: 1
A52: その他 | C52: 29 | D52: 12 | E52: 17 | F52: 35 | G52: 15 | H52: 20 | I52: 38 | J52: 21 | K52: 17
A53: 合計 | C53: =SUM(C47:C52) -> 220 | D53: 88 | E53: 132 | F53: 235 | G53: 92 | H53: 143 | I53: 207 | J53: 95 | K53: 112
A54: 〈資料〉生活環境部市民課
A55: 注）平成２４年７月９日から外国人の方も住民基本台帳法の対象となり、 平成２４年７月末からの「町名別人口調べ」が外国人住民を含む集計となりました。
B57: ＊年度末集計に変更

Sheet 社会動態（道内）
A1: ６）社会動態（道内）
L2: （各年中）
A3: 区 分 | C3: 22 年 | E3: 23 年 | G3: 24 年 | I3: 25 年 | K3: 26年
C4: 転 入 | D4: 転 出 | E4: 転 入 | F4: 転 出 | G4: 転 入 | H4: 転 出 | I4: 転 入 | J4: 転 出 | K4: 転 入 | L4: 転 出
A5: 全道計 | C5: 2398 | D5: 2220 | E5: 2404 | F5: 2276 | G5: 2235 | H5: 2083 | I5: 2242 | J5: 2308 | K5: 2536 | L5: 2186
A7: 市部計 | C7: 1955 | D7: 1913 | E7: 1976 | F7: 2003 | G7: 1886 | H7: 1798 | I7: 1900 | J7: 2057 | K7: 2137 | L7: 1897
A9: 札幌 | C9: 663 | D9: 846 | E9: 754 | F9: 831 | G9: 656 | H9: 856 | I9: 694 | J9: 988 | K9: 804 | L9: 906
B10: 中央区 | C10: 84 | D10: 137 | E10: 100 | F10: 99 | G10: 87 | H10: 102 | I10: 88 | J10: 148 | K10: 79 | L10: 118
B11: 北区 | C11: 68 | D11: 64 | E11: 59 | F11: 63 | G11: 64 | H11: 71 | I11: 60 | J11: 100 | K11: 76 | L11: 89
B12: 東区 | C12: 67 | D12: 84 | E12: 79 | F12: 110 | G12: 66 | H12: 97 | I12: 69 | J12: 114 | K12: 78 | L12: 97
B13: 白石区 | C13: 85 | D13: 126 | E13: 115 | F13: 124 | G13: 88 | H13: 145 | I13: 104 | J13: 144 | K13: 106 | L13: 121
B14: 豊平区 | C14: 106 | D14: 107 | E14: 114 | F14: 114 | G14: 94 | H14: 122 | I14: 96 | J14: 130 | K14: 86 | L14: 116
B15: 南区 | C15: 62 | D15: 79 | E15: 73 | F15: 73 | G15: 64 | H15: 74 | I15: 82 | J15: 77 | K15: 175 | L15: 96
B16: 西区 | C16: 59 | D16: 58 | E16: 62 | F16: 83 | G16: 48 | H16: 46 | I16: 57 | J16: 67 | K16: 45 | L16: 62
B17: 厚別区 | C17: 67 | D17: 89 | E17: 67 | F17: 72 | G17: 47 | H17: 85 | I17: 67 | J17: 92 | K17: 68 | L17: 96
B18: 手稲区 | C18: 23 | D18: 28 | E18: 39 | F18: 37 | G18: 28 | H18: 37 | I18: 18 | J18: 40 | K18: 23 | L18: 43
B19: 清田区 | C19: 42 | D19: 74 | E19: 46 | F19: 56 | G19: 70 | H19: 77 | I19: 53 | J19: 76 | K19: 68 | L19: 68
A20: 函館 | C20: 57 | D20: 53 | E20: 46 | F20: 46 | G20: 43 | H20: 39 | I20: 64 | J20: 62 | K20: 55 | L20: 40
A21: 小樽 | C21: 15 | D21: 19 | E21: 33 | F21: 18 | G21: 23 | H21: 17 | I21: 31 | J21: 25 | K21: 26 | L21: 16
A22: 旭川 | C22: 97 | D22: 49 | E22: 85 | F22: 87 | G22: 88 | H22: 66 | I22: 58 | J22: 62 | K22: 97 | L22: 67
A23: 室蘭 | C23: 26 | D23: 26 | E23: 28 | F23: 27 | G23: 29 | H23: 20 | I23: 28 | J23: 28 | K23: 34 | L23: 19
A24: 釧路 | C24: 44 | D24: 22 | E24: 44 | F24: 22 | G24: 29 | H24: 17 | I24: 46 | J24: 27 | K24: 43 | L24: 21
A25: 帯広 | C25: 48 | D25: 64 | E25: 52 | F25: 33 | G25: 59 | H25: 53 | I25: 55 | J25: 38 | K25: 40 | L25: 41
A26: 北見 | C26: 20 | D26: 24 | E26: 18 | F26: 14 | G26: 27 | H26: 13 | I26: 22 | J26: 29 | K26: 27 | L26: 23
A27: 夕張 | C27: 11 | D27: 3 | E27: 4 | F27: 4 | G27: 11 | H27: 3 | I27: 10 | J27: 0 | K27: 5 | L27: 5
A28: 岩見沢 | C28: 47 | D28: 30 | E28: 32 | F28: 33 | G28: 27 | H28: 36 | I28: 48 | J28: 26 | K28: 43 | L28: 34
A29: 網走 | C29: 20 | D29: 9 | E29: 11 | F29: 13 | G29: 8 | H29: 10 | I29: 5 | J29: 4 | K29: 19 | L29: 6
A30: 留萌 | C30: 5 | D30: 2 | E30: 9 | F30: 6 | G30: 7 | H30: 10 | I30: 11 | J30: 6 | K30: 26 | L30: 7
A31: 苫小牧 | C31: 110 | D31: 101 | E31: 96 | F31: 108 | G31: 98 | H31: 97 | I31: 94 | J31: 109 | K31: 121 | L31: 87
A32: 稚内 | C32: 10 | D32: 9 | E32: 9 | F32: 8 | G32: 18 | H32: 6 | I32: 15 | J32: 6 | K32: 8 | L32: 8
A33: 美唄 | C33: 8 | D33: 4 | E33: 7 | F33: 12 | G33: 10 | H33: 8 | I33: 14 | J33: 12 | K33: 17 | L33: 12
A34: 芦別 | C34: 3 | D34: 1 | E34: 0 | F34: 0 | G34: 3 | H34: 1 | I34: 6 | J34: 1 | K34: 2 | L34: 0
A35: 江別 | C35: 48 | D35: 72 | E35: 70 | F35: 54 | G35: 63 | H35: 52 | I35: 54 | J35: 28 | K35: 43 | L35: 50
A36: 赤平 | C36: 5 | D36: 2 | E36: 6 | F36: 1 | G36: 2 | H36: 1 | I36: 2 | J36: 0 | K36: 4 | L36: 1
A37: 紋別 | C37: 10 | D37: 5 | E37: 6 | F37: 3 | G37: 7 | H37: 2 | I37: 2 | J37: 3 | K37: 8 | L37: 5
A38: 士別 | C38: 7 | D38: 5 | E38: 5 | F38: 4 | G38: 3 | H38: 5 | I38: 5 | J38: 2 | K38: 8 | L38: 2
A39: 名寄 | C39: 23 | D39: 18 | E39: 21 | F39: 19 | G39: 26 | H39: 30 | I39: 30 | J39: 20 | K39: 31 | L39: 30
A40: 三笠 | C40: 4 | D40: 5 | E40: 4 | F40: 3 | G40: 3 | H40: 3 | I40: 3 | J40: 4 | K40: 1 | L40: 1
A41: 根室 | C41: 20 | D41: 0 | E41: 7 | F41: 4 | G41: 9 | H41: 2 | I41: 3 | J41: 5 | K41: 11 | L41: 4
A42: 千歳 | C42: 441 | D42: 382 | E42: 407 | F42: 445 | G42: 444 | H42: 286 | I42: 419 | J42: 409 | K42: 486 | L42: 362
A43: 滝川 | C43: 11 | D43: 8 | E43: 12 | F43: 16 | G43: 23 | H43: 13 | I43: 10 | J43: 9 | K43: 20 | L43: 12
A44: 砂川 | C44: 7 | D44: 9 | E44: 10 | F44: 6 | G44: 3 | H44: 3 | I44: 5 | J44: 5 | K44: 5 | L44: 2
A45: 歌志内 | C45: 2 | D45: 0 | E45: 0 | F45: 3 | G45: 2 | H45: 1 | I45: 0 | J45: 0 | K45: 1 | L45: 0
A46: 深川 | C46: 4 | D46: 2 | E46: 8 | F46: 2 | G46: 3 | H46: 1 | I46: 3 | J46: 4 | K46: 5 | L46: 4
A47: 富良野 | C47: 1 | D47: 2 | E47: 11 | F47: 9 | G47: 7 | H47: 7 | I47: 15 | J47: 4 | K47: 2 | L47: 4
A48: 登別 | C48: 42 | D48: 18 | E48: 48 | F48: 32 | G48: 30 | H48: 19 | I48: 32 | J48: 25 | K48: 33 | L48: 24
A49: 伊達 | C49: 12 | D49: 12 | E49: 8 | F49: 10 | G49: 11 | H49: 9 | I49: 14 | J49: 16 | K49: 8 | L49: 12
A50: 北広島 | C50: 110 | D50: 96 | E50: 82 | F50: 110 | G50: 88 | H50: 85 | I50: 74 | J50: 82 | K50: 90 | L50: 75
A51: 石狩 | C51: 16 | D51: 8 | E51: 22 | F51: 11 | G51: 14 | H51: 23 | I51: 15 | J51: 10 | K51: 11 | L51: 8
A52: 北斗 | C52: 8 | D52: 7 | E52: 20 | F52: 8 | G52: 12 | H52: 4 | I52: 13 | J52: 8 | K52: 3 | L52: 9
A54: 郡部計 | C54: 449 | D54: 293 | E54: 443 | F54: 307 | G54: 428 | H54: 273 | I54: 342 | J54: 251 | K54: 399 | L54: 289
A55: 〈資料〉北海道統計 | K55: （単位：人）
A56: 注）北海道による住民基本台帳移動報告については「外国人住民」を含めていない。

Sheet 社会動態（道外）
A1: ７）社会動態（道外）
J2: （各年中）
A3: 区 分 | B3: 22 年 | D3: 23 年 | F3: 24 年 | H3: 25 年 | J3: 26 年
B4: 転 入 | C4: 転 出 | D4: 転 入 | E4: 転 出 | F4: 転 入 | G4: 転 出 | H4: 転 入 | I4: 転 出 | J4: 転 入 | K4: 転 出
A5: 総数 | B5: =B7+B8+B9 -> 3042 | C5: =C7+C8+C9 -> 2987 | D5: 3011 | E5: 2975 | F5: 2920 | G5: 2803 | H5: =SUM(H7:H9) -> 2872 | I5: =SUM(I7:I9) -> 3095 | J5: 3121 | K5: 2946
A7: 道内 | B7: 2398 | C7: 2220 | D7: 2404 | E7: 2276 | F7: 2235 | G7: 2083 | H7: 2242 | I7: 2308 | J7: 2536 | K7: 2186
A8: 道外 | B8: 598 | C8: 729 | D8: 572 | E8: 649 | F8: 641 | G8: 694 | H8: 579 | I8: 731 | J8: 536 | K8: 701
A9: 国外 | B9: 46 | C9: 38 | D9: 35 | E9: 50 | F9: 44 | G9: 26 | H9: 51 | I9: 56 | J9: 49 | K9: 59
A11: 東北 | B11: 100 | C11: 81 | D11: 99 | E11: 70 | F11: 80 | G11: 86 | H11: 81 | I11: 104 | J11: 90 | K11: 97
A12: 関東 | B12: 296 | C12: 382 | D12: 264 | E12: 385 | F12: 346 | G12: 358 | H12: 260 | I12: 391 | J12: 257 | K12: 346
A13: （うち東京都） | B13: -106 | C13: -127 | D13: (71) | E13: (125) | F13: -103 | G13: -155 | H13: -76 | I13: -132 | J13: -93 | K13: -106
A14: （うち神奈川県） | B14: -63 | C14: -73 | D14: (71) | E14: (90) | F14: -67 | G14: -79 | H14: -58 | I14: -101 | J14: -71 | K14: -100
A15: 北陸 | B15: 8 | C15: 13 | D15: 16 | E15: 11 | F15: 8 | G15: 12 | H15: 13 | I15: 16 | J15: 9 | K15: 8
A16: 中部 | B16: 82 | C16: 98 | D16: 79 | E16: 44 | F16: 77 | G16: 73 | H16: 69 | I16: 73 | J16: 91 | K16: 106
A17: 近畿 | B17: 48 | C17: 83 | D17: 42 | E17: 63 | F17: 71 | G17: 82 | H17: 71 | I17: 73 | J17: 42 | K17: 63
A18: 中国 | B18: 11 | C18: 17 | D18: 10 | E18: 18 | F18: 13 | G18: 10 | H18: 16 | I18: 14 | J18: 9 | K18: 18
A19: 四国 | B19: 5 | C19: 2 | D19: 7 | E19: 4 | F19: 3 | G19: 7 | H19: 9 | I19: 5 | J19: 6 | K19: 8
A20: 九州 | B20: 39 | C20: 46 | D20: 44 | E20: 46 | F20: 34 | G20: 54 | H20: 45 | I20: 45 | J20: 24 | K20: 39
A21: 沖縄 | B21: 9 | C21: 7 | D21: 11 | E21: 8 | F21: 9 | G21: 12 | H21: 15 | I21: 10 | J21: 8 | K21: 16
A22: 〈資料〉北海道統計 | J22: （単位：人）
A23: 注）住所設定（従前の住所無）により転入したものを除く。
A24: 注）北陸は新潟･富山･石川･福井の４県、中部は山梨･長野･岐阜･静岡･愛知の５県、近畿は滋賀・京都・ 大阪･兵庫･奈良･和歌山･三重の２府５県として集計した｡
A26: 注）北海道による住民基本台帳移動報告については「外国人住民」を含めていない。

Sheet 町内別年齢別人口①
A1: ８）町内別年齢別人口(５歳階級)
X2: 平成26年9月末現在
A3: 町 名 | B3: 総数 | C3: 0歳～ 4歳 | D3: 5歳～ 9歳 | E3: 10歳～ 14歳 | F3: 15歳～ 19歳 | G3: 20歳～ 24歳 | H3: 25歳～ 29歳 | I3: 30歳～ 34歳 | J3: 35歳～ 39歳 | K3: 40歳～ 44歳 | L3: 45歳～ 49歳 | M3: 50歳～ 54歳 | N3: 55歳～59歳 | O3: 60歳～64歳 | P3: 65歳～69歳 | Q3: 70歳～74歳 | R3: 75歳～79歳 | S3: 80歳～84歳 | T3: 85歳～89歳 | U3: 90歳～94歳 | V3: 95歳～99歳 | W3: 100歳以上 | X3: 町 名
A4: 漁太 | B4: 157 | C4: 5 | D4: 1 | E4: 3 | F4: 1 | G4: 5 | H4: 4 | I4: 2 | J4: 11 | K4: 6 | L4: 13 | M4: 6 | N4: 18 | O4: 18 | P4: 7 | Q4: 22 | R4: 18 | S4: 8 | T4: 4 | U4: 4 | V4: 1 | W4: 0 | X4: 漁太
A5: 林田 | B5: 40 | C5: 1 | D5: 0 | E5: 0 | F5: 0 | G5: 1 | H5: 0 | I5: 0 | J5: 2 | K5: 2 | L5: 1 | M5: 2 | N5: 4 | O5: 6 | P5: 4 | Q5: 5 | R5: 3 | S5: 6 | T5: 2 | U5: 0 | V5: 1 | W5: 0 | X5: 林田
A6: 春日 | B6: 141 | C6: 3 | D6: 5 | E6: 2 | F6: 2 | G6: 6 | H6: 6 | I6: 7 | J6: 3 | K6: 6 | L6: 8 | M6: 13 | N6: 9 | O6: 9 | P6: 16 | Q6: 13 | R6: 9 | S6: 12 | T6: 8 | U6: 3 | V6: 1 | W6: 0 | X6: 春日
A7: 中央 | B7: 220 | C7: 12 | D7: 13 | E7: 8 | F7: 7 | G7: 3 | H7: 10 | I7: 18 | J7: 10 | K7: 6 | L7: 12 | M7: 9 | N7: 23 | O7: 25 | P7: 14 | Q7: 11 | R7: 16 | S7: 12 | T7: 8 | U7: 2 | V7: 1 | W7: 0 | X7: 中央
A8: 上山口 | B8: 203 | C8: 5 | D8: 4 | E8: 5 | F8: 10 | G8: 5 | H8: 7 | I8: 10 | J8: 10 | K8: 10 | L8: 13 | M8: 7 | N8: 19 | O8: 21 | P8: 21 | Q8: 11 | R8: 19 | S8: 11 | T8: 9 | U8: 2 | V8: 4 | W8: 0 | X8: 上山口
A9: 戸磯 | B9: 151 | C9: 4 | D9: 3 | E9: 1 | F9: 5 | G9: 6 | H9: 7 | I9: 14 | J9: 5 | K9: 2 | L9: 10 | M9: 11 | N9: 14 | O9: 21 | P9: 14 | Q9: 5 | R9: 8 | S9: 8 | T9: 6 | U9: 5 | V9: 2 | W9: 0 | X9: 戸磯
A10: 恵南 | B10: 763 | C10: 19 | D10: 16 | E10: 17 | F10: 61 | G10: 115 | H10: 60 | I10: 42 | J10: 51 | K10: 46 | L10: 38 | M10: 50 | N10: 47 | O10: 60 | P10: 47 | Q10: 38 | R10: 30 | S10: 11 | T10: 12 | U10: 2 | V10: 1 | W10: 0 | X10: 恵南
A11: 和光町１ 丁目 | B11: 454 | C11: 20 | D11: 20 | E11: 20 | F11: 22 | G11: 24 | H11: 11 | I11: 22 | J11: 37 | K11: 45 | L11: 23 | M11: 25 | N11: 22 | O11: 28 | P11: 45 | Q11: 31 | R11: 31 | S11: 18 | T11: 9 | U11: 1 | V11: 0 | W11: 0 | X11: 和光町１ 丁目
A12: 和光町２ 丁目 | B12: 583 | C12: 26 | D12: 33 | E12: 44 | F12: 41 | G12: 24 | H12: 19 | I12: 35 | J12: 33 | K12: 68 | L12: 48 | M12: 44 | N12: 29 | O12: 36 | P12: 38 | Q12: 24 | R12: 17 | S12: 14 | T12: 6 | U12: 4 | V12: 0 | W12: 0 | X12: 和光町２ 丁目
A13: 和光町３ 丁目 | B13: 501 | C13: 22 | D13: 36 | E13: 22 | F13: 28 | G13: 31 | H13: 20 | I13: 26 | J13: 48 | K13: 33 | L13: 31 | M13: 22 | N13: 29 | O13: 31 | P13: 29 | Q13: 38 | R13: 22 | S13: 16 | T13: 13 | U13: 4 | V13: 0 | W13: 0 | X13: 和光町３ 丁目
A14: 和光町４ 丁目 | B14: 457 | C14: 23 | D14: 25 | E14: 26 | F14: 23 | G14: 30 | H14: 23 | I14: 28 | J14: 32 | K14: 39 | L14: 36 | M14: 26 | N14: 15 | O14: 33 | P14: 33 | Q14: 33 | R14: 13 | S14: 11 | T14: 5 | U14: 2 | V14: 1 | W14: 0 | X14: 和光町４ 丁目
A15: 和光町５ 丁目 | B15: 879 | C15: 67 | D15: 45 | E15: 50 | F15: 63 | G15: 77 | H15: 55 | I15: 62 | J15: 92 | K15: 81 | L15: 58 | M15: 48 | N15: 22 | O15: 38 | P15: 37 | Q15: 25 | R15: 22 | S15: 22 | T15: 11 | U15: 4 | V15: 0 | W15: 0 | X15: 和光町５ 丁目
A16: 駒場町１ 丁目 | B16: 660 | C16: 25 | D16: 19 | E16: 23 | F16: 35 | G16: 45 | H16: 34 | I16: 33 | J16: 50 | K16: 51 | L16: 57 | M16: 54 | N16: 41 | O16: 46 | P16: 42 | Q16: 37 | R16: 27 | S16: 22 | T16: 14 | U16: 4 | V16: 1 | W16: 0 | X16: 駒場町１ 丁目
A17: 駒場町２ 丁目 | B17: 383 | C17: 29 | D17: 26 | E17: 13 | F17: 15 | G17: 8 | H17: 21 | I17: 32 | J17: 34 | K17: 25 | L17: 25 | M17: 15 | N17: 18 | O17: 26 | P17: 20 | Q17: 32 | R17: 21 | S17: 11 | T17: 8 | U17: 2 | V17: 2 | W17: 0 | X17: 駒場町２ 丁目
A18: 駒場町３ 丁目 | B18: 306 | C18: 15 | D18: 8 | E18: 7 | F18: 15 | G18: 19 | H18: 19 | I18: 18 | J18: 14 | K18: 20 | L18: 23 | M18: 26 | N18: 27 | O18: 25 | P18: 19 | Q18: 11 | R18: 24 | S18: 11 | T18: 3 | U18: 2 | V18: 0 | W18: 0 | X18: 駒場町３ 丁目
A19: 駒場町４ 丁目 | B19: 375 | C19: 14 | D19: 12 | E19: 13 | F19: 17 | G19: 13 | H19: 25 | I19: 13 | J19: 17 | K19: 32 | L19: 22 | M19: 19 | N19: 31 | O19: 35 | P19: 35 | Q19: 32 | R19: 21 | S19: 10 | T19: 13 | U19: 1 | V19: 0 | W19: 0 | X19: 駒場町４ 丁目
A20: 駒場町５ 丁目 | B20: 210 | C20: 8 | D20: 8 | E20: 10 | F20: 10 | G20: 7 | H20: 2 | I20: 12 | J20: 13 | K20: 12 | L20: 12 | M20: 15 | N20: 11 | O20: 21 | P20: 21 | Q20: 21 | R20: 11 | S20: 9 | T20: 4 | U20: 2 | V20: 1 | W20: 0 | X20: 駒場町５ 丁目
A21: 駒場町６ 丁目 | B21: 265 | C21: 11 | D21: 13 | E21: 13 | F21: 12 | G21: 10 | H21: 12 | I21: 11 | J21: 17 | K21: 23 | L21: 20 | M21: 11 | N21: 14 | O21: 15 | P21: 24 | Q21: 23 | R21: 18 | S21: 8 | T21: 5 | U21: 3 | V21: 2 | W21: 0 | X21: 駒場町６ 丁目
A22: 白樺町１ 丁目 | B22: 388 | C22: 12 | D22: 20 | E22: 17 | F22: 29 | G22: 21 | H22: 18 | I22: 30 | J22: 29 | K22: 24 | L22: 34 | M22: 48 | N22: 31 | O22: 18 | P22: 12 | Q22: 12 | R22: 20 | S22: 4 | T22: 5 | U22: 3 | V22: 1 | W22: 0 | X22: 白樺町１ 丁目
A23: 白樺町２ 丁目 | B23: 329 | C23: 4 | D23: 4 | E23: 10 | F23: 26 | G23: 16 | H23: 10 | I23: 9 | J23: 21 | K23: 22 | L23: 25 | M23: 17 | N23: 34 | O23: 32 | P23: 32 | Q23: 35 | R23: 10 | S23: 13 | T23: 7 | U23: 1 | V23: 1 | W23: 0 | X23: 白樺町２ 丁目
A24: 白樺町３ 丁目 | B24: 685 | C24: 19 | D24: 35 | E24: 55 | F24: 63 | G24: 36 | H24: 22 | I24: 18 | J24: 49 | K24: 53 | L24: 65 | M24: 80 | N24: 46 | O24: 48 | P24: 33 | Q24: 24 | R24: 27 | S24: 8 | T24: 2 | U24: 2 | V24: 0 | W24: 0 | X24: 白樺町３ 丁目
A25: 白樺町４ 丁目 | B25: 31 | C25: 2 | D25: 2 | E25: 4 | F25: 2 | G25: 1 | H25: 1 | I25: 4 | J25: 2 | K25: 4 | L25: 2 | M25: 6 | N25: 1 | O25: 0 | P25: 0 | Q25: 0 | R25: 0 | S25: 0 | T25: 0 | U25: 0 | V25: 0 | W25: 0 | X25: 白樺町４ 丁目
A26: 黄金北１丁目 | B26: 593 | C26: 33 | D26: 31 | E26: 32 | F26: 32 | G26: 37 | H26: 45 | I26: 38 | J26: 53 | K26: 42 | L26: 37 | M26: 42 | N26: 43 | O26: 32 | P26: 33 | Q26: 22 | R26: 19 | S26: 13 | T26: 5 | U26: 4 | V26: 0 | W26: 0 | X26: 黄金北１丁目
A27: 黄金北２丁目 | B27: 554 | C27: 19 | D27: 22 | E27: 36 | F27: 39 | G27: 40 | H27: 19 | I27: 31 | J27: 29 | K27: 53 | L27: 40 | M27: 35 | N27: 29 | O27: 36 | P27: 31 | Q27: 33 | R27: 21 | S27: 18 | T27: 19 | U27: 4 | V27: 0 | W27: 0 | X27: 黄金北２丁目
A28: 黄金北３丁目 | B28: 817 | C28: 22 | D28: 32 | E28: 36 | F28: 58 | G28: 60 | H28: 58 | I28: 39 | J28: 51 | K28: 64 | L28: 51 | M28: 47 | N28: 60 | O28: 62 | P28: 53 | Q28: 54 | R28: 36 | S28: 18 | T28: 12 | U28: 3 | V28: 1 | W28: 0 | X28: 黄金北３丁目
A29: 黄金北４丁目 | B29: 712 | C29: 31 | D29: 29 | E29: 34 | F29: 45 | G29: 60 | H29: 44 | I29: 41 | J29: 61 | K29: 46 | L29: 48 | M29: 67 | N29: 54 | O29: 62 | P29: 28 | Q29: 26 | R29: 15 | S29: 9 | T29: 8 | U29: 3 | V29: 1 | W29: 0 | X29: 黄金北４丁目
A30: 黄金中央１ 丁目 | B30: 466 | C30: 30 | D30: 27 | E30: 19 | F30: 16 | G30: 36 | H30: 29 | I30: 47 | J30: 44 | K30: 45 | L30: 26 | M30: 14 | N30: 16 | O30: 17 | P30: 27 | Q30: 10 | R30: 24 | S30: 24 | T30: 10 | U30: 4 | V30: 1 | W30: 0 | X30: 黄金中央１ 丁目
A31: 黄金中央２ 丁目 | B31: 311 | C31: 8 | D31: 14 | E31: 9 | F31: 26 | G31: 44 | H31: 19 | I31: 21 | J31: 21 | K31: 24 | L31: 15 | M31: 17 | N31: 15 | O31: 19 | P31: 11 | Q31: 17 | R31: 16 | S31: 8 | T31: 7 | U31: 0 | V31: 0 | W31: 0 | X31: 黄金中央２ 丁目
A32: 黄金中央３ 丁目 | B32: 585 | C32: 32 | D32: 34 | E32: 41 | F32: 45 | G32: 54 | H32: 35 | I32: 58 | J32: 58 | K32: 62 | L32: 44 | M32: 14 | N32: 7 | O32: 31 | P32: 27 | Q32: 22 | R32: 7 | S32: 8 | T32: 6 | U32: 0 | V32: 0 | W32: 0 | X32: 黄金中央３ 丁目
A33: 黄金中央４ 丁目 | B33: 385 | C33: 6 | D33: 12 | E33: 17 | F33: 20 | G33: 36 | H33: 34 | I33: 21 | J33: 25 | K33: 29 | L33: 19 | M33: 34 | N33: 35 | O33: 44 | P33: 22 | Q33: 7 | R33: 6 | S33: 7 | T33: 8 | U33: 3 | V33: 0 | W33: 0 | X33: 黄金中央４ 丁目
A34: 黄金中央５ 丁目 | B34: 0 | C34: 0 | D34: 0 | E34: 0 | F34: 0 | G34: 0 | H34: 0 | I34: 0 | J34: 0 | K34: 0 | L34: 0 | M34: 0 | N34: 0 | O34: 0 | P34: 0 | Q34: 0 | R34: 0 | S34: 0 | T34: 0 | U34: 0 | V34: 0 | W34: 0 | X34: 黄金中央５ 丁目
A35: 黄金南１丁目 | B35: 915 | C35: 82 | D35: 107 | E35: 61 | F35: 25 | G35: 20 | H35: 28 | I35: 75 | J35: 148 | K35: 107 | L35: 51 | M35: 35 | N35: 41 | O35: 32 | P35: 36 | Q35: 21 | R35: 19 | S35: 18 | T35: 8 | U35: 1 | V35: 0 | W35: 0 | X35: 黄金南１丁目
A36: 黄金南２丁目 | B36: 675 | C36: 37 | D36: 46 | E36: 52 | F36: 37 | G36: 27 | H36: 22 | I36: 28 | J36: 62 | K36: 69 | L36: 42 | M36: 34 | N36: 38 | O36: 41 | P36: 35 | Q36: 31 | R36: 26 | S36: 19 | T36: 19 | U36: 7 | V36: 3 | W36: 0 | X36: 黄金南２丁目
A37: 黄金南３丁目 | B37: 820 | C37: 44 | D37: 82 | E37: 91 | F37: 67 | G37: 30 | H37: 20 | I37: 41 | J37: 91 | K37: 106 | L37: 83 | M37: 59 | N37: 26 | O37: 25 | P37: 10 | Q37: 16 | R37: 11 | S37: 11 | T37: 6 | U37: 1 | V37: 0 | W37: 0 | X37: 黄金南３丁目
A38: 黄金南４丁目 | B38: 886 | C38: 52 | D38: 96 | E38: 102 | F38: 63 | G38: 23 | H38: 14 | I38: 53 | J38: 112 | K38: 136 | L38: 67 | M38: 48 | N38: 21 | O38: 25 | P38: 21 | Q38: 20 | R38: 16 | S38: 9 | T38: 3 | U38: 5 | V38: 0 | W38: 0 | X38: 黄金南４丁目
A39: 黄金南５丁目 | B39: 227 | C39: 22 | D39: 35 | E39: 19 | F39: 6 | G39: 5 | H39: 8 | I39: 12 | J39: 38 | K39: 29 | L39: 14 | M39: 7 | N39: 6 | O39: 8 | P39: 10 | Q39: 6 | R39: 1 | S39: 1 | T39: 0 | U39: 0 | V39: 0 | W39: 0 | X39: 黄金南５丁目
A40: 黄金南６丁目 | B40: 312 | C40: 21 | D40: 30 | E40: 46 | F40: 20 | G40: 3 | H40: 7 | I40: 22 | J40: 40 | K40: 51 | L40: 32 | M40: 10 | N40: 1 | O40: 7 | P40: 6 | Q40: 11 | R40: 5 | S40: 0 | T40: 0 | U40: 0 | V40: 0 | W40: 0 | X40: 黄金南６丁目
A41: 黄金南７丁目 | B41: 816 | C41: 56 | D41: 109 | E41: 96 | F41: 44 | G41: 19 | H41: 23 | I41: 67 | J41: 108 | K41: 106 | L41: 83 | M41: 24 | N41: 19 | O41: 29 | P41: 14 | Q41: 12 | R41: 2 | S41: 0 | T41: 3 | U41: 2 | V41: 0 | W41: 0 | X41: 黄金南７丁目
A42: 相生町 | B42: 1815 | C42: 72 | D42: 57 | E42: 72 | F42: 61 | G42: 139 | H42: 138 | I42: 133 | J42: 124 | K42: 122 | L42: 147 | M42: 133 | N42: 104 | O42: 138 | P42: 100 | Q42: 96 | R42: 85 | S42: 49 | T42: 30 | U42: 11 | V42: 4 | W42: 0 | X42: 相生町
A43: 緑町1丁目 | B43: 164 | C43: 9 | D43: 5 | E43: 4 | F43: 8 | G43: 13 | H43: 14 | I43: 17 | J43: 13 | K43: 13 | L43: 11 | M43: 8 | N43: 6 | O43: 7 | P43: 7 | Q43: 9 | R43: 12 | S43: 3 | T43: 2 | U43: 3 | V43: 0 | W43: 0 | X43: 緑町1丁目
A44: 緑町2丁目 | B44: 715 | C44: 28 | D44: 26 | E44: 37 | F44: 39 | G44: 48 | H44: 25 | I44: 39 | J44: 43 | K44: 59 | L44: 47 | M44: 48 | N44: 34 | O44: 48 | P44: 57 | Q44: 51 | R44: 49 | S44: 23 | T44: 10 | U44: 4 | V44: 0 | W44: 0 | X44: 緑町2丁目
A45: 住吉町１ 丁目 | B45: 252 | C45: 13 | D45: 9 | E45: 6 | F45: 11 | G45: 16 | H45: 18 | I45: 14 | J45: 17 | K45: 10 | L45: 19 | M45: 17 | N45: 15 | O45: 18 | P45: 10 | Q45: 16 | R45: 21 | S45: 15 | T45: 4 | U45: 2 | V45: 1 | W45: 0 | X45: 住吉町１ 丁目
A46: 住吉町２ 丁目 | B46: 528 | C46: 23 | D46: 27 | E46: 19 | F46: 19 | G46: 33 | H46: 35 | I46: 42 | J46: 46 | K46: 37 | L46: 40 | M46: 28 | N46: 27 | O46: 31 | P46: 38 | Q46: 24 | R46: 28 | S46: 22 | T46: 4 | U46: 4 | V46: 1 | W46: 0 | X46: 住吉町２ 丁目
A47: 住吉町３ 丁目 | B47: 563 | C47: 40 | D47: 31 | E47: 22 | F47: 27 | G47: 19 | H47: 35 | I47: 61 | J47: 62 | K47: 50 | L47: 31 | M47: 30 | N47: 23 | O47: 44 | P47: 32 | Q47: 17 | R47: 19 | S47: 11 | T47: 7 | U47: 2 | V47: 0 | W47: 0 | X47: 住吉町３ 丁目
A48: 住吉町４ 丁目 | B48: 402 | C48: 22 | D48: 22 | E48: 13 | F48: 24 | G48: 19 | H48: 31 | I48: 33 | J48: 33 | K48: 24 | L48: 12 | M48: 22 | N48: 26 | O48: 36 | P48: 18 | Q48: 29 | R48: 19 | S48: 10 | T48: 9 | U48: 0 | V48: 0 | W48: 0 | X48: 住吉町４ 丁目
A49: 末広町 | B49: 601 | C49: 26 | D49: 36 | E49: 29 | F49: 19 | G49: 25 | H49: 41 | I49: 49 | J49: 46 | K49: 42 | L49: 36 | M49: 46 | N49: 36 | O49: 27 | P49: 33 | Q49: 26 | R49: 34 | S49: 29 | T49: 15 | U49: 4 | V49: 2 | W49: 0 | X49: 末広町
A50: 栄恵町 | B50: 184 | C50: 7 | D50: 3 | E50: 1 | F50: 6 | G50: 9 | H50: 17 | I50: 5 | J50: 8 | K50: 8 | L50: 14 | M50: 16 | N50: 18 | O50: 11 | P50: 17 | Q50: 14 | R50: 13 | S50: 12 | T50: 3 | U50: 2 | V50: 0 | W50: 0 | X50: 栄恵町
A51: 泉町 | B51: 599 | C51: 15 | D51: 16 | E51: 16 | F51: 24 | G51: 43 | H51: 45 | I51: 46 | J51: 52 | K51: 50 | L51: 48 | M51: 41 | N51: 28 | O51: 35 | P51: 41 | Q51: 31 | R51: 33 | S51: 21 | T51: 10 | U51: 4 | V51: 0 | W51: 0 | X51: 泉町
A52: 桜町１ 丁目 | B52: 272 | C52: 14 | D52: 20 | E52: 8 | F52: 8 | G52: 12 | H52: 15 | I52: 25 | J52: 24 | K52: 22 | L52: 24 | M52: 17 | N52: 14 | O52: 20 | P52: 13 | Q52: 4 | R52: 17 | S52: 11 | T52: 3 | U52: 1 | V52: 0 | W52: 0 | X52: 桜町１ 丁目
A53: 桜町２ 丁目 | B53: 798 | C53: 28 | D53: 32 | E53: 56 | F53: 55 | G53: 37 | H53: 42 | I53: 45 | J53: 67 | K53: 58 | L53: 43 | M53: 45 | N53: 39 | O53: 47 | P53: 41 | Q53: 57 | R53: 48 | S53: 34 | T53: 18 | U53: 5 | V53: 0 | W53: 1 | X53: 桜町２ 丁目
A54: 〈資料〉生活環境部市民課

Sheet 町内別年齢別人口②
X1: 平成26年9月末現在
A2: 町 名 | B2: 総数 | C2: 0歳～ 4歳 | D2: 5歳～ 9歳 | E2: 10歳～ 14歳 | F2: 15歳～ 19歳 | G2: 20歳～ 24歳 | H2: 25歳～ 29歳 | I2: 30歳～ 34歳 | J2: 35歳～ 39歳 | K2: 40歳～ 44歳 | L2: 45歳～ 49歳 | M2: 50歳～ 54歳 | N2: 55歳～59歳 | O2: 60歳～64歳 | P2: 65歳～69歳 | Q2: 70歳～74歳 | R2: 75歳～79歳 | S2: 80歳～84歳 | T2: 85歳～89歳 | U2: 90歳～94歳 | V2: 95歳～99歳 | W2: 100歳以上 | X2: 町 名
A3: 桜町３ 丁目 | B3: 342 | C3: 25 | D3: 16 | E3: 16 | F3: 12 | G3: 13 | H3: 15 | I3: 20 | J3: 28 | K3: 29 | L3: 26 | M3: 21 | N3: 14 | O3: 15 | P3: 17 | Q3: 26 | R3: 34 | S3: 9 | T3: 5 | U3: 1 | V3: 0 | W3: 0 | X3: 桜町３ 丁目
A4: 桜町４ 丁目 | B4: 1 | C4: 0 | D4: 0 | E4: 0 | F4: 0 | G4: 0 | H4: 0 | I4: 0 | J4: 0 | K4: 0 | L4: 0 | M4: 0 | N4: 1 | O4: 0 | P4: 0 | Q4: 0 | R4: 0 | S4: 0 | T4: 0 | U4: 0 | V4: 0 | W4: 0 | X4: 桜町４ 丁目
A5: 京町 | B5: 156 | C5: 9 | D5: 2 | E5: 4 | F5: 5 | G5: 7 | H5: 24 | I5: 8 | J5: 22 | K5: 15 | L5: 4 | M5: 8 | N5: 10 | O5: 8 | P5: 12 | Q5: 6 | R5: 5 | S5: 4 | T5: 3 | U5: 0 | V5: 0 | W5: 0 | X5: 京町
A6: 漁町 | B6: 1042 | C6: 52 | D6: 51 | E6: 31 | F6: 22 | G6: 49 | H6: 77 | I6: 84 | J6: 103 | K6: 84 | L6: 52 | M6: 48 | N6: 51 | O6: 67 | P6: 86 | Q6: 70 | R6: 48 | S6: 42 | T6: 15 | U6: 8 | V6: 1 | W6: 1 | X6: 漁町
A7: 福住町１ 丁目 | B7: 744 | C7: 49 | D7: 45 | E7: 29 | F7: 27 | G7: 24 | H7: 45 | I7: 63 | J7: 52 | K7: 57 | L7: 43 | M7: 31 | N7: 30 | O7: 40 | P7: 44 | Q7: 39 | R7: 58 | S7: 46 | T7: 15 | U7: 6 | V7: 1 | W7: 0 | X7: 福住町１ 丁目
A8: 福住町２ 丁目 | B8: 374 | C8: 12 | D8: 24 | E8: 27 | F8: 9 | G8: 10 | H8: 20 | I8: 25 | J8: 32 | K8: 28 | L8: 21 | M8: 24 | N8: 19 | O8: 14 | P8: 27 | Q8: 22 | R8: 19 | S8: 26 | T8: 10 | U8: 2 | V8: 3 | W8: 0 | X8: 福住町２ 丁目
A9: 福住町３ 丁目 | B9: 578 | C9: 30 | D9: 27 | E9: 12 | F9: 33 | G9: 22 | H9: 38 | I9: 36 | J9: 40 | K9: 35 | L9: 47 | M9: 29 | N9: 37 | O9: 33 | P9: 32 | Q9: 41 | R9: 35 | S9: 29 | T9: 13 | U9: 8 | V9: 1 | W9: 0 | X9: 福住町３ 丁目
A10: 新町 | B10: 72 | C10: 0 | D10: 3 | E10: 4 | F10: 7 | G10: 1 | H10: 1 | I10: 2 | J10: 7 | K10: 7 | L10: 6 | M10: 7 | N10: 4 | O10: 6 | P10: 6 | Q10: 1 | R10: 3 | S10: 2 | T10: 3 | U10: 2 | V10: 0 | W10: 0 | X10: 新町
A11: 本町 | B11: 498 | C11: 12 | D11: 22 | E11: 21 | F11: 34 | G11: 15 | H11: 22 | I11: 37 | J11: 33 | K11: 32 | L11: 36 | M11: 31 | N11: 34 | O11: 37 | P11: 37 | Q11: 29 | R11: 32 | S11: 21 | T11: 8 | U11: 3 | V11: 2 | W11: 0 | X11: 本町
A12: 有明町１丁目 | B12: 437 | C12: 17 | D12: 14 | E12: 14 | F12: 14 | G12: 23 | H12: 19 | I12: 18 | J12: 37 | K12: 31 | L12: 35 | M12: 40 | N12: 25 | O12: 24 | P12: 31 | Q12: 28 | R12: 42 | S12: 17 | T12: 6 | U12: 0 | V12: 2 | W12: 0 | X12: 有明町１丁目
A13: 有明町２ 丁目 | B13: 511 | C13: 16 | D13: 28 | E13: 28 | F13: 31 | G13: 21 | H13: 21 | I13: 19 | J13: 36 | K13: 45 | L13: 35 | M13: 27 | N13: 19 | O13: 48 | P13: 38 | Q13: 35 | R13: 38 | S13: 12 | T13: 9 | U13: 4 | V13: 1 | W13: 0 | X13: 有明町２ 丁目
A14: 有明町３ 丁目 | B14: 290 | C14: 9 | D14: 14 | E14: 10 | F14: 13 | G14: 6 | H14: 12 | I14: 8 | J14: 12 | K14: 26 | L14: 18 | M14: 7 | N14: 15 | O14: 26 | P14: 30 | Q14: 33 | R14: 29 | S14: 12 | T14: 8 | U14: 2 | V14: 0 | W14: 0 | X14: 有明町３ 丁目
A15: 有明町４ 丁目 | B15: 312 | C15: 16 | D15: 19 | E15: 15 | F15: 8 | G15: 14 | H15: 18 | I15: 17 | J15: 19 | K15: 28 | L15: 19 | M15: 15 | N15: 13 | O15: 25 | P15: 28 | Q15: 23 | R15: 16 | S15: 14 | T15: 1 | U15: 4 | V15: 0 | W15: 0 | X15: 有明町４ 丁目
A16: 有明町５ 丁目 | B16: 292 | C16: 17 | D16: 17 | E16: 19 | F16: 16 | G16: 12 | H16: 13 | I16: 18 | J16: 33 | K16: 21 | L16: 23 | M16: 13 | N16: 9 | O16: 19 | P16: 15 | Q16: 18 | R16: 11 | S16: 10 | T16: 5 | U16: 3 | V16: 0 | W16: 0 | X16: 有明町５ 丁目
A17: 有明町６ 丁目 | B17: 402 | C17: 11 | D17: 12 | E17: 10 | F17: 12 | G17: 20 | H17: 21 | I17: 25 | J17: 26 | K17: 32 | L17: 29 | M17: 24 | N17: 34 | O17: 28 | P17: 26 | Q17: 28 | R17: 32 | S17: 24 | T17: 6 | U17: 2 | V17: 0 | W17: 0 | X17: 有明町６ 丁目
A18: 大町１ 丁目 | B18: 201 | C18: 7 | D18: 11 | E18: 14 | F18: 7 | G18: 7 | H18: 6 | I18: 16 | J18: 15 | K18: 19 | L18: 5 | M18: 10 | N18: 9 | O18: 15 | P18: 20 | Q18: 20 | R18: 10 | S18: 6 | T18: 3 | U18: 0 | V18: 1 | W18: 0 | X18: 大町１ 丁目
A19: 大町２ 丁目 | B19: 171 | C19: 3 | D19: 10 | E19: 7 | F19: 6 | G19: 2 | H19: 8 | I19: 7 | J19: 11 | K19: 11 | L19: 13 | M19: 15 | N19: 8 | O19: 12 | P19: 6 | Q19: 19 | R19: 18 | S19: 7 | T19: 8 | U19: 0 | V19: 0 | W19: 0 | X19: 大町２ 丁目
A20: 大町３ 丁目 | B20: 251 | C20: 15 | D20: 12 | E20: 4 | F20: 15 | G20: 17 | H20: 11 | I20: 18 | J20: 20 | K20: 21 | L20: 12 | M20: 12 | N20: 17 | O20: 16 | P20: 17 | Q20: 19 | R20: 9 | S20: 7 | T20: 7 | U20: 2 | V20: 0 | W20: 0 | X20: 大町３ 丁目
A21: 大町４ 丁目 | B21: 198 | C21: 9 | D21: 4 | E21: 11 | F21: 8 | G21: 6 | H21: 13 | I21: 10 | J21: 10 | K21: 21 | L21: 7 | M21: 17 | N21: 12 | O21: 13 | P21: 14 | Q21: 13 | R21: 9 | S21: 9 | T21: 6 | U21: 5 | V21: 1 | W21: 0 | X21: 大町４ 丁目
A22: 文京町１ 丁目 | B22: 589 | C22: 20 | D22: 31 | E22: 33 | F22: 37 | G22: 24 | H22: 21 | I22: 20 | J22: 35 | K22: 43 | L22: 43 | M22: 41 | N22: 29 | O22: 57 | P22: 39 | Q22: 35 | R22: 36 | S22: 22 | T22: 12 | U22: 8 | V22: 3 | W22: 0 | X22: 文京町１ 丁目
A23: 文京町２ 丁目 | B23: 490 | C23: 22 | D23: 29 | E23: 29 | F23: 39 | G23: 23 | H23: 28 | I23: 24 | J23: 32 | K23: 45 | L23: 52 | M23: 30 | N23: 19 | O23: 31 | P23: 30 | Q23: 24 | R23: 16 | S23: 11 | T23: 4 | U23: 1 | V23: 1 | W23: 0 | X23: 文京町２ 丁目
A24: 文京町３ 丁目 | B24: 147 | C24: 8 | D24: 11 | E24: 16 | F24: 6 | G24: 5 | H24: 6 | I24: 10 | J24: 15 | K24: 9 | L24: 14 | M24: 9 | N24: 3 | O24: 9 | P24: 6 | Q24: 10 | R24: 4 | S24: 2 | T24: 3 | U24: 1 | V24: 0 | W24: 0 | X24: 文京町３ 丁目
A25: 文京町４ 丁目 | B25: 662 | C25: 22 | D25: 30 | E25: 46 | F25: 46 | G25: 28 | H25: 24 | I25: 38 | J25: 43 | K25: 52 | L25: 56 | M25: 49 | N25: 33 | O25: 53 | P25: 45 | Q25: 25 | R25: 32 | S25: 18 | T25: 16 | U25: 4 | V25: 2 | W25: 0 | X25: 文京町４ 丁目
A26: 牧場 | B26: 298 | C26: 8 | D26: 6 | E26: 8 | F26: 11 | G26: 9 | H26: 13 | I26: 9 | J26: 22 | K26: 21 | L26: 22 | M26: 22 | N26: 15 | O26: 31 | P26: 26 | Q26: 21 | R26: 27 | S26: 11 | T26: 9 | U26: 6 | V26: 1 | W26: 0 | X26: 牧場
A27: 盤尻 | B27: 16 | C27: 0 | D27: 1 | E27: 1 | F27: 0 | G27: 1 | H27: 0 | I27: 1 | J27: 1 | K27: 1 | L27: 1 | M27: 0 | N27: 2 | O27: 1 | P27: 3 | Q27: 0 | R27: 3 | S27: 0 | T27: 0 | U27: 0 | V27: 0 | W27: 0 | X27: 盤尻
A28: 桜森 | B28: 0 | C28: 0 | D28: 0 | E28: 0 | F28: 0 | G28: 0 | H28: 0 | I28: 0 | J28: 0 | K28: 0 | L28: 0 | M28: 0 | N28: 0 | O28: 0 | P28: 0 | Q28: 0 | R28: 0 | S28: 0 | T28: 0 | U28: 0 | V28: 0 | W28: 0 | X28: 桜森
A29: 中島町１ 丁目 | B29: 623 | C29: 35 | D29: 28 | E29: 30 | F29: 46 | G29: 29 | H29: 38 | I29: 49 | J29: 41 | K29: 60 | L29: 50 | M29: 39 | N29: 26 | O29: 36 | P29: 33 | Q29: 36 | R29: 16 | S29: 19 | T29: 8 | U29: 2 | V29: 2 | W29: 0 | X29: 中島町１ 丁目
A30: 中島町２ 丁目 | B30: 490 | C30: 12 | D30: 19 | E30: 17 | F30: 35 | G30: 32 | H30: 31 | I30: 26 | J30: 22 | K30: 20 | L30: 34 | M30: 28 | N30: 52 | O30: 54 | P30: 43 | Q30: 25 | R30: 12 | S30: 14 | T30: 11 | U30: 3 | V30: 0 | W30: 0 | X30: 中島町２ 丁目
A31: 中島町３ 丁目 | B31: 212 | C31: 11 | D31: 16 | E31: 3 | F31: 13 | G31: 17 | H31: 8 | I31: 17 | J31: 10 | K31: 19 | L31: 16 | M31: 16 | N31: 18 | O31: 16 | P31: 12 | Q31: 9 | R31: 5 | S31: 2 | T31: 4 | U31: 0 | V31: 0 | W31: 0 | X31: 中島町３ 丁目
A32: 中島町４ 丁目 | B32: 1012 | C32: 28 | D32: 51 | E32: 44 | F32: 51 | G32: 89 | H32: 58 | I32: 61 | J32: 60 | K32: 62 | L32: 68 | M32: 62 | N32: 110 | O32: 109 | P32: 71 | Q32: 35 | R32: 21 | S32: 18 | T32: 9 | U32: 5 | V32: 0 | W32: 0 | X32: 中島町４ 丁目
A33: 中島町５ 丁目 | B33: 459 | C33: 23 | D33: 30 | E33: 25 | F33: 31 | G33: 33 | H33: 46 | I33: 36 | J33: 46 | K33: 36 | L33: 28 | M33: 22 | N33: 26 | O33: 18 | P33: 17 | Q33: 21 | R33: 11 | S33: 7 | T33: 2 | U33: 0 | V33: 1 | W33: 0 | X33: 中島町５ 丁目
A34: 中島町６ 丁目 | B34: 698 | C34: 36 | D34: 22 | E34: 19 | F34: 38 | G34: 36 | H34: 63 | I34: 55 | J34: 54 | K34: 39 | L34: 45 | M34: 25 | N34: 43 | O34: 62 | P34: 52 | Q34: 26 | R34: 20 | S34: 33 | T34: 21 | U34: 9 | V34: 0 | W34: 0 | X34: 中島町６ 丁目
A35: 恵央町 | B35: 710 | C35: 42 | D35: 20 | E35: 21 | F35: 31 | G35: 32 | H35: 36 | I35: 33 | J35: 42 | K35: 37 | L35: 39 | M35: 41 | N35: 35 | O35: 55 | P35: 54 | Q35: 66 | R35: 53 | S35: 37 | T35: 28 | U35: 7 | V35: 1 | W35: 0 | X35: 恵央町
A36: 幸町1丁目 | B36: 237 | C36: 10 | D36: 7 | E36: 12 | F36: 9 | G36: 14 | H36: 5 | I36: 4 | J36: 15 | K36: 15 | L36: 17 | M36: 20 | N36: 11 | O36: 8 | P36: 18 | Q36: 29 | R36: 20 | S36: 13 | T36: 8 | U36: 1 | V36: 1 | W36: 0 | X36: 幸町1丁目
A37: 幸町2丁目 | B37: 385 | C37: 6 | D37: 11 | E37: 13 | F37: 25 | G37: 21 | H37: 16 | I37: 15 | J37: 16 | K37: 37 | L37: 30 | M37: 31 | N37: 23 | O37: 22 | P37: 24 | Q37: 24 | R37: 39 | S37: 21 | T37: 7 | U37: 4 | V37: 0 | W37: 0 | X37: 幸町2丁目
A38: 幸町3丁目 | B38: 429 | C38: 9 | D38: 8 | E38: 16 | F38: 25 | G38: 26 | H38: 23 | I38: 22 | J38: 19 | K38: 21 | L38: 28 | M38: 31 | N38: 35 | O38: 38 | P38: 36 | Q38: 31 | R38: 35 | S38: 15 | T38: 8 | U38: 2 | V38: 0 | W38: 1 | X38: 幸町3丁目
A39: 幸町4丁目 | B39: 5 | C39: 0 | D39: 0 | E39: 0 | F39: 0 | G39: 0 | H39: 0 | I39: 0 | J39: 0 | K39: 1 | L39: 0 | M39: 0 | N39: 0 | O39: 0 | P39: 3 | Q39: 1 | R39: 0 | S39: 0 | T39: 0 | U39: 0 | V39: 0 | W39: 0 | X39: 幸町4丁目
A40: 柏陽町１ 丁目 | B40: 750 | C40: 17 | D40: 22 | E40: 28 | F40: 28 | G40: 24 | H40: 18 | I40: 25 | J40: 42 | K40: 41 | L40: 41 | M40: 30 | N40: 28 | O40: 86 | P40: 97 | Q40: 64 | R40: 68 | S40: 46 | T40: 32 | U40: 11 | V40: 2 | W40: 0 | X40: 柏陽町１ 丁目
A41: 柏陽町３ 丁目 | B41: 1617 | C41: 147 | D41: 132 | E41: 69 | F41: 50 | G41: 50 | H41: 100 | I41: 171 | J41: 177 | K41: 111 | L41: 77 | M41: 77 | N41: 84 | O41: 127 | P41: 109 | Q41: 50 | R41: 47 | S41: 22 | T41: 9 | U41: 8 | V41: 0 | W41: 0 | X41: 柏陽町３ 丁目
A42: 柏陽町４ 丁目 | B42: 606 | C42: 7 | D42: 11 | E42: 14 | F42: 27 | G42: 26 | H42: 19 | I42: 9 | J42: 34 | K42: 30 | L42: 28 | M42: 25 | N42: 30 | O42: 69 | P42: 79 | Q42: 65 | R42: 60 | S42: 44 | T42: 19 | U42: 6 | V42: 4 | W42: 0 | X42: 柏陽町４ 丁目
A43: 柏木町 | B43: 2625 | C43: 113 | D43: 105 | E43: 91 | F43: 119 | G43: 186 | H43: 179 | I43: 158 | J43: 184 | K43: 228 | L43: 152 | M43: 151 | N43: 153 | O43: 186 | P43: 148 | Q43: 146 | R43: 127 | S43: 89 | T43: 60 | U43: 33 | V43: 14 | W43: 3 | X43: 柏木町
A44: 北柏木町１ 丁目 | B44: 796 | C44: 49 | D44: 25 | E44: 28 | F44: 51 | G44: 60 | H44: 35 | I44: 41 | J44: 52 | K44: 48 | L44: 48 | M44: 65 | N44: 75 | O44: 69 | P44: 42 | Q44: 35 | R44: 23 | S44: 19 | T44: 22 | U44: 6 | V44: 3 | W44: 0 | X44: 北柏木町１ 丁目
A45: 北柏木町２ 丁目 | B45: 573 | C45: 12 | D45: 16 | E45: 18 | F45: 32 | G45: 38 | H45: 20 | I45: 28 | J45: 38 | K45: 29 | L45: 49 | M45: 29 | N45: 28 | O45: 63 | P45: 69 | Q45: 41 | R45: 29 | S45: 13 | T45: 12 | U45: 7 | V45: 2 | W45: 0 | X45: 北柏木町２ 丁目
A46: 北柏木町３ 丁目 | B46: 27 | C46: 0 | D46: 2 | E46: 0 | F46: 0 | G46: 0 | H46: 0 | I46: 1 | J46: 1 | K46: 3 | L46: 0 | M46: 1 | N46: 3 | O46: 4 | P46: 3 | Q46: 3 | R46: 3 | S46: 1 | T46: 2 | U46: 0 | V46: 0 | W46: 0 | X46: 北柏木町３ 丁目
A47: 北柏木町４ 丁目 | B47: 8 | C47: 1 | D47: 2 | E47: 0 | F47: 0 | G47: 0 | H47: 0 | I47: 0 | J47: 2 | K47: 1 | L47: 0 | M47: 0 | N47: 0 | O47: 0 | P47: 1 | Q47: 1 | R47: 0 | S47: 0 | T47: 0 | U47: 0 | V47: 0 | W47: 0 | X47: 北柏木町４ 丁目
A48: 北柏木町５ 丁目 | B48: 3 | C48: 0 | D48: 0 | E48: 0 | F48: 0 | G48: 0 | H48: 0 | I48: 0 | J48: 0 | K48: 0 | L48: 0 | M48: 0 | N48: 0 | O48: 0 | P48: 0 | Q48: 1 | R48: 1 | S48: 0 | T48: 0 | U48: 0 | V48: 0 | W48: 1 | X48: 北柏木町５ 丁目
A49: 島松沢 | B49: 13 | C49: 0 | D49: 0 | E49: 0 | F49: 0 | G49: 1 | H49: 0 | I49: 1 | J49: 0 | K49: 0 | L49: 0 | M49: 1 | N49: 2 | O49: 1 | P49: 2 | Q49: 1 | R49: 2 | S49: 2 | T49: 0 | U49: 0 | V49: 0 | W49: 0 | X49: 島松沢
A50: 美咲野１ 丁目 | B50: 601 | C50: 15 | D50: 24 | E50: 46 | F50: 80 | G50: 48 | H50: 22 | I50: 12 | J50: 30 | K50: 70 | L50: 98 | M50: 66 | N50: 36 | O50: 11 | P50: 19 | Q50: 11 | R50: 4 | S50: 8 | T50: 1 | U50: 0 | V50: 0 | W50: 0 | X50: 美咲野１ 丁目
A51: 美咲野２ 丁目 | B51: 386 | C51: 7 | D51: 20 | E51: 58 | F51: 53 | G51: 15 | H51: 3 | I51: 9 | J51: 27 | K51: 53 | L51: 64 | M51: 23 | N51: 14 | O51: 10 | P51: 10 | Q51: 5 | R51: 5 | S51: 3 | T51: 5 | U51: 0 | V51: 2 | W51: 0 | X51: 美咲野２ 丁目
A52: 美咲野３ 丁目 | B52: 391 | C52: 12 | D52: 13 | E52: 30 | F52: 54 | G52: 16 | H52: 18 | I52: 20 | J52: 30 | K52: 37 | L52: 57 | M52: 49 | N52: 20 | O52: 7 | P52: 6 | Q52: 4 | R52: 10 | S52: 5 | T52: 1 | U52: 1 | V52: 1 | W52: 0 | X52: 美咲野３ 丁目
A53: 美咲野４ 丁目 | B53: 306 | C53: 5 | D53: 20 | E53: 39 | F53: 43 | G53: 17 | H53: 2 | I53: 7 | J53: 17 | K53: 47 | L53: 42 | M53: 24 | N53: 13 | O53: 3 | P53: 7 | Q53: 3 | R53: 4 | S53: 8 | T53: 4 | U53: 1 | V53: 0 | W53: 0 | X53: 美咲野４ 丁目
A54: 〈資料〉生活環境部市民課

Sheet 町内別年齢別人口③
X2: 平成26年9月末現在
A3: 町 名 | B3: 総数 | C3: 0歳～ 4歳 | D3: 5歳～ 9歳 | E3: 10歳～ 14歳 | F3: 15歳～ 19歳 | G3: 20歳～ 24歳 | H3: 25歳～ 29歳 | I3: 30歳～ 34歳 | J3: 35歳～ 39歳 | K3: 40歳～ 44歳 | L3: 45歳～ 49歳 | M3: 50歳～ 54歳 | N3: 55歳～59歳 | O3: 60歳～64歳 | P3: 65歳～69歳 | Q3: 70歳～74歳 | R3: 75歳～79歳 | S3: 80歳～84歳 | T3: 85歳～89歳 | U3: 90歳～94歳 | V3: 95歳～99歳 | W3: 100歳以上 | X3: 町 名
A4: 美咲野５ 丁目 | B4: =SUM(C4:W4) -> 247 | C4: 7 | D4: 13 | E4: 29 | F4: 21 | G4: 4 | H4: 3 | I4: 4 | J4: 20 | K4: 22 | L4: 20 | M4: 15 | N4: 15 | O4: 20 | P4: 8 | Q4: 12 | R4: 18 | S4: 9 | T4: 5 | U4: 1 | V4: 1 | W4: 0 | X4: 美咲野５ 丁目
A5: 美咲野６ 丁目 | B5: =SUM(C5:W5) -> 391 | C5: 17 | D5: 40 | E5: 45 | F5: 28 | G5: 8 | H5: 7 | I5: 9 | J5: 30 | K5: 64 | L5: 42 | M5: 17 | N5: 20 | O5: 7 | P5: 14 | Q5: 19 | R5: 11 | S5: 5 | T5: 2 | U5: 6 | V5: 0 | W5: 0 | X5: 美咲野６ 丁目
A6: 恵み野東１ 丁目 | B6: =SUM(C6:W6) -> 312 | C6: 14 | D6: 13 | E6: 10 | F6: 14 | G6: 9 | H6: 13 | I6: 21 | J6: 7 | K6: 12 | L6: 10 | M6: 20 | N6: 33 | O6: 43 | P6: 40 | Q6: 14 | R6: 15 | S6: 12 | T6: 10 | U6: 1 | V6: 1 | W6: 0 | X6: 恵み野東１ 丁目
A7: 恵み野東２ 丁目 | B7: =SUM(C7:W7) -> 558 | C7: 13 | D7: 24 | E7: 25 | F7: 34 | G7: 26 | H7: 22 | I7: 30 | J7: 23 | K7: 38 | L7: 23 | M7: 43 | N7: 53 | O7: 74 | P7: 52 | Q7: 23 | R7: 17 | S7: 20 | T7: 12 | U7: 6 | V7: 0 | W7: 0 | X7: 恵み野東２ 丁目
A8: 恵み野東３ 丁目 | B8: 393 | C8: 11 | D8: 12 | E8: 18 | F8: 19 | G8: 16 | H8: 15 | I8: 19 | J8: 20 | K8: 22 | L8: 23 | M8: 23 | N8: 42 | O8: 46 | P8: 39 | Q8: 16 | R8: 27 | S8: 15 | T8: 5 | U8: 4 | V8: 1 | W8: 0 | X8: 恵み野東３ 丁目
A9: 恵み野東４ 丁目 | B9: 541 | C9: 51 | D9: 30 | E9: 24 | F9: 16 | G9: 18 | H9: 41 | I9: 51 | J9: 47 | K9: 30 | L9: 21 | M9: 37 | N9: 43 | O9: 59 | P9: 22 | Q9: 18 | R9: 14 | S9: 11 | T9: 3 | U9: 5 | V9: 0 | W9: 0 | X9: 恵み野東４ 丁目
A10: 恵み野東５ 丁目 | B10: 569 | C10: 17 | D10: 22 | E10: 31 | F10: 23 | G10: 18 | H10: 21 | I10: 28 | J10: 39 | K10: 35 | L10: 34 | M10: 40 | N10: 72 | O10: 66 | P10: 52 | Q10: 23 | R10: 20 | S10: 19 | T10: 6 | U10: 1 | V10: 2 | W10: 0 | X10: 恵み野東５ 丁目
A11: 恵み野東６ 丁目 | B11: 455 | C11: 5 | D11: 20 | E11: 18 | F11: 22 | G11: 18 | H11: 19 | I11: 23 | J11: 27 | K11: 18 | L11: 29 | M11: 35 | N11: 57 | O11: 58 | P11: 36 | Q11: 26 | R11: 15 | S11: 20 | T11: 5 | U11: 2 | V11: 1 | W11: 1 | X11: 恵み野東６ 丁目
A12: 恵み野東７ 丁目 | B12: 572 | C12: 18 | D12: 15 | E12: 26 | F12: 57 | G12: 54 | H12: 20 | I12: 18 | J12: 28 | K12: 27 | L12: 49 | M12: 87 | N12: 52 | O12: 42 | P12: 24 | Q12: 17 | R12: 19 | S12: 7 | T12: 5 | U12: 3 | V12: 4 | W12: 0 | X12: 恵み野東７ 丁目
A13: 恵み野西１ 丁目 | B13: =SUM(C13:W13) -> 721 | C13: 16 | D13: 35 | E13: 23 | F13: 22 | G13: 30 | H13: 30 | I13: 29 | J13: 39 | K13: 38 | L13: 39 | M13: 28 | N13: 44 | O13: 66 | P13: 92 | Q13: 51 | R13: 43 | S13: 48 | T13: 34 | U13: 11 | V13: 1 | W13: 2 | X13: 恵み野西１ 丁目
A14: 恵み野西２ 丁目 | B14: =SUM(C14:W14) -> 232 | C14: 6 | D14: 4 | E14: 4 | F14: 20 | G14: 8 | H14: 6 | I14: 16 | J14: 8 | K14: 18 | L14: 13 | M14: 12 | N14: 18 | O14: 20 | P14: 25 | Q14: 11 | R14: 16 | S14: 13 | T14: 10 | U14: 3 | V14: 1 | W14: 0 | X14: 恵み野西２ 丁目
A15: 恵み野西３ 丁目 | B15: =SUM(C15:W15) -> 349 | C15: 4 | D15: 4 | E15: 10 | F15: 8 | G15: 8 | H15: 14 | I15: 16 | J15: 11 | K15: 12 | L15: 16 | M15: 16 | N15: 26 | O15: 44 | P15: 48 | Q15: 35 | R15: 19 | S15: 24 | T15: 21 | U15: 12 | V15: 1 | W15: 0 | X15: 恵み野西３ 丁目
A16: 恵み野西４ 丁目 | B16: 472 | C16: 7 | D16: 15 | E16: 20 | F16: 16 | G16: 9 | H16: 14 | I16: 19 | J16: 26 | K16: 22 | L16: 23 | M16: 19 | N16: 29 | O16: 67 | P16: 83 | Q16: 40 | R16: 29 | S16: 15 | T16: 16 | U16: 2 | V16: 1 | W16: 0 | X16: 恵み野西４ 丁目
A17: 恵み野西５ 丁目 | B17: 299 | C17: 5 | D17: 10 | E17: 14 | F17: 7 | G17: 4 | H17: 11 | I17: 10 | J17: 9 | K17: 11 | L17: 13 | M17: 16 | N17: 20 | O17: 43 | P17: 27 | Q17: 20 | R17: 14 | S17: 21 | T17: 18 | U17: 23 | V17: 2 | W17: 1 | X17: 恵み野西５ 丁目
A18: 恵み野西６ 丁目 | B18: 880 | C18: 11 | D18: 20 | E18: 36 | F18: 55 | G18: 41 | H18: 36 | I18: 43 | J18: 24 | K18: 38 | L18: 40 | M18: 52 | N18: 81 | O18: 107 | P18: 100 | Q18: 54 | R18: 54 | S18: 45 | T18: 29 | U18: 8 | V18: 5 | W18: 1 | X18: 恵み野西６ 丁目
A19: 恵み野南１ 丁目 | B19: 295 | C19: 8 | D19: 23 | E19: 27 | F19: 22 | G19: 11 | H19: 10 | I19: 12 | J19: 24 | K19: 27 | L19: 24 | M19: 19 | N19: 5 | O19: 10 | P19: 19 | Q19: 27 | R19: 15 | S19: 9 | T19: 2 | U19: 1 | V19: 0 | W19: 0 | X19: 恵み野南１ 丁目
A20: 恵み野南２ 丁目 | B20: 546 | C20: 10 | D20: 17 | E20: 23 | F20: 29 | G20: 17 | H20: 15 | I20: 23 | J20: 31 | K20: 37 | L20: 21 | M20: 23 | N20: 27 | O20: 56 | P20: 85 | Q20: 74 | R20: 29 | S20: 13 | T20: 12 | U20: 3 | V20: 1 | W20: 0 | X20: 恵み野南２ 丁目
A21: 恵み野南３ 丁目 | B21: =SUM(C21:W21) -> 628 | C21: 7 | D21: 14 | E21: 26 | F21: 24 | G21: 19 | H21: 13 | I21: 22 | J21: 43 | K21: 42 | L21: 26 | M21: 21 | N21: 43 | O21: 90 | P21: 84 | Q21: 58 | R21: 38 | S21: 27 | T21: 18 | U21: 10 | V21: 2 | W21: 1 | X21: 恵み野南３ 丁目
A22: 恵み野南４ 丁目 | B22: =SUM(C22:W22) -> 744 | C22: 10 | D22: 28 | E22: 46 | F22: 25 | G22: 17 | H22: 22 | I22: 26 | J22: 48 | K22: 35 | L22: 31 | M22: 43 | N22: 56 | O22: 93 | P22: 100 | Q22: 54 | R22: 37 | S22: 35 | T22: 24 | U22: 10 | V22: 3 | W22: 1 | X22: 恵み野南４ 丁目
A23: 恵み野北１ 丁目 | B23: =SUM(C23:W23) -> 494 | C23: 7 | D23: 10 | E23: 14 | F23: 25 | G23: 17 | H23: 22 | I23: 20 | J23: 13 | K23: 16 | L23: 23 | M23: 37 | N23: 57 | O23: 68 | P23: 58 | Q23: 32 | R23: 29 | S23: 25 | T23: 15 | U23: 5 | V23: 1 | W23: 0 | X23: 恵み野北１ 丁目
A24: 恵み野北２ 丁目 | B24: 506 | C24: 12 | D24: 14 | E24: 19 | F24: 14 | G24: 20 | H24: 24 | I24: 24 | J24: 21 | K24: 16 | L24: 23 | M24: 41 | N24: 56 | O24: 61 | P24: 54 | Q24: 25 | R24: 28 | S24: 35 | T24: 12 | U24: 7 | V24: 0 | W24: 0 | X24: 恵み野北２ 丁目
A25: 恵み野北３ 丁目 | B25: 295 | C25: 6 | D25: 9 | E25: 12 | F25: 18 | G25: 22 | H25: 14 | I25: 11 | J25: 16 | K25: 11 | L25: 10 | M25: 8 | N25: 28 | O25: 43 | P25: 38 | Q25: 15 | R25: 11 | S25: 12 | T25: 8 | U25: 2 | V25: 1 | W25: 0 | X25: 恵み野北３ 丁目
A26: 恵み野北４ 丁目 | B26: 327 | C26: 9 | D26: 13 | E26: 16 | F26: 19 | G26: 19 | H26: 14 | I26: 14 | J26: 15 | K26: 18 | L26: 24 | M26: 11 | N26: 40 | O26: 39 | P26: 30 | Q26: 19 | R26: 12 | S26: 7 | T26: 5 | U26: 2 | V26: 1 | W26: 0 | X26: 恵み野北４ 丁目
A27: 恵み野北５ 丁目 | B27: 332 | C27: 10 | D27: 11 | E27: 12 | F27: 11 | G27: 20 | H27: 11 | I27: 17 | J27: 12 | K27: 16 | L27: 15 | M27: 20 | N27: 31 | O27: 42 | P27: 43 | Q27: 24 | R27: 12 | S27: 17 | T27: 4 | U27: 2 | V27: 1 | W27: 1 | X27: 恵み野北５ 丁目
A28: 恵み野北６ 丁目 | B28: 662 | C28: 20 | D28: 30 | E28: 45 | F28: 63 | G28: 67 | H28: 30 | I28: 17 | J28: 36 | K28: 55 | L28: 75 | M28: 57 | N28: 49 | O28: 46 | P28: 20 | Q28: 14 | R28: 20 | S28: 9 | T28: 6 | U28: 3 | V28: 0 | W28: 0 | X28: 恵み野北６ 丁目
A29: 恵み野北７ 丁目 | B29: =SUM(C29:W29) -> 877 | C29: 13 | D29: 40 | E29: 76 | F29: 91 | G29: 78 | H29: 27 | I29: 23 | J29: 34 | K29: 60 | L29: 107 | M29: 115 | N29: 87 | O29: 42 | P29: 28 | Q29: 22 | R29: 9 | S29: 11 | T29: 10 | U29: 3 | V29: 1 | W29: 0 | X29: 恵み野北７ 丁目
A30: 恵み野里美１丁目 | B30: =SUM(C30:W30) -> 5 | C30: 0 | D30: 0 | E30: 0 | F30: 0 | G30: 0 | H30: 0 | I30: 0 | J30: 0 | K30: 0 | L30: 0 | M30: 0 | N30: 1 | O30: 0 | P30: 1 | Q30: 2 | R30: 0 | S30: 0 | T30: 0 | U30: 0 | V30: 1 | W30: 0 | X30: 恵み野里美１丁目
A31: 恵み野里美２丁目 | B31: =SUM(C31:W31) -> 153 | C31: 39 | D31: 11 | E31: 4 | F31: 2 | G31: 1 | H31: 26 | I31: 27 | J31: 17 | K31: 8 | L31: 5 | M31: 1 | N31: 2 | O31: 5 | P31: 3 | Q31: 0 | R31: 0 | S31: 0 | T31: 2 | U31: 0 | V31: 0 | W31: 0 | X31: 恵み野里美２丁目
A32: 島松寿町１ 丁目 | B32: 630 | C32: 12 | D32: 17 | E32: 17 | F32: 22 | G32: 24 | H32: 23 | I32: 33 | J32: 32 | K32: 31 | L32: 54 | M32: 31 | N32: 37 | O32: 52 | P32: 56 | Q32: 45 | R32: 66 | S32: 39 | T32: 33 | U32: 3 | V32: 3 | W32: 0 | X32: 島松寿町１ 丁目
A33: 島松寿町２ 丁目 | B33: 1024 | C33: 27 | D33: 24 | E33: 48 | F33: 58 | G33: 31 | H33: 42 | I33: 36 | J33: 56 | K33: 65 | L33: 68 | M33: 66 | N33: 63 | O33: 69 | P33: 93 | Q33: 103 | R33: 81 | S33: 59 | T33: 22 | U33: 11 | V33: 1 | W33: 1 | X33: 島松寿町２ 丁目
A34: 島松仲町１ 丁目 | B34: 275 | C34: 7 | D34: 5 | E34: 11 | F34: 14 | G34: 11 | H34: 10 | I34: 15 | J34: 17 | K34: 17 | L34: 7 | M34: 24 | N34: 21 | O34: 27 | P34: 23 | Q34: 13 | R34: 15 | S34: 16 | T34: 17 | U34: 5 | V34: 0 | W34: 0 | X34: 島松仲町１ 丁目
A35: 島松仲町２ 丁目 | B35: 222 | C35: 6 | D35: 1 | E35: 4 | F35: 9 | G35: 8 | H35: 6 | I35: 7 | J35: 6 | K35: 8 | L35: 16 | M35: 23 | N35: 13 | O35: 15 | P35: 18 | Q35: 19 | R35: 26 | S35: 25 | T35: 8 | U35: 2 | V35: 1 | W35: 1 | X35: 島松仲町２ 丁目
A36: 島松仲町３ 丁目 | B36: 169 | C36: 3 | D36: 4 | E36: 6 | F36: 8 | G36: 9 | H36: 4 | I36: 9 | J36: 5 | K36: 14 | L36: 13 | M36: 12 | N36: 10 | O36: 11 | P36: 12 | Q36: 13 | R36: 17 | S36: 14 | T36: 4 | U36: 1 | V36: 0 | W36: 0 | X36: 島松仲町３ 丁目
A37: 島松東町１ 丁目 | B37: =SUM(C37:W37) -> 286 | C37: 10 | D37: 7 | E37: 12 | F37: 12 | G37: 12 | H37: 14 | I37: 8 | J37: 16 | K37: 17 | L37: 23 | M37: 17 | N37: 16 | O37: 24 | P37: 17 | Q37: 20 | R37: 25 | S37: 18 | T37: 9 | U37: 7 | V37: 1 | W37: 1 | X37: 島松東町１ 丁目
A38: 島松東町２ 丁目 | B38: 356 | C38: 9 | D38: 7 | E38: 12 | F38: 11 | G38: 13 | H38: 17 | I38: 15 | J38: 14 | K38: 18 | L38: 22 | M38: 21 | N38: 28 | O38: 39 | P38: 36 | Q38: 35 | R38: 26 | S38: 16 | T38: 11 | U38: 4 | V38: 2 | W38: 0 | X38: 島松東町２ 丁目
A39: 島松東町３ 丁目 | B39: 365 | C39: 15 | D39: 14 | E39: 21 | F39: 18 | G39: 18 | H39: 10 | I39: 12 | J39: 13 | K39: 31 | L39: 26 | M39: 28 | N39: 26 | O39: 19 | P39: 24 | Q39: 33 | R39: 25 | S39: 18 | T39: 14 | U39: 0 | V39: 0 | W39: 0 | X39: 島松東町３ 丁目
A40: 島松東町４ 丁目 | B40: 215 | C40: 4 | D40: 10 | E40: 10 | F40: 12 | G40: 5 | H40: 6 | I40: 10 | J40: 12 | K40: 17 | L40: 16 | M40: 10 | N40: 15 | O40: 25 | P40: 21 | Q40: 13 | R40: 19 | S40: 7 | T40: 3 | U40: 0 | V40: 0 | W40: 0 | X40: 島松東町４ 丁目
A41: 島松本町１ 丁目 | B41: 510 | C41: 14 | D41: 13 | E41: 32 | F41: 30 | G41: 30 | H41: 24 | I41: 16 | J41: 25 | K41: 29 | L41: 41 | M41: 44 | N41: 44 | O41: 28 | P41: 37 | Q41: 28 | R41: 22 | S41: 29 | T41: 16 | U41: 7 | V41: 1 | W41: 0 | X41: 島松本町１ 丁目
A42: 島松本町２ 丁目 | B42: 606 | C42: 21 | D42: 22 | E42: 38 | F42: 30 | G42: 31 | H42: 30 | I42: 26 | J42: 32 | K42: 42 | L42: 40 | M42: 48 | N42: 36 | O42: 41 | P42: 27 | Q42: 32 | R42: 38 | S42: 45 | T42: 21 | U42: 6 | V42: 0 | W42: 0 | X42: 島松本町２ 丁目
A43: 島松本町３ 丁目 | B43: 749 | C43: 32 | D43: 33 | E43: 27 | F43: 34 | G43: 40 | H43: 41 | I43: 55 | J43: 50 | K43: 51 | L43: 46 | M43: 48 | N43: 36 | O43: 53 | P43: 70 | Q43: 44 | R43: 50 | S43: 20 | T43: 13 | U43: 5 | V43: 1 | W43: 0 | X43: 島松本町３ 丁目
A44: 島松本町４ 丁目 | B44: 520 | C44: 13 | D44: 20 | E44: 33 | F44: 22 | G44: 13 | H44: 16 | I44: 19 | J44: 34 | K44: 39 | L44: 31 | M44: 39 | N44: 25 | O44: 34 | P44: 63 | Q44: 44 | R44: 34 | S44: 20 | T44: 18 | U44: 2 | V44: 1 | W44: 0 | X44: 島松本町４ 丁目
A45: 島松旭町１ 丁目 | B45: 307 | C45: 8 | D45: 8 | E45: 11 | F45: 20 | G45: 19 | H45: 9 | I45: 16 | J45: 14 | K45: 11 | L45: 25 | M45: 31 | N45: 27 | O45: 26 | P45: 31 | Q45: 18 | R45: 14 | S45: 14 | T45: 2 | U45: 3 | V45: 0 | W45: 0 | X45: 島松旭町１ 丁目
A46: 島松旭町２ 丁目 | B46: 318 | C46: 7 | D46: 12 | E46: 17 | F46: 19 | G46: 13 | H46: 12 | I46: 14 | J46: 12 | K46: 25 | L46: 24 | M46: 16 | N46: 23 | O46: 40 | P46: 25 | Q46: 13 | R46: 20 | S46: 14 | T46: 9 | U46: 2 | V46: 1 | W46: 0 | X46: 島松旭町２ 丁目
A47: 島松旭町３ 丁目 | B47: =SUM(C47:W47) -> 329 | C47: 12 | D47: 25 | E47: 40 | F47: 45 | G47: 12 | H47: 6 | I47: 15 | J47: 20 | K47: 47 | L47: 41 | M47: 29 | N47: 6 | O47: 15 | P47: 10 | Q47: 1 | R47: 4 | S47: 1 | T47: 0 | U47: 0 | V47: 0 | W47: 0 | X47: 島松旭町３ 丁目
A48: 島松旭町４ 丁目 | B48: =SUM(C48:W48) -> 412 | C48: 11 | D48: 11 | E48: 22 | F48: 18 | G48: 21 | H48: 15 | I48: 23 | J48: 19 | K48: 25 | L48: 17 | M48: 28 | N48: 21 | O48: 36 | P48: 43 | Q48: 41 | R48: 36 | S48: 10 | T48: 9 | U48: 4 | V48: 1 | W48: 1 | X48: 島松旭町４ 丁目
A49: 西島松 | B49: =SUM(C49:W49) -> 701 | C49: 21 | D49: 17 | E49: 16 | F49: 39 | G49: 101 | H49: 86 | I49: 49 | J49: 44 | K49: 52 | L49: 25 | M49: 30 | N49: 25 | O49: 31 | P49: 43 | Q49: 46 | R49: 28 | S49: 23 | T49: 14 | U49: 7 | V49: 3 | W49: 1 | X49: 西島松
A50: 南島松 | B50: 247 | C50: 3 | D50: 3 | E50: 4 | F50: 4 | G50: 5 | H50: 11 | I50: 6 | J50: 9 | K50: 8 | L50: 5 | M50: 15 | N50: 19 | O50: 32 | P50: 20 | Q50: 13 | R50: 9 | S50: 33 | T50: 30 | U50: 14 | V50: 4 | W50: 0 | X50: 南島松
A51: 中島松 | B51: 165 | C51: 4 | D51: 3 | E51: 5 | F51: 5 | G51: 7 | H51: 11 | I51: 4 | J51: 6 | K51: 7 | L51: 6 | M51: 10 | N51: 11 | O51: 26 | P51: 16 | Q51: 10 | R51: 11 | S51: 10 | T51: 12 | U51: 1 | V51: 0 | W51: 0 | X51: 中島松
A52: 下 島 松 | B52: =SUM(C52:W52) -> 308 | C52: 3 | D52: 9 | E52: 10 | F52: 11 | G52: 9 | H52: 8 | I52: 8 | J52: 9 | K52: 16 | L52: 15 | M52: 22 | N52: 22 | O52: 30 | P52: 34 | Q52: 25 | R52: 28 | S52: 27 | T52: 17 | U52: 4 | V52: 1 | W52: 0 | X52: 下 島 松
A53: 穂 栄 | B53: =SUM(C53:W53) -> 103 | C53: 5 | D53: 4 | E53: 0 | F53: 0 | G53: 2 | H53: 1 | I53: 4 | J53: 5 | K53: 5 | L53: 8 | M53: 1 | N53: 2 | O53: 10 | P53: 9 | Q53: 16 | R53: 18 | S53: 4 | T53: 4 | U53: 2 | V53: 3 | W53: 0 | X53: 穂 栄
A54: 北 島 | B54: =SUM(C54:W54) -> 94 | C54: 0 | D54: 8 | E54: 8 | F54: 3 | G54: 2 | H54: 3 | I54: 2 | J54: 6 | K54: 3 | L54: 3 | M54: 11 | N54: 5 | O54: 8 | P54: 5 | Q54: 4 | R54: 10 | S54: 10 | T54: 0 | U54: 3 | V54: 0 | W54: 0 | X54: 北 島
A55: 合計 | B55: 47184 | C55: 2124 | D55: 2381 | E55: 2367 | F55: 2590 | G55: 2579 | H55: 2463 | I55: 2882 | J55: 3699 | K55: 3832 | L55: 3330 | M55: 2878 | N55: 2613 | O55: 3206 | P55: 2904 | Q55: 2483 | R55: 2170 | S55: 1448 | T55: 831 | U55: 310 | V55: 87 | W55: 7 | X55: 合 計
A56: 〈資料〉生活環境部市民課

Sheet 全道各市の人口
A1: ９）全道各市の人口（人口順）
J3: （各年1月1日）
A4: 順 位 | B4: 区 分 | C4: 平 成 2 6 年 | G4: 区 分 | H4: 平 成 2 7 年
C5: 人 口 | F5: 世帯数 | H5: 人 口 | K5: 世帯数
C6: 総 数 | D6: 男 | E6: 女 | H6: 総 数 | I6: 男 | J6: 女
B7: 全道 | C7: 5441079 | D7: 2575347 | E7: 2865732 | F7: 2709054 | G7: 全道 | H7: 5408756 | I7: 2558545 | J7: 2850211 | K7: 2718933
B8: 市部 | C8: 4415521 | D8: 2082408 | E8: 2333113 | F8: 2236041 | G8: 市部 | H8: 4397982 | I8: 2072526 | J8: 2325456 | K8: 2247111
B9: 郡部 | C9: 1025558 | D9: 492939 | E9: 532619 | F9: 473013 | G9: 郡部 | H9: 1010774 | I9: 486019 | J9: 524755 | K9: 471822
A11: 1 | B11: 札幌市 | C11: 1921070 | D11: 901232 | E11: 1019838 | F11: 998250 | G11: 札幌市 | H11: 1926287 | I11: 902802 | J11: 1023485 | K11: 1008265
B12: 中央区 | C12: 222392 | D12: 100594 | E12: 121798 | F12: 130239 | G12: 中央区 | H12: 224928 | I12: 101791 | J12: 123137 | K12: 132090
B13: 北区 | C13: 278827 | D13: 132513 | E13: 146314 | F13: 142540 | G13: 北区 | H13: 280033 | I13: 132988 | J13: 147045 | K13: 144211
B14: 東区 | C14: 256240 | D14: 122029 | E14: 134211 | F14: 134396 | G14: 東区 | H14: 257110 | I14: 122337 | J14: 134773 | K14: 135739
B15: 白石区 | C15: 208624 | D15: 99594 | E15: 109030 | F15: 114740 | G15: 白石区 | H15: 209324 | I15: 99898 | J15: 109426 | K15: 115818
B16: 豊平区 | C16: 216009 | D16: 100723 | E16: 115286 | F16: 118282 | G16: 豊平区 | H16: 216931 | I16: 101034 | J16: 115897 | K16: 119538
B17: 南区 | C17: 142439 | D17: 66466 | E17: 75973 | F17: 71232 | G17: 南区 | H17: 141262 | I17: 65819 | J17: 75443 | K17: 71463
B18: 西区 | C18: 211079 | D18: 98083 | E18: 112996 | F18: 107674 | G18: 西区 | H18: 211711 | I18: 98133 | J18: 113578 | K18: 108703
B19: 厚別区 | C19: 129517 | D19: 59751 | E19: 69766 | F19: 62409 | G19: 厚別区 | H19: 129058 | I19: 59469 | J19: 69589 | K19: 62898
B20: 手稲区 | C20: 140922 | D20: 66716 | E20: 74206 | F20: 66001 | G20: 手稲区 | H20: 141009 | I20: 66696 | J20: 74313 | K20: 66580
B21: 清田区 | C21: 115021 | D21: 54763 | E21: 60258 | F21: 50737 | G21: 清田区 | H21: 114921 | I21: 54637 | J21: 60284 | K21: 51225
A22: 2 | B22: 旭川市 | C22: 348378 | D22: 162064 | E22: 186314 | F22: 175253 | G22: 旭川市 | H22: 346507 | I22: 161096 | J22: 185411 | K22: 175912
A23: 3 | B23: 函館市 | C23: 273712 | D23: 125039 | E23: 148673 | F23: 143277 | G23: 函館市 | H23: 270674 | I23: 123546 | J23: 147128 | K23: 142997
A24: 4 | B24: 釧路市 | C24: 179754 | D24: 84848 | E24: 94906 | F24: 94012 | G24: 釧路市 | H24: 177921 | I24: 83955 | J24: 93966 | K24: 94188
A25: 5 | B25: 苫小牧市 | C25: 174024 | D25: 84926 | E25: 89098 | F25: 85453 | G25: 苫小牧市 | H25: 173632 | I25: 84740 | J25: 88892 | K25: 86018
A26: 6 | B26: 帯広市 | C26: 168614 | D26: 80698 | E26: 87916 | F26: 83881 | G26: 帯広市 | H26: 168255 | I26: 80341 | J26: 87914 | K26: 84657
A27: 7 | B27: 小樽市 | C27: 126781 | D27: 57296 | E27: 69485 | F27: 66003 | G27: 小樽市 | H27: 124553 | I27: 56249 | J27: 68304 | K27: 65433
A28: 8 | B28: 北見市 | C28: 123074 | D28: 58565 | E28: 64509 | F28: 60878 | G28: 北見市 | H28: 121866 | I28: 57917 | J28: 63949 | K28: 61017
A29: 9 | B29: 江別市 | C29: 120439 | D29: 57344 | E29: 63095 | F29: 54704 | G29: 江別市 | H29: 119822 | I29: 56999 | J29: 62823 | K29: 54944
A30: 10 | B30: 千歳市 | C30: 95078 | D30: 48450 | E30: 46628 | F30: 45925 | G30: 千歳市 | H30: 95112 | I30: 48381 | J30: 46731 | K30: 46282
A31: 11 | B31: 室蘭市 | C31: 90996 | D31: 43689 | E31: 47307 | F31: 47215 | G31: 室蘭市 | H31: 89512 | I31: 42897 | J31: 46615 | K31: 46986
A32: 12 | B32: 岩見沢市 | C32: 87161 | D32: 40880 | E32: 46281 | F32: 42310 | G32: 岩見沢市 | H32: 85936 | I32: 40331 | J32: 45605 | K32: 42138
A33: 13 | B33: 恵庭市 | C33: 68653 | D33: 33516 | E33: 35137 | F33: 30856 | G33: 恵庭市 | H33: 68731 | I33: 33485 | J33: 35246 | K33: 31165
A34: 14 | B34: 北広島市 | C34: 59771 | D34: 28761 | E34: 31010 | F34: 26388 | G34: 北広島市 | H34: 59485 | I34: 28627 | J34: 30858 | K34: 26604
A35: 15 | B35: 石狩市 | C35: 59827 | D35: 28946 | E35: 30881 | F35: 26837 | G35: 石狩市 | H35: 59218 | I35: 28675 | J35: 30543 | K35: 26867
A36: 16 | B36: 登別市 | C36: 50797 | D36: 24239 | E36: 26558 | F36: 24846 | G36: 登別市 | H36: 50462 | I36: 24073 | J36: 26389 | K36: 24938
A37: 17 | B37: 北斗市 | C37: 48235 | D37: 22806 | E37: 25429 | F37: 21688 | G37: 北斗市 | H37: 47867 | I37: 22601 | J37: 25266 | K37: 21741
A38: 18 | B38: 滝川市 | C38: 42212 | D38: 19929 | E38: 22283 | F38: 21343 | G38: 滝川市 | H38: 41844 | I38: 19729 | J38: 22115 | K38: 21340
A39: 19 | B39: 網走市 | C39: 38068 | D39: 18749 | E39: 19319 | F39: 18423 | G39: 網走市 | H39: 37553 | I39: 18478 | J39: 19075 | K39: 18329
A40: 20 | B40: 稚内市 | C40: 36918 | D40: 18106 | E40: 18812 | F40: 18479 | G40: 稚内市 | H40: 36500 | I40: 17915 | J40: 18585 | K40: 18375
A41: 21 | B41: 伊達市 | C41: 36085 | D41: 16887 | E41: 19198 | F41: 17878 | G41: 伊達市 | H41: 35712 | I41: 16702 | J41: 19010 | K41: 17814
A42: 22 | B42: 名寄市 | C42: 29478 | D42: 14314 | E42: 15164 | F42: 14433 | G42: 名寄市 | H42: 29031 | I42: 14133 | J42: 14898 | K42: 14317
A43: 23 | B43: 根室市 | C43: 28289 | D43: 13599 | E43: 14690 | F43: 12860 | G43: 根室市 | H43: 27793 | I43: 13364 | J43: 14429 | K43: 12780
A44: 24 | B44: 美唄市 | C44: 24446 | D44: 11553 | E44: 12893 | F44: 12122 | G44: 美唄市 | H44: 23935 | I44: 11319 | J44: 12616 | K44: 12258
A45: 25 | B45: 紋別市 | C45: 23774 | D45: 11265 | E45: 12509 | F45: 12016 | G45: 紋別市 | H45: 23355 | I45: 11065 | J45: 12290 | K45: 11916
A46: 26 | B46: 富良野市 | C46: 23473 | D46: 11105 | E46: 12368 | F46: 10927 | G46: 富良野市 | H46: 23177 | I46: 10949 | J46: 12228 | K46: 10903
A47: 28 | B47: 留萌市 | C47: 23362 | D47: 11193 | E47: 12169 | F47: 11965 | G47: 留萌市 | H47: 22867 | I47: 10944 | J47: 11923 | K47: 11844
A48: 27 | B48: 深川市 | C48: 22648 | D48: 10557 | E48: 12091 | F48: 11197 | G48: 深川市 | H48: 22225 | I48: 10371 | J48: 11854 | K48: 11102
A49: 29 | B49: 士別市 | C49: 21037 | D49: 9908 | E49: 11129 | F49: 9783 | G49: 士別市 | H49: 20637 | I49: 9751 | J49: 10886 | K49: 9720
A50: 30 | B50: 砂川市 | C50: 18416 | D50: 8564 | E50: 9852 | F50: 9076 | G50: 砂川市 | H50: 18082 | I50: 8407 | J50: 9675 | K50: 9025
A51: 31 | B51: 芦別市 | C51: 15813 | D51: 7241 | E51: 8572 | F51: 8375 | G51: 芦別市 | H51: 15362 | I51: 7029 | J51: 8333 | K51: 8217
A52: 32 | B52: 赤平市 | C52: 11657 | D52: 5338 | E52: 6319 | F52: 6388 | G52: 赤平市 | H52: 11332 | I52: 5180 | J52: 6152 | K52: 6284
A53: 33 | B53: 三笠市 | C53: 9687 | D53: 4363 | E53: 5324 | F53: 5449 | G53: 三笠市 | H53: 9505 | I53: 4290 | J53: 5215 | K53: 5314
A54: 34 | B54: 夕張市 | C54: 9774 | D54: 4598 | E54: 5176 | F54: 5348 | G54: 夕張市 | H54: 9409 | I54: 4418 | J54: 4991 | K54: 5288
A55: 35 | B55: 歌志内市 | C55: 4020 | D55: 1840 | E55: 2180 | F55: 2203 | G55: 歌志内市 | H55: 3823 | I55: 1767 | J55: 2056 | K55: 2133
A56: 〈資料〉北海道統計 | J56: （単位：人）
A57: 注）北海道による住民基本台帳移動報告については「外国人住民」を含めていない。

Sheet 国調人口推移
A1: ２．国勢調査人口
A3: １) 人口の推移（年次別）
F4: （各年10月1日）
A5: 年 | C5: 世帯数 | D5: 人 口 | G5: 前回比
D6: 男 | E6: 女 | F6: 総 数
A7: 大正 | B7: 9年 | C7: 1227 | D7: 3522 | E7: 3443 | F7: 6965 | G7: -
A8: 大正 | B8: 14年 | C8: 1269 | D8: 3711 | E8: 3645 | F8: 7356 | G8: 5.6
A9: 昭和 | B9: 5年 | C9: 1391 | D9: 4203 | E9: 4005 | F9: 8208 | G9: 11.6
B10: 10年 | C10: 1467 | D10: 4329 | E10: 4250 | F10: 8579 | G10: 4.5
B11: 15年 | C11: 1590 | D11: 4806 | E11: 4623 | F11: 9429 | G11: 9.9
B12: 22年 | C12: 2321 | D12: 6717 | E12: 6305 | F12: 13022 | G12: 38.1
B13: 2年 | C13: 2311 | D13: 7923 | E13: 6533 | F13: 14456 | G13: 11
B14: 30年 | C14: 3765 | D14: 13850 | E14: 9530 | F14: 23380 | G14: 61.7
B15: 35年 | C15: 5085 | D15: 15244 | E15: 11398 | F15: 26642 | G15: 14
B16: 40年 | C16: 6863 | D16: 16459 | E16: 13850 | F16: 30309 | G16: 13.8
B17: 45年 | C17: 8710 | D17: 18139 | E17: 16310 | F17: 34449 | G17: 13.7
B18: 50年 | C18: 10806 | D18: 20836 | E18: 19048 | F18: 39884 | G18: 15.8
B19: 55年 | C19: 12321 | D19: 22072 | E19: 20839 | F19: 42911 | G19: 7.6
B20: 60年 | C20: 14220 | D20: 24474 | E20: 23831 | F20: 48305 | G20: 12.6
A21: 平成 | B21: 2年 | C21: 17528 | D21: 27980 | E21: 27635 | F21: 55615 | G21: 15.1
B22: 7年 | C22: 21383 | D22: 31376 | E22: 30975 | F22: 62351 | G22: 12.1
B23: 12年 | C23: 23660 | D23: =32503 -> 32503 | E23: 32736 | F23: =D23+E23 -> 65239 | G23: 4.6
B24: 17年 | C24: 25662 | D24: 33317 | E24: 34297 | F24: =SUM(D24:E24) -> 67614 | G24: 3.6
B25: 22年 | C25: 27634 | D25: 33945 | E25: 35439 | F25: 69384 | G25: 2.6
A26: 〈資料〉総務省 国勢調査 | F26: （単位：人）

Sheet 地域の人口①
A1: ２）地域の人口
J2: （各年10月1日）
A3: 町名 | B3: 平成17年国勢調査 | F3: 平成22年国勢調査 | J3: 比較
B4: 世帯数 | C4: 男 | D4: 女 | E4: 計 | F4: 世帯数 | G4: 男 | H4: 女 | I4: 計 | J4: 世帯数 | K4: 人口
A5: 合計 | B5: 25662 | C5: 33317 | D5: 34297 | E5: 67614 | F5: 27634 | G5: 33945 | H5: 35439 | I5: 69384 | J5: =$F5-$B5 -> 1972 | K5: =$I5-$E5 -> 1770
A6: 漁太 | B6: 57 | C6: 92 | D6: 93 | E6: 185 | F6: 54 | G6: 79 | H6: 80 | I6: 159 | J6: =$F6-$B6 -> -3 | K6: -26
A7: 林田 | B7: 17 | C7: 28 | D7: 31 | E7: 59 | F7: 16 | G7: 25 | H7: 21 | I7: 46 | J7: -1 | K7: -13
A8: 春日 | B8: 60 | C8: 88 | D8: 87 | E8: 175 | F8: 52 | G8: 79 | H8: 69 | I8: 148 | J8: -8 | K8: -27
A9: 中央 | B9: 64 | C9: 98 | D9: 96 | E9: 194 | F9: 60 | G9: 91 | H9: 86 | I9: 177 | J9: -4 | K9: -17
A10: 上山口 | B10: 72 | C10: 120 | D10: 128 | E10: 248 | F10: 67 | G10: 92 | H10: 106 | I10: 198 | J10: -5 | K10: -50
A11: 戸磯 | B11: 1128 | C11: 1533 | D11: 1501 | E11: 3034 | F11: 52 | G11: 58 | H11: 81 | I11: 139 | J11: -1076 | K11: -2895
A12: 恵南 | B12: 232 | C12: 530 | D12: 312 | E12: 842 | F12: 229 | G12: 422 | H12: 296 | I12: 718 | J12: -3 | K12: -124
A13: 和光町１丁目 | B13: 170 | C13: 211 | D13: 221 | E13: 432 | F13: 173 | G13: 200 | H13: 210 | I13: 410 | J13: 3 | K13: -22
A14: 和光町２丁目 | B14: 210 | C14: 297 | D14: 278 | E14: 575 | F14: 209 | G14: 303 | H14: 275 | I14: 578 | J14: -1 | K14: 3
A15: 和光町３丁目 | B15: 199 | C15: 245 | D15: 284 | E15: 529 | F15: 192 | G15: 229 | H15: 249 | I15: 478 | J15: -7 | K15: -51
A16: 和光町４丁目 | B16: 164 | C16: 208 | D16: 226 | E16: 434 | F16: 204 | G16: 231 | H16: 246 | I16: 477 | J16: =F16-B16 -> 40 | K16: =I16-E16 -> 43
A17: 和光町５丁目 | B17: - | C17: - | D17: - | E17: - | F17: 321 | G17: 367 | H17: 342 | I17: 709 | J17: - | K17: -
A18: 駒場町１丁目 | B18: 258 | C18: 315 | D18: 317 | E18: 632 | F18: 284 | G18: 315 | H18: 314 | I18: 629 | J18: =$F18-$B18 -> 26 | K18: =$I18-$E18 -> -3
A19: 駒場町２丁目 | B19: 128 | C19: 147 | D19: 170 | E19: 317 | F19: 140 | G19: 183 | H19: 189 | I19: 372 | J19: =$F19-$B19 -> 12 | K19: =$I19-$E19 -> 55
A20: 駒場町３丁目 | B20: 91 | C20: 119 | D20: 139 | E20: 258 | F20: 94 | G20: 117 | H20: 126 | I20: 243 | J20: 3 | K20: -15
A21: 駒場町４丁目 | B21: 122 | C21: 167 | D21: 182 | E21: 349 | F21: 134 | G21: 178 | H21: 173 | I21: 351 | J21: 12 | K21: 2
A22: 駒場町５丁目 | B22: 95 | C22: 117 | D22: 106 | E22: 223 | F22: 94 | G22: 110 | H22: 104 | I22: 214 | J22: -1 | K22: -9
A23: 駒場町６丁目 | B23: 110 | C23: 143 | D23: 140 | E23: 283 | F23: 112 | G23: 147 | H23: 148 | I23: 295 | J23: 2 | K23: 12
A24: 白樺町１丁目 | B24: 138 | C24: 178 | D24: 181 | E24: 359 | F24: 152 | G24: 191 | H24: 198 | I24: 389 | J24: 14 | K24: 30
A25: 白樺町２丁目 | B25: 154 | C25: 208 | D25: 161 | E25: 369 | F25: 143 | G25: 178 | H25: 152 | I25: 330 | J25: -11 | K25: -39
A26: 白樺町３丁目 | B26: 216 | C26: 344 | D26: 348 | E26: 692 | F26: 220 | G26: 311 | H26: 338 | I26: 649 | J26: 4 | K26: -43
A27: 白樺町４丁目 | B27: 15 | C27: 63 | D27: 26 | E27: 89 | F27: 16 | G27: 40 | H27: 35 | I27: 75 | J27: 1 | K27: -14
A28: 黄金南１丁目 | B28: 962 | C28: 1125 | D28: 1168 | E28: 2293 | F28: 290 | G28: 404 | H28: 427 | I28: 831 | J28: =(F28+F29+F30+F31+F32+F33+F34+F35+F36+F37+F38+F39)-B28 -> 1512 | K28: =(I28+I29+I30+I31+I32+I33+I34+I35+I36+I37+I38+I39)-E28 -> 3943
A29: 黄金南２丁目 | F29: 241 | G29: 308 | H29: 318 | I29: 626
A30: 黄金南３丁目 | F30: 256 | G30: 353 | H30: 373 | I30: 726
A31: 黄金南４丁目 | F31: 263 | G31: 428 | H31: 400 | I31: 828
A32: 黄金南５丁目 | F32: 85 | G32: 104 | H32: 120 | I32: 224
A33: 黄金南６丁目 | F33: 91 | G33: 148 | H33: 142 | I33: 290
A34: 黄金南７丁目 | F34: 266 | G34: 373 | H34: 390 | I34: 763
A35: 黄金中央１丁目 | F35: 207 | G35: 216 | H35: 207 | I35: 423
A36: 黄金中央２丁目 | F36: 224 | G36: 181 | H36: 203 | I36: 384
A37: 黄金中央３丁目 | F37: 333 | G37: 304 | H37: 310 | I37: 614
A38: 黄金中央４丁目 | F38: 218 | G38: 277 | H38: 250 | I38: 527
A39: 黄金中央５丁目 | F39: 0 | G39: 0 | H39: 0 | I39: 0
A40: 黄金北１丁目 | B40: 234 | C40: 277 | D40: 254 | E40: 531 | F40: 284 | G40: 313 | H40: 303 | I40: 616 | J40: =F40-B40 -> 50 | K40: =$I40-$E40 -> 85
A41: 黄金北２丁目 | B41: - | C41: - | D41: - | E41: - | F41: 226 | G41: 251 | H41: 285 | I41: 536 | J41: - | K41: -
A42: 黄金北３丁目 | B42: 327 | C42: 407 | D42: 411 | E42: 818 | F42: 320 | G42: 383 | H42: 419 | I42: 802 | J42: =$F42-$B42 -> -7 | K42: =$I42-$E42 -> -16
A43: 黄金北４丁目 | B43: 318 | C43: 371 | D43: 396 | E43: 767 | F43: 345 | G43: 368 | H43: 403 | I43: 771 | J43: =$F43-$B43 -> 27 | K43: =$I43-$E43 -> 4
A44: 相生町 | B44: 805 | C44: 809 | D44: 832 | E44: 1641 | F44: 940 | G44: 895 | H44: 906 | I44: 1801 | J44: =$F44-$B44 -> 135 | K44: =$I44-$E44 -> 160
A45: 緑町１丁目 | B45: 391 | C45: 429 | D45: 488 | E45: 917 | F45: 98 | G45: 96 | H45: 78 | I45: 174 | J45: =(F45+F46)-B45 -> 26 | K45: =(I45+I46)-E45 -> -12
A46: 緑町２丁目 | F46: 319 | G46: 333 | H46: 398 | I46: 731
A47: 住吉町１丁目 | B47: 95 | C47: 123 | D47: 119 | E47: 242 | F47: 104 | G47: 118 | H47: 129 | I47: 247 | J47: =$F47-$B47 -> 9 | K47: =$I47-$E47 -> 5
A48: 住吉町２丁目 | B48: 227 | C48: 303 | D48: 316 | E48: 619 | F48: 268 | G48: 320 | H48: 336 | I48: 656 | J48: =$F48-$B48 -> 41 | K48: =$I48-$E48 -> 37
A49: 住吉町３丁目 | B49: 200 | C49: 234 | D49: 221 | E49: 455 | F49: 232 | G49: 259 | H49: 277 | I49: 536 | J49: 32 | K49: 81
A50: 住吉町４丁目 | B50: 148 | C50: 188 | D50: 211 | E50: 399 | F50: 154 | G50: 182 | H50: 219 | I50: 401 | J50: 6 | K50: 2
A51: 末広町 | B51: 251 | C51: 251 | D51: 265 | E51: 516 | F51: 273 | G51: 269 | H51: 308 | I51: 577 | J51: 22 | K51: 61
A52: 栄恵町 | B52: 91 | C52: 88 | D52: 98 | E52: 186 | F52: 95 | G52: 84 | H52: 85 | I52: 169 | J52: 4 | K52: -17
A53: 泉町 | B53: 289 | C53: 280 | D53: 277 | E53: 557 | F53: 340 | G53: 331 | H53: 290 | I53: 621 | J53: 51 | K53: 64
A54: 桜町１丁目 | B54: 197 | C54: 245 | D54: 210 | E54: 455 | F54: 161 | G54: 200 | H54: 156 | I54: 356 | J54: -36 | K54: -99
A55: 桜町２丁目 | B55: 362 | C55: 406 | D55: 457 | E55: 863 | F55: 374 | G55: 375 | H55: 468 | I55: 843 | J55: 12 | K55: -20
A56: 〈資料〉総務省 国勢調査 | J56: （単位：人）
A57: 注）和光町5丁目は戸磯から、黄金北2丁目･黄金中央1～5丁目･黄金南1～7丁目は黄金町及び戸磯の一部から分割
A58: した新住居表示である。

Sheet 地域の人口②
J1: （各年10月1日）
A2: 町名 | B2: 平成17年国勢調査 | F2: 平成22年国勢調査 | J2: 比較
B3: 世帯数 | C3: 男 | D3: 女 | E3: 計 | F3: 世帯数 | G3: 男 | H3: 女 | I3: 計 | J3: 世帯数 | K3: 人口
A4: 桜町３丁目 | B4: 123 | C4: 173 | D4: 155 | E4: 328 | F4: 147 | G4: 202 | H4: 178 | I4: 380 | J4: =$F4-$B4 -> 24 | K4: =$I4-$E4 -> 52
A5: 桜町４丁目 | B5: 2 | C5: - | D5: 2 | E5: 2 | F5: 0 | G5: 0 | H5: 0 | I5: 0 | J5: -2 | K5: -2
A6: 京町 | B6: 36 | C6: 40 | D6: 49 | E6: 89 | F6: 59 | G6: 56 | H6: 59 | I6: 115 | J6: 23 | K6: 26
A7: 漁町 | B7: 491 | C7: 526 | D7: 525 | E7: 1051 | F7: 523 | G7: 519 | H7: 522 | I7: 1041 | J7: 32 | K7: -10
A8: 福住町１丁目 | B8: 330 | C8: 414 | D8: 456 | E8: 870 | F8: 327 | G8: 398 | H8: 433 | I8: 831 | J8: -3 | K8: -39
A9: 福住町２丁目 | B9: 171 | C9: 187 | D9: 203 | E9: 390 | F9: 162 | G9: 165 | H9: 200 | I9: 365 | J9: -9 | K9: -25
A10: 福住町３丁目 | B10: 239 | C10: 279 | D10: 285 | E10: 564 | F10: 220 | G10: 239 | H10: 274 | I10: 513 | J10: -19 | K10: -51
A11: 新町 | B11: 57 | C11: 70 | D11: 33 | E11: 103 | F11: 55 | G11: 63 | H11: 38 | I11: 101 | J11: =$F11-$B11 -> -2 | K11: =$I11-$E11 -> -2
A12: 本町 | B12: 207 | C12: 252 | D12: 251 | E12: 503 | F12: 216 | G12: 257 | H12: 257 | I12: 514 | J12: 9 | K12: 11
A13: 有明町１丁目 | B13: 242 | C13: 263 | D13: 278 | E13: 541 | F13: 230 | G13: 234 | H13: 251 | I13: 485 | J13: -12 | K13: -56
A14: 有明町２丁目 | B14: 200 | C14: 252 | D14: 245 | E14: 497 | F14: 210 | G14: 251 | H14: 271 | I14: 522 | J14: 10 | K14: 25
A15: 有明町３丁目 | B15: 125 | C15: 152 | D15: 178 | E15: 330 | F15: 121 | G15: 129 | H15: 156 | I15: 285 | J15: -4 | K15: -45
A16: 有明町４丁目 | B16: 124 | C16: 162 | D16: 161 | E16: 323 | F16: 123 | G16: 147 | H16: 171 | I16: 318 | J16: -1 | K16: -5
A17: 有明町５丁目 | B17: 108 | C17: 130 | D17: 119 | E17: 249 | F17: 115 | G17: 133 | H17: 132 | I17: 265 | J17: 7 | K17: 16
A18: 有明町６丁目 | B18: 177 | C18: 205 | D18: 209 | E18: 414 | F18: 175 | G18: 207 | H18: 201 | I18: 408 | J18: -2 | K18: -6
A19: 大町１丁目 | B19: 92 | C19: 105 | D19: 110 | E19: 215 | F19: 87 | G19: 102 | H19: 111 | I19: 213 | J19: -5 | K19: -2
A20: 大町２丁目 | B20: 78 | C20: 87 | D20: 96 | E20: 183 | F20: 81 | G20: 85 | H20: 78 | I20: 163 | J20: 3 | K20: -20
A21: 大町３丁目 | B21: 83 | C21: 104 | D21: 111 | E21: 215 | F21: 92 | G21: 121 | H21: 117 | I21: 238 | J21: 9 | K21: 23
A22: 大町４丁目 | B22: 86 | C22: 97 | D22: 106 | E22: 203 | F22: 89 | G22: 105 | H22: 111 | I22: 216 | J22: 3 | K22: 13
A23: 文京町１丁目 | B23: 204 | C23: 264 | D23: 284 | E23: 548 | F23: 217 | G23: 269 | H23: 297 | I23: 566 | J23: 13 | K23: 18
A24: 文京町２丁目 | B24: 163 | C24: 235 | D24: 247 | E24: 482 | F24: 170 | G24: 220 | H24: 255 | I24: 475 | J24: 7 | K24: -7
A25: 文京町３丁目 | B25: 50 | C25: 62 | D25: 62 | E25: 124 | F25: 74 | G25: 87 | H25: 77 | I25: 164 | J25: 24 | K25: 40
A26: 文京町４丁目 | B26: 222 | C26: 306 | D26: 323 | E26: 629 | F26: 212 | G26: 296 | H26: 303 | I26: 599 | J26: -10 | K26: -30
A27: 牧場 | B27: 100 | C27: 175 | D27: 166 | E27: 341 | F27: 100 | G27: 161 | H27: 156 | I27: 317 | J27: 0 | K27: -24
A28: 美咲野１丁目 | B28: 171 | C28: 278 | D28: 314 | E28: 592 | F28: 187 | G28: 296 | H28: 322 | I28: 618 | J28: 16 | K28: 26
A29: 美咲野２丁目 | B29: 115 | C29: 198 | D29: 200 | E29: 398 | F29: 116 | G29: 188 | H29: 201 | I29: 389 | J29: 1 | K29: -9
A30: 美咲野３丁目 | B30: 105 | C30: 187 | D30: 170 | E30: 357 | F30: 129 | G30: 203 | H30: 193 | I30: 396 | J30: 24 | K30: 39
A31: 美咲野４丁目 | B31: 88 | C31: 154 | D31: 139 | E31: 293 | F31: 93 | G31: 158 | H31: 156 | I31: 314 | J31: 5 | K31: 21
A32: 美咲野５丁目 | B32: 84 | C32: 116 | D32: 128 | E32: 244 | F32: 90 | G32: 116 | H32: 131 | I32: 247 | J32: 6 | K32: 3
A33: 美咲野６丁目 | B33: 89 | C33: 119 | D33: 143 | E33: 262 | F33: 120 | G33: 189 | H33: 194 | I33: 383 | J33: 31 | K33: 121
A34: 盤尻 | B34: 6 | C34: 10 | D34: 5 | E34: 15 | F34: 8 | G34: 9 | H34: 8 | I34: 17 | J34: 2 | K34: 2
A35: 桜森 | B35: 0 | C35: 0 | D35: 0 | E35: 0 | F35: 0 | G35: 0 | H35: 0 | I35: 0 | J35: 0 | K35: 0
A36: 中島町１丁目 | B36: 260 | C36: 308 | D36: 328 | E36: 636 | F36: 268 | G36: 330 | H36: 331 | I36: 661 | J36: =$F36-$B36 -> 8 | K36: =$I36-$E36 -> 25
A37: 中島町２丁目 | B37: 179 | C37: 291 | D37: 265 | E37: 556 | F37: 203 | G37: 286 | H37: 295 | I37: 581 | J37: =$F37-$B37 -> 24 | K37: =$I37-$E37 -> 25
A38: 中島町３丁目 | B38: 52 | C38: 86 | D38: 74 | E38: 160 | F38: 70 | G38: 100 | H38: 95 | I38: 195 | J38: 18 | K38: 35
A39: 中島町４丁目 | B39: 480 | C39: 560 | D39: 569 | E39: 1129 | F39: 516 | G39: 558 | H39: 566 | I39: 1124 | J39: 36 | K39: -5
A40: 中島町５丁目 | B40: 278 | C40: 223 | D40: 208 | E40: 431 | F40: 318 | G40: 283 | H40: 238 | I40: 521 | J40: 40 | K40: 90
A41: 中島町６丁目 | B41: 314 | C41: 381 | D41: 380 | E41: 761 | F41: 355 | G41: 353 | H41: 420 | I41: 773 | J41: 41 | K41: 12
A42: 恵央町 | B42: 330 | C42: 301 | D42: 371 | E42: 672 | F42: 321 | G42: 271 | H42: 352 | I42: 623 | J42: -9 | K42: -49
A43: 幸町１丁目 | B43: 408 | C43: 542 | D43: 535 | E43: 1077 | F43: 85 | G43: 110 | H43: 108 | I43: 218 | J43: =(F43+F44+F45+F46)-B43 -> 6 | K43: =(I43+I44+I45+I46)-E43 -> 5
A44: 幸町２丁目 | F44: 152 | G44: 208 | H44: 208 | I44: 416
A45: 幸町３丁目 | F45: 177 | G45: 201 | H45: 247 | I45: 448
A46: 幸町４丁目 | F46: 0 | G46: 0 | H46: 0 | I46: 0
A47: 柏陽町１丁目 | B47: 329 | C47: 382 | D47: 422 | E47: 804 | F47: 334 | G47: 362 | H47: 387 | I47: 749 | J47: =$F47-$B47 -> 5 | K47: =$I47-$E47 -> -55
A48: 柏陽町３丁目 | B48: 445 | C48: 563 | D48: 555 | E48: 1118 | F48: 513 | G48: 602 | H48: 591 | I48: 1193 | J48: 68 | K48: 75
A49: 柏陽町４丁目 | B49: 315 | C49: 321 | D49: 380 | E49: 701 | F49: 325 | G49: 298 | H49: 349 | I49: 647 | J49: 10 | K49: -54
A50: 柏木町 | B50: 951 | C50: 1506 | D50: 1255 | E50: 2761 | F50: 997 | G50: 1441 | H50: 1232 | I50: 2673 | J50: 46 | K50: -88
A51: 北柏木町１丁目 | B51: 482 | C51: 669 | D51: 717 | E51: 1386 | F51: 492 | G51: 646 | H51: 686 | I51: 1332 | J51: 10 | K51: -54
A52: 北柏木町３丁目 | B52: 11 | C52: 13 | D52: 11 | E52: 24 | F52: 10 | G52: 14 | H52: 12 | I52: 26 | J52: -1 | K52: 2
A53: 〈資料〉総務省 国勢調査 | I53: （単位：人）

Sheet 地域の人口③
J1: （各年10月1日）
A2: 町名 | B2: 平成17年国勢調査 | F2: 平成22年国勢調査 | J2: 比較
B3: 世帯数 | C3: 男 | D3: 女 | E3: 計 | F3: 世帯数 | G3: 男 | H3: 女 | I3: 計 | J3: 世帯数 | K3: 人口
A4: 北柏木町４丁目 | B4: 1 | C4: 2 | D4: 1 | E4: 3 | F4: 0 | G4: 0 | H4: 0 | I4: 0 | J4: =$F4-$B4 -> -1 | K4: =$I4-$E4 -> -3
A5: 北柏木町５丁目 | B5: 2 | C5: 2 | D5: 1 | E5: 3 | F5: 0 | G5: 0 | H5: 0 | I5: 0 | J5: =$F5-$B5 -> -2 | K5: =$I5-$E5 -> -3
A6: 島松沢 | B6: 13 | C6: 14 | D6: 12 | E6: 26 | F6: 11 | G6: 12 | H6: 11 | I6: 23 | J6: =$F6-$B6 -> -2 | K6: =$I6-$E6 -> -3
A7: 恵み野東１丁目 | B7: 104 | C7: 139 | D7: 169 | E7: 308 | F7: 109 | G7: 133 | H7: 159 | I7: 292 | J7: =$F7-$B7 -> 5 | K7: =$I7-$E7 -> -16
A8: 恵み野東２丁目 | B8: 191 | C8: 280 | D8: 298 | E8: 578 | F8: 205 | G8: 272 | H8: 288 | I8: 560 | J8: 14 | K8: -18
A9: 恵み野東３丁目 | B9: 136 | C9: 190 | D9: 216 | E9: 406 | F9: 145 | G9: 182 | H9: 203 | I9: 385 | J9: 9 | K9: -21
A10: 恵み野東４丁目 | B10: 128 | C10: 190 | D10: 197 | E10: 387 | F10: 128 | G10: 182 | H10: 196 | I10: 378 | J10: 0 | K10: -9
A11: 恵み野東５丁目 | B11: 196 | C11: 274 | D11: 296 | E11: 570 | F11: 216 | G11: 297 | H11: 286 | I11: 583 | J11: 20 | K11: 13
A12: 恵み野東６丁目 | B12: 168 | C12: 250 | D12: 251 | E12: 501 | F12: 170 | G12: 235 | H12: 231 | I12: 466 | J12: 2 | K12: -35
A13: 恵み野東７丁目 | B13: 187 | C13: 322 | D13: 311 | E13: 633 | F13: 181 | G13: 281 | H13: 287 | I13: 568 | J13: -6 | K13: -65
A14: 恵み野西１丁目 | B14: 282 | C14: 319 | D14: 401 | E14: 720 | F14: 285 | G14: 303 | H14: 388 | I14: 691 | J14: 3 | K14: -29
A15: 恵み野西２丁目 | B15: 87 | C15: 119 | D15: 178 | E15: 297 | F15: 97 | G15: 116 | H15: 172 | I15: 288 | J15: 10 | K15: -9
A16: 恵み野西３丁目 | B16: 142 | C16: 173 | D16: 201 | E16: 374 | F16: 143 | G16: 168 | H16: 182 | I16: 350 | J16: 1 | K16: -24
A17: 恵み野西４丁目 | B17: 178 | C17: 208 | D17: 255 | E17: 463 | F17: 179 | G17: 206 | H17: 242 | I17: 448 | J17: 1 | K17: -15
A18: 恵み野西５丁目 | B18: 100 | C18: 118 | D18: 146 | E18: 264 | F18: 104 | G18: 157 | H18: 194 | I18: 351 | J18: 4 | K18: 87
A19: 恵み野西６丁目 | B19: 315 | C19: 404 | D19: 485 | E19: 889 | F19: 317 | G19: 472 | H19: 467 | I19: 939 | J19: 2 | K19: 50
A20: 恵み野南１丁目 | B20: 212 | C20: 265 | D20: 287 | E20: 552 | F20: 162 | G20: 190 | H20: 212 | I20: 402 | J20: -50 | K20: -150
A21: 恵み野南２丁目 | B21: 215 | C21: 273 | D21: 304 | E21: 577 | F21: 213 | G21: 261 | H21: 304 | I21: 565 | J21: -2 | K21: -12
A22: 恵み野南３丁目 | B22: 239 | C22: 301 | D22: 342 | E22: 643 | F22: 244 | G22: 300 | H22: 328 | I22: 628 | J22: 5 | K22: -15
A23: 恵み野南４丁目 | B23: 277 | C23: 337 | D23: 399 | E23: 736 | F23: 286 | G23: 332 | H23: 418 | I23: 750 | J23: 9 | K23: 14
A24: 恵み野北１丁目 | B24: 187 | C24: 245 | D24: 275 | E24: 520 | F24: 197 | G24: 239 | H24: 276 | I24: 515 | J24: 10 | K24: -5
A25: 恵み野北２丁目 | B25: 180 | C25: 232 | D25: 270 | E25: 502 | F25: 185 | G25: 227 | H25: 268 | I25: 495 | J25: 5 | K25: -7
A26: 恵み野北３丁目 | B26: 117 | C26: 174 | D26: 201 | E26: 375 | F26: 114 | G26: 124 | H26: 216 | I26: 340 | J26: -3 | K26: -35
A27: 恵み野北４丁目 | B27: 134 | C27: 164 | D27: 165 | E27: 329 | F27: 124 | G27: 151 | H27: 163 | I27: 314 | J27: -10 | K27: -15
A28: 恵み野北５丁目 | B28: 176 | C28: 245 | D28: 284 | E28: 529 | F28: 123 | G28: 165 | H28: 174 | I28: 339 | J28: -53 | K28: -190
A29: 恵み野北６丁目 | B29: 247 | C29: 320 | D29: 327 | E29: 647 | F29: 257 | G29: 322 | H29: 328 | I29: 650 | J29: 10 | K29: 3
A30: 恵み野北７丁目 | B30: 254 | C30: 411 | D30: 456 | E30: 867 | F30: 274 | G30: 415 | H30: 471 | I30: 886 | J30: 20 | K30: 19
A31: 島松寿町１丁目 | B31: 287 | C31: 315 | D31: 351 | E31: 666 | F31: 289 | G31: 308 | H31: 335 | I31: 643 | J31: 2 | K31: -23
A32: 島松寿町２丁目 | B32: 426 | C32: 471 | D32: 563 | E32: 1034 | F32: 443 | G32: 478 | H32: 562 | I32: 1040 | J32: 17 | K32: 6
A33: 島松仲町１丁目 | B33: 137 | C33: 157 | D33: 194 | E33: 351 | F33: 119 | G33: 147 | H33: 161 | I33: 308 | J33: -18 | K33: -43
A34: 島松仲町２丁目 | B34: 115 | C34: 119 | D34: 143 | E34: 262 | F34: 109 | G34: 114 | H34: 125 | I34: 239 | J34: -6 | K34: -23
A35: 島松仲町３丁目 | B35: 65 | C35: 81 | D35: 85 | E35: 166 | F35: 71 | G35: 78 | H35: 86 | I35: 164 | J35: 6 | K35: -2
A36: 島松東町１丁目 | B36: 96 | C36: 127 | D36: 129 | E36: 256 | F36: 96 | G36: 130 | H36: 139 | I36: 269 | J36: 0 | K36: 13
A37: 島松東町２丁目 | B37: 155 | C37: 179 | D37: 216 | E37: 395 | F37: 145 | G37: 164 | H37: 194 | I37: 358 | J37: -10 | K37: -37
A38: 島松東町３丁目 | B38: 220 | C38: 282 | D38: 257 | E38: 539 | F38: 208 | G38: 249 | H38: 218 | I38: 467 | J38: -12 | K38: -72
A39: 島松東町４丁目 | B39: 70 | C39: 87 | D39: 100 | E39: 187 | F39: 78 | G39: 105 | H39: 108 | I39: 213 | J39: 8 | K39: 26
A40: 島松本町１丁目 | B40: 185 | C40: 252 | D40: 269 | E40: 521 | F40: 183 | G40: 233 | H40: 271 | I40: 504 | J40: -2 | K40: -17
A41: 島松本町２丁目 | B41: 248 | C41: 311 | D41: 331 | E41: 642 | F41: 255 | G41: 311 | H41: 332 | I41: 643 | J41: 7 | K41: 1
A42: 島松本町３丁目 | B42: 236 | C42: 271 | D42: 346 | E42: 617 | F42: 286 | G42: 349 | H42: 394 | I42: 743 | J42: 50 | K42: 126
A43: 島松本町４丁目 | B43: 178 | C43: 242 | D43: 241 | E43: 483 | F43: 199 | G43: 265 | H43: 268 | I43: 533 | J43: 21 | K43: 50
A44: 島松旭町１丁目 | B44: 99 | C44: 155 | D44: 159 | E44: 314 | F44: 104 | G44: 151 | H44: 159 | I44: 310 | J44: 5 | K44: -4
A45: 島松旭町２丁目 | B45: 134 | C45: 177 | D45: 192 | E45: 369 | F45: 136 | G45: 173 | H45: 198 | I45: 371 | J45: 2 | K45: 2
A46: 島松旭町３丁目 | B46: 82 | C46: 132 | D46: 133 | E46: 265 | F46: 95 | G46: 152 | H46: 164 | I46: 316 | J46: 13 | K46: 51
A47: 島松旭町４丁目 | B47: 142 | C47: 194 | D47: 204 | E47: 398 | F47: 146 | G47: 185 | H47: 206 | I47: 391 | J47: 4 | K47: -7
A48: 西島松 | B48: 205 | C48: 685 | D48: 450 | E48: 1135 | F48: 192 | G48: 561 | H48: 421 | I48: 982 | J48: -13 | K48: -153
A49: 南島松 | B49: 84 | C49: 135 | D49: 174 | E49: 309 | F49: 79 | G49: 137 | H49: 203 | I49: 340 | J49: -5 | K49: 31
A50: 中島松 | B50: 50 | C50: 90 | D50: 98 | E50: 188 | F50: 54 | G50: 92 | H50: 90 | I50: 182 | J50: 4 | K50: -6
A51: 下島松 | B51: 94 | C51: 227 | D51: 235 | E51: 462 | F51: 95 | G51: 229 | H51: 233 | I51: 462 | J51: 1 | K51: 0
A52: 穂栄 | B52: 42 | C52: 50 | D52: 56 | E52: 106 | F52: 42 | G52: 48 | H52: 53 | I52: 101 | J52: 0 | K52: -5
A53: 北島 | B53: 45 | C53: 72 | D53: 70 | E53: 142 | F53: 32 | G53: 57 | H53: 47 | I53: 104 | J53: -13 | K53: -38
J54: 0 | K54: 0
A55: 合計 | B55: 25662 | C55: 33317 | D55: 34297 | E55: 67614 | F55: 27634 | G55: 33945 | H55: 35439 | I55: 69384 | J55: =F55-B55 -> 1972 | K55: =I55-E55 -> 1770
A56: 注）幸町1～4丁目は幸町から分割した新住居表示である。 | I56: （単位：人）

Sheet 国調年齢別
A1: ３）年齢別人口（５歳階級）
H2: （各年10月1日）
A3: 年 齢 （各 歳） | D3: 平成17年 | G3: 平成22年
D4: 総 数 | E4: 男 | F4: 女 | G4: 総 数 | H4: 男 | I4: 女
A5: 総数 | D5: =SUM(D6:D23) -> 67614 | E5: =SUM(E6:E23) -> 33317 | F5: =SUM(F6:F23) -> 34297 | G5: =SUM(G6:G25) -> 69384 | H5: 33945 | I5: 35439
B6: 85 以上 | D6: =E6+F6 -> 1108 | E6: 323 | F6: 785 | G6: 1613 | H6: 491 | I6: 1122
B7: 80～84 | D7: 1298 | E7: 500 | F7: 798 | G7: 2108 | H7: 948 | I7: 1160
B8: 75～79 | D8: 2394 | E8: 1175 | F8: 1219 | G8: 3015 | H8: 1427 | I8: 1588
B9: 70～74 | D9: 3248 | E9: 1589 | F9: 1659 | G9: 3612 | H9: 1654 | I9: 1958
B10: 65～69 | D10: 3799 | E10: 1786 | F10: 2013 | G10: 4079 | H10: 1872 | I10: 2207
B11: 60～64 | D11: 4167 | E11: 1945 | F11: 2222 | G11: 5331 | H11: 2581 | I11: 2750
B12: 55～59 | D12: 5266 | E12: 2530 | F12: 2736 | G12: 4957 | H12: 2391 | I12: 2566
B13: 50～54 | D13: 4946 | E13: 2401 | F13: 2545 | G13: 4164 | H13: 2051 | I13: 2113
B14: 45～49 | D14: 4156 | E14: 2069 | F14: 2087 | G14: 4338 | H14: 2131 | I14: 2207
B15: 40～44 | D15: 4327 | E15: 2135 | F15: 2192 | G15: 4626 | H15: 2314 | I15: 2312
B16: 35～39 | D16: 4488 | E16: 2235 | F16: 2253 | G16: 5066 | H16: 2540 | I16: 2526
B17: 30～34 | D17: 4867 | E17: 2482 | F17: 2385 | G17: 4520 | H17: 2299 | I17: 2221
B18: 25～29 | D18: 4306 | E18: 2237 | F18: 2069 | G18: 3699 | H18: 1866 | I18: 1833
B19: 20～24 | D19: 4586 | E19: 2430 | F19: 2156 | G19: 4185 | H19: 2157 | I19: 2028
B20: 15～19 | D20: 4447 | E20: 2272 | F20: 2175 | G20: 4224 | H20: 2216 | I20: 2008
B21: 10～14 | D21: 3671 | E21: 1903 | F21: 1768 | G21: 3498 | H21: 1780 | I21: 1718
B22: 5～9 | D22: 3443 | E22: 1742 | F22: 1701 | G22: 3264 | H22: 1662 | I22: 1602
B23: 0～4 | D23: 3097 | E23: 1563 | F23: 1534 | G23: 2928 | H23: 1467 | I23: 1461
B25: 不詳 | D25: - | E25: - | F25: - | G25: 157 | H25: 98 | I25: 59
A27: （再 掲）
B28: 15歳未満 | D28: =E28+F28 -> 10211 | E28: =E21+E22+E23 -> 5208 | F28: =F21+F22+F23 -> 5003 | G28: 9690 | H28: 4909 | I28: 4781
B29: 15～64歳 | D29: =E29+F29 -> 45556 | E29: =SUM(E11:E20) -> 22736 | F29: =SUM(F11:F20) -> 22820 | G29: 45110 | H29: 22546 | I29: 22564
B30: 65歳以上 | D30: =E30+F30 -> 11847 | E30: =SUM(E6:E10) -> 5373 | F30: =SUM(F6:F10) -> 6474 | G30: 14427 | H30: 6392 | I30: 8035
B31: 不詳 | D31: - | E31: - | F31: - | G31: 157 | H31: 98 | I31: 59
A32: 年齢別割合(%)
B33: 15歳未満 | D33: 15.1 | E33: 15.6 | F33: 14.6 | G33: =G28/G5*100 -> 13.96575579 | H33: =H28/H5*100 -> 14.46162911 | I33: =I28/I5*100 -> 13.49078699
B34: 15～64歳 | D34: 67.4 | E34: 68.2 | F34: 66.5 | G34: =G29/G5*100 -> 65.01498905 | H34: =H29/H5*100 -> 66.41920754 | I34: =I29/I5*100 -> 63.66996811
B35: 65歳以上 | D35: 17.5 | E35: 16.1 | F35: 18.9 | G35: =G30/G5*100 -> 20.79297821 | H35: =H30/H5*100 -> 18.83046104 | I35: =I30/I5*100 -> 22.67276165
A36: 平均年齢 | C36: (歳) | D36: 41.3 | E36: 40.2 | F36: 42.4 | G36: 43.5 | H36: 42.3 | I36: 44.6
A37: 年齢中位数 | C37: (歳) | D37: 41 | E37: 39.4 | F37: 42.5 | G37: 43.3 | H37: 41.9 | I37: 45
A38: 〈資料〉総務省 国勢調査 （第1次基本集計結果 第3表） | H38: （単位：人）

Sheet 人口集中地区、昼間・夜間人口、産業別就業人口
A1: ４）人口集中地区（ＤＩＤ）人口および面積
F3: （各年10月1日）
A4: 年 次 | B4: 地区 | C4: 人 口 集 中 地 区 | F4: 面 積 | G4: 人口密度 （１㎢あたり）
C5: 総 数 | D5: 男 | E5: 女
A6: 平成７年 | C6: 52895 | D6: … | E6: … | F6: 11.8 | G6: 4478.8
B7: Ⅰ | C7: 45485 | F7: 10.4 | G7: 4390.4
B8: Ⅱ | C8: 7410 | F8: 1.4 | G8: 5145.8
A9: 平成12年 | C9: 56262 | F9: 12.23 | G9: 4600.3
B10: Ⅰ | C10: 48955 | D10: … | E10: … | F10: 10.8 | G10: 4532.9
B11: Ⅱ | C11: 7307 | F11: 1.43 | G11: 5109.8
A12: 平成17年 | C12: =C13+C14 -> 58772 | F12: =F13+F14 -> 12.78 | G12: 4598.7
B13: Ⅰ | C13: 51337 | D13: … | E13: … | F13: 11.3 | G13: 4543.1
B14: Ⅱ | C14: 7435 | F14: 1.48 | G14: 5023.6
A15: 平成22年 | C15: 62946 | D15: 30742 | E15: 32204 | F15: 13.89 | G15: 4531.7
B16: Ⅰ | C16: 55487 | D16: … | E16: … | F16: 12.38 | G16: 4482
B17: Ⅱ | C17: 7459 | F17: 1.51 | G17: 4939.7
A18: 〈資料〉総務省 国勢調査 | G18: （単位：㎢）
A19: 注）Ⅰは恵庭･恵み野地区、Ⅱは島松地区をさす。
A20: 〈人口集中地区〉
A21: 国勢調査区を基礎単位地域として用い、人口密度１平方キロメートル当り4,000人以上の調
A22: 査区が市の境域内で互いに隣接して、人口5,000人以上を有する場合、この地域を人口集中
A23: 地区とした。
A26: ５）恵庭市の昼間人口、夜間人口（詳細は３２～３３頁）
F27: （各年10月1日）
B28: 年次 | C28: 平成２年 | D28: 平成７年 | E28: 平成12年 | F28: 平成17年 | G28: 平成22年
A29: 区分
A30: 昼間人口 | C30: 50513 | D30: 56822 | E30: 60882 | F30: 63123 | G30: 65782
A31: 夜間人口 | C31: 55547 | D31: 62345 | E31: 65238 | F31: 67614 | G31: 69384
A32: 昼間人口率 | C32: 90.8 | D32: 90.9 | E32: 93.3 | F32: 93.4 | G32: 94.8
A33: 〈資料〉総務省 国勢調査 | F33: （単位：人）
A36: ６）産業別就業人口（詳細は３４～３５頁）
G37: （各年10月1日）
B38: 年次 | C38: 平成2年 | E38: 平成7年 | G38: 平成12年
A39: 産業別 | D39: 構成比 | F39: 構成比 | H39: 構成比
A40: 第１次産業 | C40: 1652 | D40: =C40/26809*100 -> 6.162109739 | E40: 1523 | F40: =E40/31101*100 -> 4.896948651 | G40: 1387 | H40: =G40/30926*100 -> 4.484899437
A41: 第２次産業 | C41: 6845 | D41: =C41/26809*100 -> 25.53247044 | E41: 8411 | F41: =E41/31101*100 -> 27.04414649 | G41: 7934 | H41: =G41/30926*100 -> 25.65478885
A42: 第３次産業 | C42: 18312 | D42: =C42/26809*100 -> 68.30541982 | E42: 21167 | F42: =E42/31101*100 -> 68.05890486 | G42: 21605 | H42: =G42/30926*100 -> 69.86031171
A43: 合 計 | C43: 26809 | D43: =C43/26809*100 -> 100 | E43: 31101 | F43: =E43/31101*100 -> 100 | G43: =SUM(G40:G42) -> 30926 | H43: =G43/30926*100 -> 100
B45: 年次 | C45: 平成17年 | E45: 平成22年
A46: 産業別 | D46: 構成比 | F46: 構成比
A47: 第１次産業 | C47: 1464 | D47: =C47/31398*100 -> 4.662717371 | E47: 1151 | F47: =E47/E50*100 -> 3.747354713
A48: 第２次産業 | C48: 7282 | D48: =C48/31398*100 -> 23.19256004 | E48: 6688 | F48: =E48/E50*100 -> 21.77437734
A49: 第３次産業 | C49: 22652 | D49: =C49/31398*100 -> 72.14472259 | E49: 22876 | F49: =E49/E50*100 -> 74.47826795
A50: 合 計 | C50: =SUM(C47:C49) -> 31398 | D50: =C50/31398*100 -> 100 | E50: =SUM(E47:E49) -> 30715 | F50: =E50/E50*100 -> 100
A51: 〈資料〉総務省 国勢調査 | E51: （単位：人）

Sheet 夜間及び昼間人口、通学者数
A1: ７）夜間人口及び昼間人口（詳細）
O2: （各年10月1日）
A3: 年 次 | B3: 夜間人口 | C3: 流 出 人 口 | H3: 流 入 人 口 | M3: 昼間人口 | N3: 昼間人口率 | O3: 年 次
B4: （Ａ) | C4: 総 数 | D4: 通 勤 | E4: 通 学 | F4: 不 詳 | G4: 流出率 | H4: 総 数 | I4: 通 勤 | J4: 通 学 | K4: 不 詳 | L4: 流入率 | M4: （Ａ－Ｂ）＋（Ｃ）＝（Ｅ） | N4: （Ｅ）／（Ａ）
C5: （Ｂ） | G5: （Ｂ）／（Ａ） | H5: （Ｃ） | L5: （Ｃ）／（Ａ）
A6: 平成２年 | B6: 55547 | C6: 10020 | D6: 7972 | E6: 2048 | F6: － | G6: 18 | H6: 4986 | I6: 3912 | J6: 1071 | K6: 3 | L6: 9 | M6: 50513 | N6: 90.8 | O6: 平成２年
A7: 平成７年 | B7: 62345 | C7: 12239 | D7: 10009 | E7: 2230 | F7: － | G7: 19.6 | H7: 6716 | I7: 5309 | J7: 1407 | K7: － | L7: 10.8 | M7: 56822 | N7: 90.9 | O7: 平成７年
A8: 平成12年 | B8: 65238 | C8: 12703 | D8: 10389 | E8: 2314 | F8: － | G8: 19.5 | H8: 8347 | I8: 6557 | J8: 1790 | K8: － | L8: 12.8 | M8: 60882 | N8: 93.3 | O8: 平成12年
A9: 平成17年 | B9: 67614 | C9: 13701 | D9: 11568 | E9: 2133 | F9: － | G9: 20.3 | H9: 9210 | I9: 7157 | J9: 2053 | K9: － | L9: 13.6 | M9: 63123 | N9: 93.4 | O9: 平成17年
A10: 平成22年 | B10: 69384 | C10: 13477 | D10: 11306 | E10: … | F10: … | G10: =C10/B10*100 -> 19.42378646 | H10: 9875 | I10: 7639 | J10: =H10-I10 -> 2236 | K10: － | L10: =H10/B10*100 -> 14.23238787 | M10: =(B10-C10)+H10 -> 65782 | N10: 94.8 | O10: 平成22年
A11: 〈資料〉総務省 国勢調査 | N11: （単位：人、％）
A12: 注）平成22年国勢調査については「不詳」を含めていない。
A14: ８）恵庭市に常住する就業・通学市町村別１５歳以上就業者および通学者数
O15: （各年10月1日）
A16: 年 次 | B16: 総 数 | C16: 市内で就業・通学する者 | F16: 他の市町村で就業・通学する者 | N16: 不 詳 | O16: 年 次
C17: 小 計 | D17: 自 宅 | E17: 自 宅 外 | F17: 小 計 | G17: 札 幌 市 | H17: 千 歳 市 | I17: 江 別 市 | J17: 苫小牧市 | K17: 北広島市 | L17: その他市町村 | M17: 道 外
A18: 平成２年 | B18: 30686 | C18: 20688 | D18: 3065 | E18: 17623 | F18: 9998 | G18: 4238 | H18: 3340 | I18: 230 | J18: 297 | K18: 1516 | L18: 362 | M18: 15 | N18: － | O18: 平成２年
B19: -26809 | C19: -18837 | D19: -3065 | E19: -15772 | F19: -7972 | G19: -3244 | H19: -3056 | I19: -106 | J19: -231 | K19: -1031 | L19: -290 | M19: -14
A20: 平成７年 | B20: 35704 | C20: 23501 | D20: 2342 | E20: 21159 | F20: 12203 | G20: 4977 | H20: 4367 | I20: 251 | J20: 383 | K20: 1629 | L20: 591 | M20: 5 | N20: － | O20: 平成７年
B21: -31101 | C21: -21092 | D21: -2342 | E21: -18750 | F21: -10009 | G21: -3857 | H21: -4027 | I21: -136 | J21: -336 | K21: -1142 | L21: -506 | M21: -5
A22: 平成12年 | B22: 35736 | C22: 23051 | D22: 2422 | E22: 20629 | F22: 12685 | G22: 4940 | H22: 4762 | I22: 287 | J22: 422 | K22: 1581 | L22: 658 | M22: 35 | N22: － | O22: 平成12年
B23: -30926 | C23: -20516 | D23: -2422 | E23: -18094 | F23: -10410 | G23: -3835 | H23: -4349 | I23: -152 | J23: -343 | K23: -1139 | L23: -559 | M23: -33
A24: 平成17年 | B24: 36133 | C24: 22472 | D24: 2222 | E24: 20250 | F24: 13661 | G24: 4802 | H24: 5609 | I24: 383 | J24: 470 | K24: 1544 | L24: 762 | M24: 91 | N24: － | O24: 平成17年
B25: -31398 | C25: -19830 | D25: -2222 | E25: -17608 | F25: -11568 | G25: -3832 | H25: -5164 | I25: -207 | J25: -413 | K25: -1262 | L25: -604 | M25: -86
A26: 平成22年 | B26: 35636 | C26: 21029 | D26: 1814 | E26: 19215 | F26: 13370 | G26: 4776 | H26: 5552 | I26: 325 | J26: 555 | K26: 1408 | L26: 708 | M26: 64 | N26: － | O26: 平成22年
B27: -30715 | C27: -18458 | D27: -1814 | E27: -16644 | F27: -11248 | G27: -555 | H27: -5085 | I27: -194 | J27: -488 | K27: -1136 | L27: -580 | M27: -58
A28: 〈資料〉総務省 国勢調査 | N28: （単位：人）
A29: 注）（ ）内は就業者数。総数と就業者数の差は通学者数。
A31: ９）恵庭市に就業・通学する常住市町村別１５歳以上就業者および通学者数
M32: （各年10月1日）
A33: 年 次 | B33: 総 数 | C33: 市内に常住する者 | D33: 他 の 市 町 村 に 常 住 す る 者 | L33: 不 詳 | M33: 年 次
D34: 小 計 | E34: 札 幌 市 | F34: 千 歳 市 | G34: 江 別 市 | H34: 苫小牧市 | I34: 北広島市 | J34: その他市町村 | K34: 道 外
A35: 平成２年 | B35: 25667 | C35: 20688 | D35: 4979 | E35: 1761 | F35: 1688 | G35: 156 | H35: 96 | I35: 991 | J35: 285 | K35: 2 | L35: － | M35: 平成２年
B36: -22749 | C36: -18837 | D36: -3912 | E36: -1456 | F36: -1374 | G36: -138 | H36: -72 | I36: -627 | J36: -243 | K36: -2
A37: 平成７年 | B37: 30207 | C37: 23501 | D37: 6706 | E37: 2555 | F37: 2094 | G37: 249 | H37: 160 | I37: 1170 | J37: 465 | K37: 13 | L37: － | M37: 平成７年
B38: -26401 | C38: -21092 | D38: -5309 | E38: -2006 | F38: -1753 | G38: -209 | H38: -118 | I38: -838 | J38: -372 | K38: -13
A39: 平成12年 | B39: 31417 | C39: 23051 | D39: 8366 | E39: 3201 | F39: 2544 | G39: 359 | H39: 203 | I39: 1466 | J39: 570 | K39: 23 | L39: － | M39: 平成12年
B40: -27096 | C40: -20516 | D40: -6580 | E40: -2529 | F40: -1967 | G40: -308 | H40: -133 | I40: -1177 | J40: -443 | K40: -23
A41: 平成17年 | B41: 31673 | C41: 22472 | D41: 9201 | E41: 3520 | F41: 2520 | G41: 495 | H41: 272 | I41: 1647 | J41: 719 | K41: 28 | L41: － | M41: 平成17年
B42: -26987 | C42: -19830 | D42: -7157 | E42: -2794 | F42: -1959 | G42: -400 | H42: -157 | I42: -1328 | J42: -495 | K42: -24
A43: 平成22年 | B43: 32066 | C43: 21029 | D43: 9864 | E43: 3930 | F43: 2799 | G43: 510 | H43: 288 | I43: 1516 | J43: 750 | K43: 12 | L43: － | M43: 平成22年
B44: -27048 | C44: -18458 | D44: -7639 | E44: -3046 | F44: -2211 | G44: -396 | H44: 173 | I44: -1275 | J44: -498 | K44: -11
A45: 〈資料〉総務省 国勢調査 | L45: （単位：人）

Sheet 産業別就業人口
A1: １０）産業別就業人口（男女別１５歳以上就業者）
V2: （各年10月1日）
A3: 産 業 分 類 | D3: 平成2年 | G3: 平成7年 | J3: 平成12年 | M3: 平成17年 | P3: 平成22年 | S3: 産業別割合（％）
D4: 総 数 | E4: 男 | F4: 女 | G4: 総 数 | H4: 男 | I4: 女 | J4: 総 数 | K4: 男 | L4: 女 | M4: 総 数 | N4: 男 | O4: 女 | P4: 総 数 | Q4: 男 | R4: 女 | S4: 平成2年 | T4: 平成7年 | U4: 平成12年 | V4: 平成17年 | W4: 平成22年
A5: 総数 | D5: 26809 | E5: 17476 | F5: 9333 | G5: 31101 | H5: 19824 | I5: 11277 | J5: 30926 | K5: 19368 | L5: 11558 | M5: =M7+M13+M19+M42 -> 31398 | N5: =N7+N13+N19+N42 -> 19094 | O5: =O7+O13+O19+O42 -> 12304 | P5: 30715 | Q5: 18226 | R5: 12489 | S5: 100 | T5: 100 | U5: 100 | V5: =V7+V13+V19+V42 -> 100 | W5: =W7+W13+W19+W42 -> 100
B7: 第１次産業 | D7: 1652 | E7: 886 | F7: 766 | G7: 1523 | H7: 778 | I7: 745 | J7: 1387 | K7: 712 | L7: 675 | M7: =M9+M10+M11 -> 1464 | N7: 778 | O7: 686 | P7: 1151 | Q7: 613 | R7: 538 | S7: 6.2 | T7: 4.9 | U7: 4.5 | V7: =M7/M5*100 -> 4.662717371 | W7: =P7/P5*100 -> 3.747354713
C8: 農業・林業 | D8: =SUM(D9:D10) -> 1614 | E8: =SUM(E9:E10) -> 859 | F8: 755 | G8: 1484 | H8: 753 | I8: 731 | J8: 1341 | K8: 683 | L8: 658 | M8: 1447 | N8: 768 | O8: 679 | P8: 1144 | Q8: 609 | R8: 535 | S8: 6 | T8: 4.8 | U8: 4.3 | V8: 4.6 | W8: 3.7
C9: 農業 | D9: 1491 | E9: 759 | F9: 732 | G9: 1401 | H9: 687 | I9: 714 | J9: 1295 | K9: 646 | L9: 649 | M9: =N9+O9 -> 1413 | N9: 737 | O9: 676 | P9: 1111 | Q9: 578 | R9: 533 | S9: 5.6 | T9: 4.5 | U9: 4.2 | V9: 4.5 | W9: (3.6)
C10: 林業 | D10: 123 | E10: 100 | F10: 23 | G10: 83 | H10: 66 | I10: 17 | J10: 46 | K10: 37 | L10: 9 | M10: =N10+O10 -> 34 | N10: 31 | O10: 3 | P10: 33 | Q10: 31 | R10: 2 | S10: 0.5 | T10: 0.3 | U10: 0.1 | V10: 0.1 | W10: (0.1)
C11: 漁業 | D11: 38 | E11: 27 | F11: 11 | G11: 39 | H11: 25 | I11: 14 | J11: 46 | K11: 29 | L11: 17 | M11: =N11+O11 -> 17 | N11: 10 | O11: 7 | P11: 7 | Q11: 4 | R11: 3 | S11: 0.1 | T11: 0.1 | U11: 0.1 | V11: 0.1 | W11: =P11/31398*100 -> 0.02229441366
B13: 第２次産業 | D13: 6845 | E13: 4848 | F13: 1997 | G13: 8411 | H13: 5860 | I13: 2551 | J13: 7934 | K13: 5580 | L13: 2354 | M13: =M15+M16+M17 -> 7282 | N13: =N15+N16+N17 -> 5135 | O13: =O16+O17 -> 2147 | P13: =P14+P16+P17 -> 6688 | Q13: =Q14+Q16+Q17 -> 4756 | R13: =R14+R16+R17 -> 1932 | S13: 25.5 | T13: 27 | U13: 25.7 | V13: =M13/M5*100 -> 23.19256004 | W13: =P13/P5*100 -> 21.77437734
C14: 鉱業・採石業・砂利採取業 | P14: 6 | Q14: 5 | R14: 1 | S14: … | T14: … | U14: … | V14: … | W14: =P14/P13*W13 -> 0.01953442943
C15: 鉱業 | D15: 14 | E15: 14 | F15: － | G15: 31 | H15: 29 | I15: 2 | J15: 23 | K15: 21 | L15: 2 | M15: 12 | N15: 12 | O15: － | P15: … | Q15: … | R15: … | S15: 0.1 | T15: 0.1 | U15: 0.1 | V15: 0 | W15: …
C16: 建設業 | D16: 2759 | E16: 2310 | F16: 449 | G16: 3118 | H16: 2599 | I16: 519 | J16: 2806 | K16: 2408 | L16: 398 | M16: =N16+O16 -> 2502 | N16: 2150 | O16: 352 | P16: 2051 | Q16: 1789 | R16: 262 | S16: 10.3 | T16: 10 | U16: 9.1 | V16: 8 | W16: =P16/P13*W13 -> 6.677519127
C17: 製造業 | D17: 4072 | E17: 2524 | F17: 1548 | G17: 5262 | H17: 3232 | I17: 2030 | J17: 5105 | K17: 3151 | L17: 1954 | M17: =N17+O17 -> 4768 | N17: 2973 | O17: 1795 | P17: 4631 | Q17: 2962 | R17: 1669 | S17: 15.2 | T17: 16.9 | U17: 16.5 | V17: 15.2 | W17: =P17/P13*W13 -> 15.07732378
B19: 第３次産業 | D19: 18274 | E19: 11725 | F19: 6549 | G19: 21123 | H19: 13158 | I19: 7965 | J19: 21369 | K19: 12954 | L19: 8415 | M19: =M20+M21+M24+M25+M27+M28+M31+M36+M35+M37+M39+M40 -> 22091 | N19: =N20+N21+N24+N25+N27+N28+N31+N36+N35+N37+N39+N40 -> 12834 | O19: =O20+O21+O24+O25+O27+O28+O31+O36+O35+O37+O39+O40 -> 9257 | P19: =P20+P21+P22+P25+P28+P29+P32+P33+P34+P35+P36+P37+P40+P39 -> 21548 | Q19: 12085 | R19: 9463 | S19: 68.3 | T19: 67.9 | U19: 69.1 | V19: =M19/M5*100 -> 70.35798459 | W19: =P19/P5*100 -> 70.15464757
C20: 電気･ガス・熱供給・水道業 | D20: 106 | E20: 95 | F20: 11 | G20: 137 | H20: 122 | I20: 15 | J20: 140 | K20: 126 | L20: 14 | M20: =N20+O20 -> 134 | N20: 119 | O20: 15 | P20: 155 | Q20: 135 | R20: 20 | S20: 0.4 | T20: 0.4 | U20: 0.5 | V20: 0.4 | W20: =P20/P19*W19 -> 0.504639427
C21: 情報通信業 | D21: … | E21: … | F21: … | G21: … | H21: … | I21: … | J21: … | K21: … | L21: … | M21: =N21+O21 -> 384 | N21: 310 | O21: 74 | P21: 341 | Q21: 239 | R21: 102 | S21: … | T21: … | U21: … | V21: 1.2 | W21: =P21/P19*W19 -> 1.110206739
C22: 運輸業･郵便業 | D22: … | E22: … | F22: … | G22: … | H22: … | I22: … | J22: … | K22: … | L22: … | M22: … | N22: … | O22: … | P22: 1913 | Q22: 1579 | R22: 334 | S22: … | T22: … | U22: … | V22: … | W22: =P22/P19*W19 -> 6.228227251
C23: 運輸･通信業 | D23: 1599 | E23: 1397 | F23: 202 | G23: 1875 | H23: 1563 | I23: 312 | J23: 1963 | K23: 1559 | L23: 404 | M23: … | N23: … | O23: … | P23: … | Q23: … | R23: … | S23: 6 | T23: 6 | U23: 6.3 | V23: … | W23: …
C24: 運輸業 | D24: … | E24: … | F24: … | G24: … | H24: … | I24: … | J24: … | K24: … | L24: … | M24: =N24+O24 -> 1773 | N24: 1467 | O24: 306 | P24: … | Q24: … | R24: … | S24: … | T24: … | U24: … | V24: 5.6 | W24: …
C25: 卸売･小売業 | D25: … | E25: … | F25: … | G25: … | H25: … | I25: … | J25: … | K25: … | L25: … | M25: =N25+O25 -> 4591 | N25: 2078 | O25: 2513 | P25: 4328 | Q25: 1928 | R25: 2400 | S25: … | T25: … | U25: … | V25: 14.6 | W25: =P25/P19*W19 -> 14.0908351
C26: 卸売･小売･飲食業 | D26: 4724 | E26: 2221 | F26: 2503 | G26: 5335 | H26: 2461 | I26: 2874 | J26: 5434 | K26: 2370 | L26: 3064 | M26: … | N26: … | O26: … | P26: … | Q26: … | R26: … | S26: 17.6 | T26: 17.2 | U26: 17.6 | V26: … | W26: …
C27: 飲食店・宿泊業 | D27: … | E27: … | F27: … | G27: … | H27: … | I27: … | J27: … | K27: … | L27: … | M27: =N27+O27 -> 1374 | N27: 459 | O27: 915 | P27: … | Q27: … | R27: … | S27: … | T27: … | U27: … | V27: 4.4 | W27: …
C28: 金融･保険業 | D28: … | E28: … | F28: … | G28: … | H28: … | I28: … | J28: … | K28: … | L28: … | M28: =N28+O28 -> 506 | N28: 217 | O28: 289 | P28: 422 | Q28: 182 | R28: 240 | S28: … | T28: … | U28: … | V28: 1.6 | W28: =P28/P19*W19 -> 1.373921537
C29: 不動産業・物品賃貸業 | D29: … | E29: … | F29: … | G29: … | H29: … | I29: … | J29: … | K29: … | L29: … | M29: … | N29: … | O29: … | P29: 453 | Q29: 310 | R29: 143 | S29: … | T29: … | U29: … | V29: … | W29: =P29/P19*W19 -> 1.474849422
C30: 金融･保険業･不動産業 | D30: 841 | E30: 362 | F30: 479 | G30: 936 | H30: 416 | I30: 520 | J30: 794 | K30: 386 | L30: 408 | M30: … | N30: … | O30: … | P30: … | Q30: … | R30: … | S30: 3.1 | T30: 3 | U30: 2.6 | V30: … | W30: …
C31: 不動産業 | D31: … | E31: … | F31: … | G31: … | H31: … | I31: … | J31: … | K31: … | L31: … | M31: =N31+O31 -> 267 | N31: 193 | O31: 74 | P31: … | Q31: … | R31: … | S31: … | T31: … | U31: … | V31: 0.9 | W31: …
C32: 学術研究・専門・技術サービス業 | D32: … | E32: … | F32: … | G32: … | H32: … | I32: … | J32: … | K32: … | L32: … | M32: … | N32: … | O32: … | P32: 549 | Q32: 373 | R32: 176 | S32: … | T32: … | U32: … | V32: … | W32: =P32/P19*W19 -> 1.787400293
C33: 宿泊業・飲食サービス業 | D33: … | E33: … | F33: … | G33: … | H33: … | I33: … | J33: … | K33: … | L33: … | M33: … | N33: … | O33: … | P33: 1737 | Q33: 556 | R33: 1181 | S33: … | T33: … | U33: … | V33: … | W33: =P33/P19*W19 -> 5.655217321
C34: 生活関連サービス業，娯楽業 | D34: … | E34: … | F34: … | G34: … | H34: … | I34: … | J34: … | K34: … | L34: … | M34: … | N34: … | O34: … | P34: 1589 | Q34: 618 | R34: 971 | S34: … | T34: … | U34: … | V34: … | W34: =P34/P19*W19 -> 5.173368061
C35: 教育・学習支援業 | D35: … | E35: … | F35: … | G35: … | H35: … | I35: … | J35: … | K35: … | L35: … | M35: =N35+O35 -> 1349 | N35: 691 | O35: 658 | P35: 1246 | Q35: 594 | R35: 652 | S35: … | T35: … | U35: … | V35: 4.3 | W35: =P35/P19*W19 -> 4.056649845
C36: 医療・福祉 | D36: … | E36: … | F36: … | G36: … | H36: … | I36: … | J36: … | K36: … | L36: … | M36: =N36+O36 -> 2411 | N36: 595 | O36: 1816 | P36: 2812 | Q36: 677 | R36: 2135 | S36: … | T36: … | U36: … | V36: 7.7 | W36: =P36/P19*W19 -> 9.155135927
C37: 複合サービス業 | D37: … | E37: … | F37: … | G37: … | H37: … | I37: … | J37: … | K37: … | L37: … | M37: =N37+O37 -> 359 | N37: 229 | O37: 130 | P37: 202 | Q37: 116 | R37: 86 | S37: … | T37: … | U37: … | V37: 1.1 | W37: =P37/P19*W19 -> 0.6576591242
C38: サービス業 | D38: 5629 | E38: 2666 | F38: 2963 | G38: 7295 | H38: 3518 | I38: 3777 | J38: 7835 | K38: 3745 | L38: 4090 | M38: … | N38: … | O38: … | P38: … | Q38: … | R38: … | S38: 21 | T38: 23.5 | U38: 25.3 | V38: … | W38: …
C39: サービス業(他に分類されないもの） | D39: … | E39: … | F39: … | G39: … | H39: … | I39: … | J39: … | K39: … | L39: … | M39: =N39+O39 -> 4417 | N39: 2348 | O39: 2069 | P39: 1709 | Q39: 1090 | R39: 619 | S39: … | T39: … | U39: … | V39: 14.1 | W39: =P39/P19*W19 -> 5.56405665
C40: 公務(他に分類されないもの） | D40: 5375 | E40: 4984 | F40: 391 | G40: 5545 | H40: 5078 | I40: 467 | J40: 5203 | K40: 4768 | L40: 435 | M40: =N40+O40 -> 4526 | N40: 4128 | O40: 398 | P40: 4092 | Q40: 3688 | R40: 404 | S40: 20.1 | T40: 17.8 | U40: 16.8 | V40: 14.4 | W40: =P40/P19*W19 -> 13.32248087
A42: 分類不能の産業 | D42: 38 | E42: 17 | F42: 21 | G42: 44 | H42: 28 | I42: 16 | J42: 236 | K42: 122 | L42: 114 | M42: =N42+O42 -> 561 | N42: 347 | O42: 214 | P42: 1328 | Q42: 772 | R42: 556 | S42: 0.1 | T42: 0.2 | U42: 0.7 | V42: =M42/M5*100 -> 1.786738009 | W42: =P42/P5*100 -> 4.323620381
A43: 〈資料〉総務省 国勢調査 | V43: （単位：人）
A44: 注) 総数の中に｢不詳｣を含んでいるので合計と総数は一致しない｡

Sheet グラフ（入力シート）
A2: 年度 | C2: 道外 | D2: 道内
A3: H22 | B3: 転入 | C3: ='社会動態（道外）'!$B$8+'社会動態（道外）'!$B$9 -> 644 | D3: ='社会動態（道外）'!$B$7 -> 2398 | E3: =C3+D3 -> 3042
B4: 転出 | C4: ='社会動態（道外）'!$C$8+'社会動態（道外）'!$C$9 -> 767 | D4: 2220 | E4: =C4+D4 -> 2987
A5: H23 | B5: 転入 | C5: ='社会動態（道外）'!$D$8+'社会動態（道外）'!$D$9 -> 607 | D5: 2404 | E5: 3011
B6: 転出 | C6: ='社会動態（道外）'!$E$8+'社会動態（道外）'!$E$9 -> 699 | D6: ='社会動態（道外）'!$E$7 -> 2276 | E6: 2975
A7: H24 | B7: 転入 | C7: ='社会動態（道外）'!$F$8+'社会動態（道外）'!$F$9 -> 685 | D7: ='社会動態（道外）'!$F$7 -> 2235 | E7: 2920
B8: 転出 | C8: ='社会動態（道外）'!$G$8+'社会動態（道外）'!$G$9 -> 720 | D8: ='社会動態（道外）'!$G$7 -> 2083 | E8: 2803
A9: H25 | B9: 転入 | C9: ='社会動態（道外）'!$H$8+'社会動態（道外）'!$H$9 -> 630 | D9: ='社会動態（道外）'!$H$7 -> 2242 | E9: 2872
B10: 転出 | C10: ='社会動態（道外）'!$I$8+'社会動態（道外）'!$I$9 -> 787 | D10: ='社会動態（道外）'!$I$7 -> 2308 | E10: 3095
A11: H26 | B11: 転入 | C11: ='社会動態（道外）'!$J$8+'社会動態（道外）'!$J$9 -> 585 | D11: ='社会動態（道外）'!$J$7 -> 2536 | E11: 3121
B12: 転出 | C12: ='社会動態（道外）'!$K$8+'社会動態（道外）'!$K$9 -> 760 | D12: 2186 | E12: 2946

Sheet グラフ（入力シート）②
L2: 平成22年国勢調査データより
L3: 産業別人口（男女別15歳以上就業者）
M4: 第１次産業 | N4: 第２次産業 | O4: 第３次産業 | P4: 分類不能の産業
L5: 割合 | M5: 3.7 | N5: 21.8 | O5: 70.2 | P5: 4.3 | Q5: =SUM(M5:P5) -> 100
L6: 人数 | M6: 1151 | N6: 6688 | O6: 21548 | P6: 1328
M23: H22年 | N23: H17年 | O23: H12年 | P23: H7年 | Q23: H2年
L24: 第1次産業 | M24: 3.7 | N24: 4.662717371 | O24: 4.5 | P24: 4.9 | Q24: 6.2
L25: 第2次産業 | M25: 21.8 | N25: 23.19256004 | O25: 25.7 | P25: 27 | Q25: 25.5
L26: 第3次産業 | M26: 70.2 | N26: 70.35798459 | O26: 69.1 | P26: 67.9 | Q26: 68.3
L27: 不詳 | M27: 4.3 | N27: 1.8 | O27: 0.7 | P27: 0.2 | Q27: 0.1

Sheet グラフ（入力シート）⑤
A1: ３）年齢別人口（５歳階級）
C3: 12年 | D3: 17年 | E3: 22年
B4: 85 以上 | C4: 222 | D4: 323 | E4: 491
B5: 80～84 | C5: 386 | D5: 500 | E5: 948
B6: 75～79 | C6: 651 | D6: 1175 | E6: 1427
B7: 70～74 | C7: 1375 | D7: 1589 | E7: 1654
B8: 65～69 | C8: 1707 | D8: 1786 | E8: 1872
B9: 60～64 | C9: 1839 | D9: 1945 | E9: 2581
B10: 55～59 | C10: 1925 | D10: 2530 | E10: 2391
B11: 50～54 | C11: 2510 | D11: 2401 | E11: 2051
B12: 45～49 | C12: 2448 | D12: 2069 | E12: 2131
B13: 40～44 | C13: 2089 | D13: 2135 | E13: 2314
B14: 35～39 | C14: 2132 | D14: 2235 | E14: 2540
B15: 30～34 | C15: 2197 | D15: 2482 | E15: 2299
B16: 25～29 | C16: 2483 | D16: 2237 | E16: 1866
B17: 20～24 | C17: 2685 | D17: 2430 | E17: 2157
B18: 15～19 | C18: 2433 | D18: 2272 | E18: 2216
B19: 10～14 | C19: 1917 | D19: 1903 | E19: 1780
B20: 5～9 | C20: 1854 | D20: 1742 | E20: 1662
B21: 0～4 | C21: 1649 | D21: 1563 | E21: 1467
A22: 〈資料〉国勢調査 （第１次基本集計結果 第3表） | E22: （単位：人）

Sheet グラフ（入力シート）⑥
A1: ３）年齢別人口（５歳階級）
C3: 12年 | D3: 17年 | E3: 22年
B4: 85 以上 | C4: 502 | D4: 785 | E4: 1122
B5: 80～84 | C5: 607 | D5: 798 | E5: 1160
B6: 75～79 | C6: 884 | D6: 1219 | E6: 1588
B7: 70～74 | C7: 1290 | D7: 1659 | E7: 1958
B8: 65～69 | C8: 1689 | D8: 2013 | E8: 2207
B9: 60～64 | C9: 2027 | D9: 2222 | E9: 2750
B10: 55～59 | C10: 2178 | D10: 2736 | E10: 2566
B11: 50～54 | C11: 2707 | D11: 2545 | E11: 2113
B12: 45～49 | C12: 2526 | D12: 2087 | E12: 2207
B13: 40～44 | C13: 2065 | D13: 2192 | E13: 2312
B14: 35～39 | C14: 2131 | D14: 2253 | E14: 2526
B15: 30～34 | C15: 2119 | D15: 2385 | E15: 2221
B16: 25～29 | C16: 2274 | D16: 2069 | E16: 1833
B17: 20～24 | C17: 2226 | D17: 2156 | E17: 2028
B18: 15～19 | C18: 2311 | D18: 2175 | E18: 2008
B19: 10～14 | C19: 1881 | D19: 1768 | E19: 1718
B20: 5～9 | C20: 1728 | D20: 1701 | E20: 1602
B21: 0～4 | C21: 1591 | D21: 1534 | E21: 1461
A22: 〈資料〉国勢調査 （第１次基本集計結果 第3表）

Sheet グラフ（入力シート）⑦
A1: 市民の平均年齢の推移
B3: 総数 | C3: 男 | D3: 女
A4: Ｈ7 | B4: 36.8 | C4: 35.9 | D4: 37.7
A5: H12 | B5: 39.2 | C5: 38.2 | D5: 40.2
A6: H17 | B6: 41.3 | C6: 40.2 | D6: 42.4
A7: H22 | B7: 43.5 | C7: 42.3 | D7: 44.6
